Organisation Name,Organisation Code,Unique Ref No,Effective Date,Directorate  where expenditure incurred,Supplier Name,Payment Date,Net Amount,Purpose of Spend,Procurement Classification (Higher Level),Procurement Classification (Lower Level),Capital/Revenue
Walsall Council,http://opendatacommunities.org/id/metropolitan-district-council/walsall,WC94-01,31/07/2018,Childrens,247 CARS (WILLENHALL) LIMITED,06/07/2018,315.00,60500-GENERAL MATERIALS,PUPIL REFERAL UNIT EXCLUSIONS,Supplies & Services,Revenue
Walsall Council,http://opendatacommunities.org/id/metropolitan-district-council/walsall,WC94-02,31/07/2018,Childrens,247 CARS (WILLENHALL) LIMITED,06/07/2018,340.00,60500-GENERAL MATERIALS,PUPIL REFERAL UNIT EXCLUSIONS,Supplies & Services,Revenue
Walsall Council,http://opendatacommunities.org/id/metropolitan-district-council/walsall,WC94-03,31/07/2018,Childrens,247 CARS (WILLENHALL) LIMITED,06/07/2018,510.00,60500-GENERAL MATERIALS,PUPIL REFERAL UNIT EXCLUSIONS,Supplies & Services,Revenue
Walsall Council,http://opendatacommunities.org/id/metropolitan-district-council/walsall,WC94-04,31/07/2018,Economy & Environment,39 ESSEX STREET LLP PFA,12/07/2018,"1,500.00",63000-PROFESSIONAL FEES AND SERVICES,LAND CHARGES,Supplies & Services,Revenue
Walsall Council,http://opendatacommunities.org/id/metropolitan-district-council/walsall,WC94-05,31/07/2018,Resources and Transformation,3C TECHNOLOGY LTD,24/07/2018,"2,220.00",63800-COMPUTER EQUIPMENT AND SUPPLIES,SIT-INFRASTRUCTURE,Supplies & Services,Revenue
Walsall Council,http://opendatacommunities.org/id/metropolitan-district-council/walsall,WC94-06,31/07/2018,Adult Social Care,5 CARE SERVICES LTD,20/07/2018,"-1,478.87",73372-DOMICILIARY CARE,OP PACKAGE/PLACEMENT COSTS,Third Party Payments,Revenue
Walsall Council,http://opendatacommunities.org/id/metropolitan-district-council/walsall,WC94-07,31/07/2018,Adult Social Care,5 CARE SERVICES LTD,20/07/2018,"-1,289.29",73372-DOMICILIARY CARE,OP PACKAGE/PLACEMENT COSTS,Third Party Payments,Revenue
Walsall Council,http://opendatacommunities.org/id/metropolitan-district-council/walsall,WC94-08,31/07/2018,Adult Social Care,5 CARE SERVICES LTD,20/07/2018,"-1,220.91",73372-DOMICILIARY CARE,OP PACKAGE/PLACEMENT COSTS,Third Party Payments,Revenue
Walsall Council,http://opendatacommunities.org/id/metropolitan-district-council/walsall,WC94-09,31/07/2018,Childrens,5 CARE SERVICES LTD,11/07/2018,"1,204.00",63000-PROFESSIONAL FEES AND SERVICES,DIRECTLY COMMISSIONED NURSING SERVICES,Supplies & Services,Revenue
Walsall Council,http://opendatacommunities.org/id/metropolitan-district-council/walsall,WC94-10,31/07/2018,Adult Social Care,5 CARE SERVICES LTD,20/07/2018,"40,613.86",73372-DOMICILIARY CARE,OP PACKAGE/PLACEMENT COSTS,Third Party Payments,Revenue
Walsall Council,http://opendatacommunities.org/id/metropolitan-district-council/walsall,WC94-11,31/07/2018,Resources and Transformation,A D T FIRE AND SECURITY PLC,01/07/2018,231.15,73002-SECURITY-PRIV CONTRACTOR FEES,CENTRALISED MAINTENANCE,Third Party Payments,Revenue
Walsall Council,http://opendatacommunities.org/id/metropolitan-district-council/walsall,WC94-12,31/07/2018,Economy & Environment,A D T FIRE AND SECURITY PLC,25/07/2018,273.00,"40000-REPAIRS,ALTERATIONS & MAINTENANCE-PREM",ARBORETUM,Premises,Revenue
Walsall Council,http://opendatacommunities.org/id/metropolitan-district-council/walsall,WC94-13,31/07/2018,Economy & Environment,A D T FIRE AND SECURITY PLC,19/07/2018,418.00,"40000-REPAIRS,ALTERATIONS & MAINTENANCE-PREM",ARBORETUM,Premises,Revenue
Walsall Council,http://opendatacommunities.org/id/metropolitan-district-council/walsall,WC94-14,31/07/2018,Resources and Transformation,A D T FIRE AND SECURITY PLC,23/07/2018,"1,128.93",73002-SECURITY-PRIV CONTRACTOR FEES,CENTRALISED MAINTENANCE,Third Party Payments,Revenue
Walsall Council,http://opendatacommunities.org/id/metropolitan-district-council/walsall,WC94-15,31/07/2018,Resources and Transformation,A D T FIRE AND SECURITY PLC,09/07/2018,"2,174.92",73002-SECURITY-PRIV CONTRACTOR FEES,CENTRALISED MAINTENANCE,Third Party Payments,Revenue
Walsall Council,http://opendatacommunities.org/id/metropolitan-district-council/walsall,WC94-16,31/07/2018,Economy & Environment,A F BLAKEMORE & SON LTD,20/07/2018,283.70,61008-CONFECTIONERY/SNACKS-PROVISIONS,DARLASTON LEISURE CENTRE,Supplies & Services,Revenue
Walsall Council,http://opendatacommunities.org/id/metropolitan-district-council/walsall,WC94-17,31/07/2018,Economy & Environment,A F BLAKEMORE & SON LTD,25/07/2018,316.22,61008-CONFECTIONERY/SNACKS-PROVISIONS,OAK PARK,Supplies & Services,Revenue
Walsall Council,http://opendatacommunities.org/id/metropolitan-district-council/walsall,WC94-18,31/07/2018,Economy & Environment,A F BLAKEMORE & SON LTD,20/07/2018,354.72,61018-DRINKS-PROVISIONS,DARLASTON LEISURE CENTRE,Supplies & Services,Revenue
Walsall Council,http://opendatacommunities.org/id/metropolitan-district-council/walsall,WC94-19,31/07/2018,Adult Social Care,A F BLAKEMORE & SON LTD,01/07/2018,368.32,61016-FOOD AND BEVERAGES-PROVISIONS,GOSCOTE,Supplies & Services,Revenue
Walsall Council,http://opendatacommunities.org/id/metropolitan-district-council/walsall,WC94-20,31/07/2018,Adult Social Care,A F BLAKEMORE & SON LTD,01/07/2018,392.43,61016-FOOD AND BEVERAGES-PROVISIONS,GOSCOTE,Supplies & Services,Revenue
Walsall Council,http://opendatacommunities.org/id/metropolitan-district-council/walsall,WC94-21,31/07/2018,Economy & Environment,A F BLAKEMORE & SON LTD,04/07/2018,409.98,61018-DRINKS-PROVISIONS,OAK PARK,Supplies & Services,Revenue
Walsall Council,http://opendatacommunities.org/id/metropolitan-district-council/walsall,WC94-22,31/07/2018,Economy & Environment,A F BLAKEMORE & SON LTD,20/07/2018,430.16,61018-DRINKS-PROVISIONS,OAK PARK,Supplies & Services,Revenue
Walsall Council,http://opendatacommunities.org/id/metropolitan-district-council/walsall,WC94-23,31/07/2018,Adult Social Care,A F BLAKEMORE & SON LTD,18/07/2018,452.90,61016-FOOD AND BEVERAGES-PROVISIONS,GOSCOTE,Supplies & Services,Revenue
Walsall Council,http://opendatacommunities.org/id/metropolitan-district-council/walsall,WC94-24,31/07/2018,Economy & Environment,A F BLAKEMORE & SON LTD,01/07/2018,673.73,61008-CONFECTIONERY/SNACKS-PROVISIONS,OAK PARK,Supplies & Services,Revenue
Walsall Council,http://opendatacommunities.org/id/metropolitan-district-council/walsall,WC94-25,31/07/2018,Economy & Environment,A F BLAKEMORE & SON LTD,01/07/2018,791.70,61008-CONFECTIONERY/SNACKS-PROVISIONS,OAK PARK,Supplies & Services,Revenue
Walsall Council,http://opendatacommunities.org/id/metropolitan-district-council/walsall,WC94-26,31/07/2018,Resources and Transformation,A G BARR PLC,01/07/2018,276.46,61009-BEVERAGES-PROVISIONS,TOWN HALL RESTAURANT BISTRO,Supplies & Services,Revenue
Walsall Council,http://opendatacommunities.org/id/metropolitan-district-council/walsall,WC94-27,31/07/2018,Economy & Environment,A KARIMS CHUCKERY PHARMACY,25/07/2018,300.00,71007-CONTRIBUTION TO PCT,PUBLIC HEALTH BUSINESS SUPPORT,Third Party Payments,Revenue
Walsall Council,http://opendatacommunities.org/id/metropolitan-district-council/walsall,WC94-28,31/07/2018,Economy & Environment,A KARIMS CHUCKERY PHARMACY,02/07/2018,621.45,71007-CONTRIBUTION TO PCT,PUBLIC HEALTH BUSINESS SUPPORT,Third Party Payments,Revenue
Walsall Council,http://opendatacommunities.org/id/metropolitan-district-council/walsall,WC94-29,31/07/2018,Childrens,A+ EDUCATION LTD,13/07/2018,"1,199.40",60501-LIBRARY BOOKS,EARLY IMPLEMENTER INNOVATOR GRANT (30 HRS CHILDCARE),Supplies & Services,Revenue
Walsall Council,http://opendatacommunities.org/id/metropolitan-district-council/walsall,WC94-30,31/07/2018,Childrens,AAA BEE JAY CARS,09/07/2018,990.70,52000-WITH DRIVER-HIRE OF VEHICLES,HOME TO SCHOOL TRANSPORT,Transport,Revenue
Walsall Council,http://opendatacommunities.org/id/metropolitan-district-council/walsall,WC94-31,31/07/2018,Childrens,AAA BEE JAY CARS,09/07/2018,"2,151.16",52000-WITH DRIVER-HIRE OF VEHICLES,HOME TO SCHOOL TRANSPORT,Transport,Revenue
Walsall Council,http://opendatacommunities.org/id/metropolitan-district-council/walsall,WC94-32,31/07/2018,Childrens,AAA BEE JAY CARS,09/07/2018,"5,124.00",52000-WITH DRIVER-HIRE OF VEHICLES,HOME TO SCHOOL TRANSPORT,Transport,Revenue
Walsall Council,http://opendatacommunities.org/id/metropolitan-district-council/walsall,WC94-33,31/07/2018,Childrens,REDACTED,12/07/2018,378.00,73506-DIRECT PAYMENT,FAMILY SUPPORT - DIRECT PAYMENTS,Third Party Payments,Revenue
Walsall Council,http://opendatacommunities.org/id/metropolitan-district-council/walsall,WC94-34,31/07/2018,Adult Social Care,ABBEY COURT NURSING & RESIDEN,30/07/2018,"2,010.56",73373-RESIDENTIAL & NURSING CARE PLACEMENTS,OP PACKAGE/PLACEMENT COSTS,Third Party Payments,Revenue
Walsall Council,http://opendatacommunities.org/id/metropolitan-district-council/walsall,WC94-35,31/07/2018,Adult Social Care,ABBEY COURT NURSING & RESIDEN,17/07/2018,"2,077.58",73373-RESIDENTIAL & NURSING CARE PLACEMENTS,OP PACKAGE/PLACEMENT COSTS,Third Party Payments,Revenue
Walsall Council,http://opendatacommunities.org/id/metropolitan-district-council/walsall,WC94-36,31/07/2018,Adult Social Care,ABBEY COURT NURSING & RESIDEN,17/07/2018,"2,077.58",73373-RESIDENTIAL & NURSING CARE PLACEMENTS,OP PACKAGE/PLACEMENT COSTS,Third Party Payments,Revenue
Walsall Council,http://opendatacommunities.org/id/metropolitan-district-council/walsall,WC94-37,31/07/2018,Adult Social Care,ABBEY COURT NURSING & RESIDEN,30/07/2018,"2,077.58",73373-RESIDENTIAL & NURSING CARE PLACEMENTS,OP PACKAGE/PLACEMENT COSTS,Third Party Payments,Revenue
Walsall Council,http://opendatacommunities.org/id/metropolitan-district-council/walsall,WC94-38,31/07/2018,Adult Social Care,ABBEY COURT NURSING & RESIDEN,30/07/2018,"2,077.58",73373-RESIDENTIAL & NURSING CARE PLACEMENTS,OP PACKAGE/PLACEMENT COSTS,Third Party Payments,Revenue
Walsall Council,http://opendatacommunities.org/id/metropolitan-district-council/walsall,WC94-39,31/07/2018,Adult Social Care,ABBEY COURT NURSING & RESIDEN,17/07/2018,"2,144.62",73373-RESIDENTIAL & NURSING CARE PLACEMENTS,OP PACKAGE/PLACEMENT COSTS,Third Party Payments,Revenue
Walsall Council,http://opendatacommunities.org/id/metropolitan-district-council/walsall,WC94-40,31/07/2018,Adult Social Care,ABBEY HEALTHCARE HOMES LTD,17/07/2018,"-6,068.86",73373-RESIDENTIAL & NURSING CARE PLACEMENTS,PD PACKAGE/PLACEMENT COSTS,Third Party Payments,Revenue
Walsall Council,http://opendatacommunities.org/id/metropolitan-district-council/walsall,WC94-41,31/07/2018,Adult Social Care,ABBEY HEALTHCARE HOMES LTD,17/07/2018,"-4,005.44",73373-RESIDENTIAL & NURSING CARE PLACEMENTS,PD PACKAGE/PLACEMENT COSTS,Third Party Payments,Revenue
Walsall Council,http://opendatacommunities.org/id/metropolitan-district-council/walsall,WC94-42,31/07/2018,Adult Social Care,ABBEY HEALTHCARE HOMES LTD,03/07/2018,"2,142.86",73373-RESIDENTIAL & NURSING CARE PLACEMENTS,LD PACKAGE/PLACEMENT COSTS,Third Party Payments,Revenue
Walsall Council,http://opendatacommunities.org/id/metropolitan-district-council/walsall,WC94-43,31/07/2018,Adult Social Care,ABBEY HEALTHCARE HOMES LTD,03/07/2018,"3,000.00",73373-RESIDENTIAL & NURSING CARE PLACEMENTS,LD PACKAGE/PLACEMENT COSTS,Third Party Payments,Revenue
Walsall Council,http://opendatacommunities.org/id/metropolitan-district-council/walsall,WC94-44,31/07/2018,Adult Social Care,ABBEY HEALTHCARE HOMES LTD,17/07/2018,"3,000.00",73373-RESIDENTIAL & NURSING CARE PLACEMENTS,LD PACKAGE/PLACEMENT COSTS,Third Party Payments,Revenue
Walsall Council,http://opendatacommunities.org/id/metropolitan-district-council/walsall,WC94-45,31/07/2018,Adult Social Care,ABBEY HEALTHCARE HOMES LTD,17/07/2018,"3,000.00",73373-RESIDENTIAL & NURSING CARE PLACEMENTS,OP PACKAGE/PLACEMENT COSTS,Third Party Payments,Revenue
Walsall Council,http://opendatacommunities.org/id/metropolitan-district-council/walsall,WC94-46,31/07/2018,Adult Social Care,ABBEY HEALTHCARE HOMES LTD,30/07/2018,"3,000.00",73373-RESIDENTIAL & NURSING CARE PLACEMENTS,LD PACKAGE/PLACEMENT COSTS,Third Party Payments,Revenue
Walsall Council,http://opendatacommunities.org/id/metropolitan-district-council/walsall,WC94-47,31/07/2018,Adult Social Care,ABBEY HEALTHCARE HOMES LTD,17/07/2018,"3,200.00",73373-RESIDENTIAL & NURSING CARE PLACEMENTS,OP PACKAGE/PLACEMENT COSTS,Third Party Payments,Revenue
Walsall Council,http://opendatacommunities.org/id/metropolitan-district-council/walsall,WC94-48,31/07/2018,Childrens,ABC DAY NURSERY (WILLENHALL) LIMITED,26/07/2018,310.05,66505-OTHER-GRANTS TO OTHER ORGS,EARLY YEARS - 3 YR OLDS,Third Party Payments,Revenue
Walsall Council,http://opendatacommunities.org/id/metropolitan-district-council/walsall,WC94-49,31/07/2018,Childrens,ABC FOSTERING,16/07/2018,"2,635.20",74037-INDEPENDENT FOSTER CARE-OTH AGENCY PROVISION,EXTERNAL FOSTER CARE PROVISION,Third Party Payments,Revenue
Walsall Council,http://opendatacommunities.org/id/metropolitan-district-council/walsall,WC94-50,31/07/2018,Childrens,ABC FOSTERING,16/07/2018,"2,859.48",74037-INDEPENDENT FOSTER CARE-OTH AGENCY PROVISION,EXTERNAL FOSTER CARE PROVISION,Third Party Payments,Revenue
Walsall Council,http://opendatacommunities.org/id/metropolitan-district-council/walsall,WC94-51,31/07/2018,Childrens,ABC FOSTERING,16/07/2018,"2,932.80",74037-INDEPENDENT FOSTER CARE-OTH AGENCY PROVISION,EXTERNAL FOSTER CARE PROVISION,Third Party Payments,Revenue
Walsall Council,http://opendatacommunities.org/id/metropolitan-district-council/walsall,WC94-52,31/07/2018,Childrens,ABC FOSTERING,16/07/2018,"3,042.00",74037-INDEPENDENT FOSTER CARE-OTH AGENCY PROVISION,EXTERNAL FOSTER CARE PROVISION,Third Party Payments,Revenue
Walsall Council,http://opendatacommunities.org/id/metropolitan-district-council/walsall,WC94-53,31/07/2018,Childrens,ABC FOSTERING,16/07/2018,"3,120.00",74037-INDEPENDENT FOSTER CARE-OTH AGENCY PROVISION,EXTERNAL FOSTER CARE PROVISION,Third Party Payments,Revenue
Walsall Council,http://opendatacommunities.org/id/metropolitan-district-council/walsall,WC94-54,31/07/2018,Childrens,ABC TEACHERS LIMITED,26/07/2018,820.00,63000-PROFESSIONAL FEES AND SERVICES,SCHOOL IMPROVEMENT-VIRTUAL SCHOOL,Supplies & Services,Revenue
Walsall Council,http://opendatacommunities.org/id/metropolitan-district-council/walsall,WC94-55,31/07/2018,Childrens,ABC TEACHERS LIMITED,26/07/2018,820.00,63000-PROFESSIONAL FEES AND SERVICES,SCHOOL IMPROVEMENT-VIRTUAL SCHOOL,Supplies & Services,Revenue
Walsall Council,http://opendatacommunities.org/id/metropolitan-district-council/walsall,WC94-56,31/07/2018,Childrens,ABC TEACHERS LIMITED,26/07/2018,820.00,63000-PROFESSIONAL FEES AND SERVICES,SCHOOL IMPROVEMENT-VIRTUAL SCHOOL,Supplies & Services,Revenue
Walsall Council,http://opendatacommunities.org/id/metropolitan-district-council/walsall,WC94-57,31/07/2018,Childrens,ABC TEACHERS LIMITED,26/07/2018,820.00,63000-PROFESSIONAL FEES AND SERVICES,SCHOOL IMPROVEMENT-VIRTUAL SCHOOL,Supplies & Services,Revenue
Walsall Council,http://opendatacommunities.org/id/metropolitan-district-council/walsall,WC94-58,31/07/2018,Childrens,ABC TEACHERS LIMITED,26/07/2018,820.00,63000-PROFESSIONAL FEES AND SERVICES,SCHOOL IMPROVEMENT-VIRTUAL SCHOOL,Supplies & Services,Revenue
Walsall Council,http://opendatacommunities.org/id/metropolitan-district-council/walsall,WC94-59,31/07/2018,Childrens,ABC TEACHERS LIMITED,26/07/2018,820.00,63000-PROFESSIONAL FEES AND SERVICES,SCHOOL IMPROVEMENT-VIRTUAL SCHOOL,Supplies & Services,Revenue
Walsall Council,http://opendatacommunities.org/id/metropolitan-district-council/walsall,WC94-60,31/07/2018,Adult Social Care,REDACTED,11/07/2018,"1,621.16",73506-DIRECT PAYMENT,LEARNING DISABILITY SUPPORT,Third Party Payments,Revenue
Walsall Council,http://opendatacommunities.org/id/metropolitan-district-council/walsall,WC94-61,31/07/2018,Adult Social Care,REDACTED,11/07/2018,"1,999.20",73506-DIRECT PAYMENT,LEARNING DISABILITY SUPPORT,Third Party Payments,Revenue
Walsall Council,http://opendatacommunities.org/id/metropolitan-district-council/walsall,WC94-62,31/07/2018,Resources and Transformation,ABLE ACCESS UK,05/07/2018,"15,287.46",01045-PRIVATE GRANTS,CFR 826 DISABLED FACILITIES GRANTS (SOCIAL SERVICES),Capital,Capital
Walsall Council,http://opendatacommunities.org/id/metropolitan-district-council/walsall,WC94-63,31/07/2018,Childrens,ABLEWELL CARS,05/07/2018,"7,273.08",52000-WITH DRIVER-HIRE OF VEHICLES,HOME TO SCHOOL TRANSPORT,Transport,Revenue
Walsall Council,http://opendatacommunities.org/id/metropolitan-district-council/walsall,WC94-64,31/07/2018,Economy & Environment,ABRSM,18/07/2018,"4,456.00",63124-FEES & LICENCES-SERVICES,MUSIC HUB FOREST ARTS,Supplies & Services,Revenue
Walsall Council,http://opendatacommunities.org/id/metropolitan-district-council/walsall,WC94-65,31/07/2018,Childrens,ABU BAKR NURSERY,26/07/2018,413.40,66505-OTHER-GRANTS TO OTHER ORGS,EARLY YEARS - 3 YR OLDS,Third Party Payments,Revenue
Walsall Council,http://opendatacommunities.org/id/metropolitan-district-council/walsall,WC94-66,31/07/2018,Capital Financing,ACASTA CONSULTING LTD,17/07/2018,"1,829.89",82507-INTEREST ON OVERDUE /LATE PAYMENTS-CENTRAL EXPENSES,INTEREST ALLOCATION,Central,Revenue
Walsall Council,http://opendatacommunities.org/id/metropolitan-district-council/walsall,WC94-67,31/07/2018,Adult Social Care,ACCORD HOUSING ASSOCIATION LTD#135,10/07/2018,486.00,73373-RESIDENTIAL & NURSING CARE PLACEMENTS,LD PACKAGE/PLACEMENT COSTS,Third Party Payments,Revenue
Walsall Council,http://opendatacommunities.org/id/metropolitan-district-council/walsall,WC94-68,31/07/2018,Adult Social Care,ACCORD HOUSING ASSOCIATION LTD#135,02/07/2018,"2,262.00",70000-SOCIAL SERVICES-FEES TO VOLUNTARY BODIES,COMPLEX NEEDS SLA,Third Party Payments,Revenue
Walsall Council,http://opendatacommunities.org/id/metropolitan-district-council/walsall,WC94-69,31/07/2018,Adult Social Care,ACCORD HOUSING ASSOCIATION LTD#135,03/07/2018,"4,505.40",73373-RESIDENTIAL & NURSING CARE PLACEMENTS,LD PACKAGE/PLACEMENT COSTS,Third Party Payments,Revenue
Walsall Council,http://opendatacommunities.org/id/metropolitan-district-council/walsall,WC94-70,31/07/2018,Adult Social Care,ACCORD HOUSING ASSOCIATION LTD#135,10/07/2018,"4,505.40",73373-RESIDENTIAL & NURSING CARE PLACEMENTS,LD PACKAGE/PLACEMENT COSTS,Third Party Payments,Revenue
Walsall Council,http://opendatacommunities.org/id/metropolitan-district-council/walsall,WC94-71,31/07/2018,Adult Social Care,ACCORD HOUSING ASSOCIATION LTD#135,10/07/2018,"4,505.40",73373-RESIDENTIAL & NURSING CARE PLACEMENTS,LD PACKAGE/PLACEMENT COSTS,Third Party Payments,Revenue
Walsall Council,http://opendatacommunities.org/id/metropolitan-district-council/walsall,WC94-72,31/07/2018,Adult Social Care,ACCORD HOUSING ASSOCIATION LTD#135,10/07/2018,"4,505.40",73373-RESIDENTIAL & NURSING CARE PLACEMENTS,LD PACKAGE/PLACEMENT COSTS,Third Party Payments,Revenue
Walsall Council,http://opendatacommunities.org/id/metropolitan-district-council/walsall,WC94-73,31/07/2018,Adult Social Care,ACCORD HOUSING ASSOCIATION LTD#135,10/07/2018,"4,505.40",73373-RESIDENTIAL & NURSING CARE PLACEMENTS,LD PACKAGE/PLACEMENT COSTS,Third Party Payments,Revenue
Walsall Council,http://opendatacommunities.org/id/metropolitan-district-council/walsall,WC94-74,31/07/2018,Adult Social Care,ACCORD HOUSING ASSOCIATION LTD#135,30/07/2018,"4,505.40",73373-RESIDENTIAL & NURSING CARE PLACEMENTS,LD PACKAGE/PLACEMENT COSTS,Third Party Payments,Revenue
Walsall Council,http://opendatacommunities.org/id/metropolitan-district-council/walsall,WC94-75,31/07/2018,Adult Social Care,ACCORD HOUSING ASSOCIATION LTD#135,30/07/2018,"4,505.40",73373-RESIDENTIAL & NURSING CARE PLACEMENTS,LD PACKAGE/PLACEMENT COSTS,Third Party Payments,Revenue
Walsall Council,http://opendatacommunities.org/id/metropolitan-district-council/walsall,WC94-76,31/07/2018,Adult Social Care,ACCORD HOUSING ASSOCIATION LTD#135,30/07/2018,"4,505.40",73373-RESIDENTIAL & NURSING CARE PLACEMENTS,LD PACKAGE/PLACEMENT COSTS,Third Party Payments,Revenue
Walsall Council,http://opendatacommunities.org/id/metropolitan-district-council/walsall,WC94-77,31/07/2018,Adult Social Care,ACCORD HOUSING ASSOCIATION LTD#135,30/07/2018,"4,505.40",73373-RESIDENTIAL & NURSING CARE PLACEMENTS,LD PACKAGE/PLACEMENT COSTS,Third Party Payments,Revenue
Walsall Council,http://opendatacommunities.org/id/metropolitan-district-council/walsall,WC94-78,31/07/2018,Adult Social Care,ACCORD HOUSING ASSOCIATION LTD#135,10/07/2018,"6,288.08",73373-RESIDENTIAL & NURSING CARE PLACEMENTS,LD PACKAGE/PLACEMENT COSTS,Third Party Payments,Revenue
Walsall Council,http://opendatacommunities.org/id/metropolitan-district-council/walsall,WC94-79,31/07/2018,Adult Social Care,ACCORD HOUSING ASSOCIATION LTD#135,10/07/2018,"6,288.08",73373-RESIDENTIAL & NURSING CARE PLACEMENTS,LD PACKAGE/PLACEMENT COSTS,Third Party Payments,Revenue
Walsall Council,http://opendatacommunities.org/id/metropolitan-district-council/walsall,WC94-80,31/07/2018,Adult Social Care,ACCORD HOUSING ASSOCIATION LTD#135,10/07/2018,"6,288.08",73373-RESIDENTIAL & NURSING CARE PLACEMENTS,LD PACKAGE/PLACEMENT COSTS,Third Party Payments,Revenue
Walsall Council,http://opendatacommunities.org/id/metropolitan-district-council/walsall,WC94-81,31/07/2018,Adult Social Care,ACCORD HOUSING ASSOCIATION LTD#135,30/07/2018,"6,288.08",73373-RESIDENTIAL & NURSING CARE PLACEMENTS,LD PACKAGE/PLACEMENT COSTS,Third Party Payments,Revenue
Walsall Council,http://opendatacommunities.org/id/metropolitan-district-council/walsall,WC94-82,31/07/2018,Adult Social Care,ACCORD HOUSING ASSOCIATION LTD#135,30/07/2018,"6,288.08",73373-RESIDENTIAL & NURSING CARE PLACEMENTS,LD PACKAGE/PLACEMENT COSTS,Third Party Payments,Revenue
Walsall Council,http://opendatacommunities.org/id/metropolitan-district-council/walsall,WC94-83,31/07/2018,Adult Social Care,ACCORD HOUSING ASSOCIATION LTD#135,11/07/2018,"10,105.04",73372-DOMICILIARY CARE,OP PACKAGE/PLACEMENT COSTS,Third Party Payments,Revenue
Walsall Council,http://opendatacommunities.org/id/metropolitan-district-council/walsall,WC94-84,31/07/2018,Resources and Transformation,ACCORD HOUSING ASSOCIATION LTD#135,26/07/2018,"23,744.55",73365-BLOCK GROSS-SUPPORTING PEOPLE,HOMELESSNESS PREVENTION STRATEGY,Third Party Payments,Revenue
Walsall Council,http://opendatacommunities.org/id/metropolitan-district-council/walsall,WC94-85,31/07/2018,Adult Social Care,ACCORD HOUSING ASSOCIATION LTD#135,20/07/2018,"39,400.29",73372-DOMICILIARY CARE,OP PACKAGE/PLACEMENT COSTS,Third Party Payments,Revenue
Walsall Council,http://opendatacommunities.org/id/metropolitan-district-council/walsall,WC94-86,31/07/2018,Adult Social Care,ACEPAY LTD (COTTAGE NUR HOME),24/07/2018,"1,821.14",73373-RESIDENTIAL & NURSING CARE PLACEMENTS,OP PACKAGE/PLACEMENT COSTS,Third Party Payments,Revenue
Walsall Council,http://opendatacommunities.org/id/metropolitan-district-council/walsall,WC94-87,31/07/2018,Adult Social Care,ACEPAY LTD (COTTAGE NUR HOME),10/07/2018,"1,869.79",73373-RESIDENTIAL & NURSING CARE PLACEMENTS,OP PACKAGE/PLACEMENT COSTS,Third Party Payments,Revenue
Walsall Council,http://opendatacommunities.org/id/metropolitan-district-council/walsall,WC94-88,31/07/2018,Adult Social Care,ACEPAY LTD (COTTAGE NUR HOME),10/07/2018,"2,258.21",73373-RESIDENTIAL & NURSING CARE PLACEMENTS,OP PACKAGE/PLACEMENT COSTS,Third Party Payments,Revenue
Walsall Council,http://opendatacommunities.org/id/metropolitan-district-council/walsall,WC94-89,31/07/2018,Adult Social Care,ACEPAY LTD (COTTAGE NUR HOME),10/07/2018,"2,258.21",73373-RESIDENTIAL & NURSING CARE PLACEMENTS,OP PACKAGE/PLACEMENT COSTS,Third Party Payments,Revenue
Walsall Council,http://opendatacommunities.org/id/metropolitan-district-council/walsall,WC94-90,31/07/2018,Adult Social Care,ACEPAY LTD (COTTAGE NUR HOME),10/07/2018,"2,258.22",73373-RESIDENTIAL & NURSING CARE PLACEMENTS,OP PACKAGE/PLACEMENT COSTS,Third Party Payments,Revenue
Walsall Council,http://opendatacommunities.org/id/metropolitan-district-council/walsall,WC94-91,31/07/2018,Adult Social Care,ACEPAY LTD (COTTAGE NUR HOME),10/07/2018,"2,258.22",73373-RESIDENTIAL & NURSING CARE PLACEMENTS,OP PACKAGE/PLACEMENT COSTS,Third Party Payments,Revenue
Walsall Council,http://opendatacommunities.org/id/metropolitan-district-council/walsall,WC94-92,31/07/2018,Adult Social Care,ACEPAY LTD (COTTAGE NUR HOME),10/07/2018,"2,258.22",73373-RESIDENTIAL & NURSING CARE PLACEMENTS,MENTAL HEALTH PACKAGE/PLACEMENT COSTS,Third Party Payments,Revenue
Walsall Council,http://opendatacommunities.org/id/metropolitan-district-council/walsall,WC94-93,31/07/2018,Adult Social Care,ACEPAY LTD (COTTAGE NUR HOME),10/07/2018,"2,258.22",73373-RESIDENTIAL & NURSING CARE PLACEMENTS,OP PACKAGE/PLACEMENT COSTS,Third Party Payments,Revenue
Walsall Council,http://opendatacommunities.org/id/metropolitan-district-council/walsall,WC94-94,31/07/2018,Adult Social Care,ACEPAY LTD (COTTAGE NUR HOME),10/07/2018,"2,258.22",73373-RESIDENTIAL & NURSING CARE PLACEMENTS,OP PACKAGE/PLACEMENT COSTS,Third Party Payments,Revenue
Walsall Council,http://opendatacommunities.org/id/metropolitan-district-council/walsall,WC94-95,31/07/2018,Adult Social Care,ACEPAY LTD (COTTAGE NUR HOME),24/07/2018,"2,258.22",73373-RESIDENTIAL & NURSING CARE PLACEMENTS,OP PACKAGE/PLACEMENT COSTS,Third Party Payments,Revenue
Walsall Council,http://opendatacommunities.org/id/metropolitan-district-council/walsall,WC94-96,31/07/2018,Adult Social Care,ACEPAY LTD (COTTAGE NUR HOME),24/07/2018,"2,695.29",73373-RESIDENTIAL & NURSING CARE PLACEMENTS,MENTAL HEALTH PACKAGE/PLACEMENT COSTS,Third Party Payments,Revenue
Walsall Council,http://opendatacommunities.org/id/metropolitan-district-council/walsall,WC94-97,31/07/2018,Economy & Environment,ACIVICO LTD,24/07/2018,"1,153.00",01001-OTHER CONSULTANTS FEES,CFR 1008 WALSALL MARKET,Capital,Capital
Walsall Council,http://opendatacommunities.org/id/metropolitan-district-council/walsall,WC94-98,31/07/2018,Childrens,ACKERS ADVENTURE,25/07/2018,630.00,62523-EVENTS,SCHOOL IMPROVEMENT-VIRTUAL SCHOOL,Supplies & Services,Revenue
Walsall Council,http://opendatacommunities.org/id/metropolitan-district-council/walsall,WC94-99,31/07/2018,Childrens,ACORN ABA LIMITED,01/07/2018,573.00,66502-TOP UP FUNDING -GRANTS TO SCHOOLS,INDEPENDENT PROVIDERS - SPECIAL & AP,Third Party Payments,Revenue
Walsall Council,http://opendatacommunities.org/id/metropolitan-district-council/walsall,WC94-100,31/07/2018,Adult Social Care,ACORN REST HOME,10/07/2018,"1,688.84",73373-RESIDENTIAL & NURSING CARE PLACEMENTS,OP PACKAGE/PLACEMENT COSTS,Third Party Payments,Revenue
Walsall Council,http://opendatacommunities.org/id/metropolitan-district-council/walsall,WC94-101,31/07/2018,Adult Social Care,ACORN REST HOME,24/07/2018,"2,140.00",73373-RESIDENTIAL & NURSING CARE PLACEMENTS,OP PACKAGE/PLACEMENT COSTS,Third Party Payments,Revenue
Walsall Council,http://opendatacommunities.org/id/metropolitan-district-council/walsall,WC94-102,31/07/2018,Childrens,ACORNS CHILDRENS HOSPICE TRUST,11/07/2018,750.00,63000-PROFESSIONAL FEES AND SERVICES,DIRECTLY COMMISSIONED NURSING SERVICES,Supplies & Services,Revenue
Walsall Council,http://opendatacommunities.org/id/metropolitan-district-council/walsall,WC94-103,31/07/2018,Economy & Environment,ACTION MIDLANDS LTD,12/07/2018,150.00,63000-PROFESSIONAL FEES AND SERVICES,YEI (IMPACT) PROGRAMME,Supplies & Services,Revenue
Walsall Council,http://opendatacommunities.org/id/metropolitan-district-council/walsall,WC94-104,31/07/2018,Economy & Environment,ACTION MIDLANDS LTD,12/07/2018,150.00,63000-PROFESSIONAL FEES AND SERVICES,YEI ESF FUNDING,Supplies & Services,Revenue
Walsall Council,http://opendatacommunities.org/id/metropolitan-district-council/walsall,WC94-105,31/07/2018,Economy & Environment,ACTION MIDLANDS LTD,02/07/2018,300.00,30030-EXTERNAL TRAINING,YEI (IMPACT) PROGRAMME,Employees,Revenue
Walsall Council,http://opendatacommunities.org/id/metropolitan-district-council/walsall,WC94-106,31/07/2018,Economy & Environment,ACTION MIDLANDS LTD,02/07/2018,300.00,30030-EXTERNAL TRAINING,YEI ESF FUNDING,Employees,Revenue
Walsall Council,http://opendatacommunities.org/id/metropolitan-district-council/walsall,WC94-107,31/07/2018,Economy & Environment,ACTION MIDLANDS LTD,25/07/2018,300.00,63000-PROFESSIONAL FEES AND SERVICES,YEI (IMPACT) PROGRAMME,Supplies & Services,Revenue
Walsall Council,http://opendatacommunities.org/id/metropolitan-district-council/walsall,WC94-108,31/07/2018,Economy & Environment,ACTION MIDLANDS LTD,25/07/2018,300.00,63000-PROFESSIONAL FEES AND SERVICES,YEI ESF FUNDING,Supplies & Services,Revenue
Walsall Council,http://opendatacommunities.org/id/metropolitan-district-council/walsall,WC94-109,31/07/2018,Resources and Transformation,ADA BUILDERS & JOINERS,27/07/2018,"27,072.90",01045-PRIVATE GRANTS,CFR 826 DISABLED FACILITIES GRANTS (SOCIAL SERVICES),Capital,Capital
Walsall Council,http://opendatacommunities.org/id/metropolitan-district-council/walsall,WC94-110,31/07/2018,Adult Social Care,REDACTED,11/07/2018,442.52,73506-DIRECT PAYMENT,LEARNING DISABILITY SUPPORT,Third Party Payments,Revenue
Walsall Council,http://opendatacommunities.org/id/metropolitan-district-council/walsall,WC94-111,31/07/2018,Adult Social Care,REDACTED,11/07/2018,448.60,73506-DIRECT PAYMENT,LEARNING DISABILITY SUPPORT,Third Party Payments,Revenue
Walsall Council,http://opendatacommunities.org/id/metropolitan-district-council/walsall,WC94-112,31/07/2018,Adult Social Care,ADASS,13/07/2018,"1,800.00",64500-PUBLICATIONS/ORGANISATIONS-SUBSCRIPTIONS,SENIOR MANAGEMENT TEAM,Supplies & Services,Revenue
Walsall Council,http://opendatacommunities.org/id/metropolitan-district-council/walsall,WC94-113,31/07/2018,Resources and Transformation,ADELIE FOODS LTD,16/07/2018,804.59,61305-CATERING,TOWN HALL RESTAURANT BISTRO,Supplies & Services,Revenue
Walsall Council,http://opendatacommunities.org/id/metropolitan-district-council/walsall,WC94-114,31/07/2018,Resources and Transformation,ADELIE FOODS LTD,04/07/2018,809.19,61305-CATERING,TOWN HALL RESTAURANT BISTRO,Supplies & Services,Revenue
Walsall Council,http://opendatacommunities.org/id/metropolitan-district-council/walsall,WC94-115,31/07/2018,Resources and Transformation,ADELIE FOODS LTD,16/07/2018,859.33,61305-CATERING,TOWN HALL RESTAURANT BISTRO,Supplies & Services,Revenue
Walsall Council,http://opendatacommunities.org/id/metropolitan-district-council/walsall,WC94-116,31/07/2018,Adult Social Care,REDACTED,11/07/2018,"1,016.00",73506-DIRECT PAYMENT,PHYSICAL SUPPORT,Third Party Payments,Revenue
Walsall Council,http://opendatacommunities.org/id/metropolitan-district-council/walsall,WC94-117,31/07/2018,Childrens,ADMIRAL SELF STORAGE LTD,06/07/2018,"1,564.29",63000-PROFESSIONAL FEES AND SERVICES,EDUCATION BUSINESS PARTNERSHIP (EBP),Supplies & Services,Revenue
Walsall Council,http://opendatacommunities.org/id/metropolitan-district-council/walsall,WC94-118,31/07/2018,Childrens,REDACTED,02/07/2018,333.12,74510-RESIDENTS ORDERS,ADOPTION ALLOWANCES,Third Party Payments,Revenue
Walsall Council,http://opendatacommunities.org/id/metropolitan-district-council/walsall,WC94-119,31/07/2018,Childrens,REDACTED,30/07/2018,333.12,74510-RESIDENTS ORDERS,ADOPTION ALLOWANCES,Third Party Payments,Revenue
Walsall Council,http://opendatacommunities.org/id/metropolitan-district-council/walsall,WC94-120,31/07/2018,Childrens,REDACTED,02/07/2018,361.12,74510-RESIDENTS ORDERS,ADOPTION ALLOWANCES,Third Party Payments,Revenue
Walsall Council,http://opendatacommunities.org/id/metropolitan-district-council/walsall,WC94-121,31/07/2018,Childrens,REDACTED,30/07/2018,361.12,74510-RESIDENTS ORDERS,ADOPTION ALLOWANCES,Third Party Payments,Revenue
Walsall Council,http://opendatacommunities.org/id/metropolitan-district-council/walsall,WC94-122,31/07/2018,Adult Social Care,REDACTED,11/07/2018,"2,083.20",73506-DIRECT PAYMENT,LEARNING DISABILITY SUPPORT,Third Party Payments,Revenue
Walsall Council,http://opendatacommunities.org/id/metropolitan-district-council/walsall,WC94-123,31/07/2018,Adult Social Care,ADVANCE HEALTH CARE (UK) LTD,26/07/2018,-379.35,73025-PROFESSIONAL SERVICES-PRIV CONTRACTOR & OTHER AGENCIES,COMMUNITY INTERMEDIATE CARE,Third Party Payments,Revenue
Walsall Council,http://opendatacommunities.org/id/metropolitan-district-council/walsall,WC94-124,31/07/2018,Adult Social Care,ADVANCE HEALTH CARE (UK) LTD,01/07/2018,252.90,73025-PROFESSIONAL SERVICES-PRIV CONTRACTOR & OTHER AGENCIES,COMMUNITY INTERMEDIATE CARE,Third Party Payments,Revenue
Walsall Council,http://opendatacommunities.org/id/metropolitan-district-council/walsall,WC94-125,31/07/2018,Adult Social Care,ADVANCE HEALTH CARE (UK) LTD,01/07/2018,252.90,73025-PROFESSIONAL SERVICES-PRIV CONTRACTOR & OTHER AGENCIES,COMMUNITY INTERMEDIATE CARE,Third Party Payments,Revenue
Walsall Council,http://opendatacommunities.org/id/metropolitan-district-council/walsall,WC94-126,31/07/2018,Adult Social Care,ADVANCE HEALTH CARE (UK) LTD,01/07/2018,252.90,73025-PROFESSIONAL SERVICES-PRIV CONTRACTOR & OTHER AGENCIES,COMMUNITY INTERMEDIATE CARE,Third Party Payments,Revenue
Walsall Council,http://opendatacommunities.org/id/metropolitan-district-council/walsall,WC94-127,31/07/2018,Adult Social Care,ADVANCE HEALTH CARE (UK) LTD,02/07/2018,252.90,73025-PROFESSIONAL SERVICES-PRIV CONTRACTOR & OTHER AGENCIES,COMMUNITY INTERMEDIATE CARE,Third Party Payments,Revenue
Walsall Council,http://opendatacommunities.org/id/metropolitan-district-council/walsall,WC94-128,31/07/2018,Adult Social Care,ADVANCE HEALTH CARE (UK) LTD,02/07/2018,252.90,73025-PROFESSIONAL SERVICES-PRIV CONTRACTOR & OTHER AGENCIES,COMMUNITY INTERMEDIATE CARE,Third Party Payments,Revenue
Walsall Council,http://opendatacommunities.org/id/metropolitan-district-council/walsall,WC94-129,31/07/2018,Adult Social Care,ADVANCE HEALTH CARE (UK) LTD,06/07/2018,252.90,73025-PROFESSIONAL SERVICES-PRIV CONTRACTOR & OTHER AGENCIES,RAPID RESPONSE,Third Party Payments,Revenue
Walsall Council,http://opendatacommunities.org/id/metropolitan-district-council/walsall,WC94-130,31/07/2018,Adult Social Care,ADVANCE HEALTH CARE (UK) LTD,11/07/2018,266.98,73025-PROFESSIONAL SERVICES-PRIV CONTRACTOR & OTHER AGENCIES,RAPID RESPONSE,Third Party Payments,Revenue
Walsall Council,http://opendatacommunities.org/id/metropolitan-district-council/walsall,WC94-131,31/07/2018,Adult Social Care,ADVANCE HEALTH CARE (UK) LTD,01/07/2018,281.00,73025-PROFESSIONAL SERVICES-PRIV CONTRACTOR & OTHER AGENCIES,COMMUNITY INTERMEDIATE CARE,Third Party Payments,Revenue
Walsall Council,http://opendatacommunities.org/id/metropolitan-district-council/walsall,WC94-132,31/07/2018,Adult Social Care,ADVANCE HEALTH CARE (UK) LTD,05/07/2018,281.00,73019-PSE'S-PRIV CONTRACTOR FEES,INTEGRATED DISCHARGE TEAM,Third Party Payments,Revenue
Walsall Council,http://opendatacommunities.org/id/metropolitan-district-council/walsall,WC94-133,31/07/2018,Adult Social Care,ADVANCE HEALTH CARE (UK) LTD,27/07/2018,281.00,73025-PROFESSIONAL SERVICES-PRIV CONTRACTOR & OTHER AGENCIES,COMMUNITY INTERMEDIATE CARE,Third Party Payments,Revenue
Walsall Council,http://opendatacommunities.org/id/metropolitan-district-council/walsall,WC94-134,31/07/2018,Adult Social Care,ADVANCE HEALTH CARE (UK) LTD,01/07/2018,281.75,73025-PROFESSIONAL SERVICES-PRIV CONTRACTOR & OTHER AGENCIES,COMMUNITY INTERMEDIATE CARE,Third Party Payments,Revenue
Walsall Council,http://opendatacommunities.org/id/metropolitan-district-council/walsall,WC94-135,31/07/2018,Adult Social Care,ADVANCE HEALTH CARE (UK) LTD,02/07/2018,281.75,73025-PROFESSIONAL SERVICES-PRIV CONTRACTOR & OTHER AGENCIES,COMMUNITY INTERMEDIATE CARE,Third Party Payments,Revenue
Walsall Council,http://opendatacommunities.org/id/metropolitan-district-council/walsall,WC94-136,31/07/2018,Adult Social Care,ADVANCE HEALTH CARE (UK) LTD,05/07/2018,281.75,73019-PSE'S-PRIV CONTRACTOR FEES,INTEGRATED DISCHARGE TEAM,Third Party Payments,Revenue
Walsall Council,http://opendatacommunities.org/id/metropolitan-district-council/walsall,WC94-137,31/07/2018,Adult Social Care,ADVANCE HEALTH CARE (UK) LTD,05/07/2018,281.75,73019-PSE'S-PRIV CONTRACTOR FEES,INTEGRATED DISCHARGE TEAM,Third Party Payments,Revenue
Walsall Council,http://opendatacommunities.org/id/metropolitan-district-council/walsall,WC94-138,31/07/2018,Adult Social Care,ADVANCE HEALTH CARE (UK) LTD,11/07/2018,281.75,73025-PROFESSIONAL SERVICES-PRIV CONTRACTOR & OTHER AGENCIES,COMMUNITY INTERMEDIATE CARE,Third Party Payments,Revenue
Walsall Council,http://opendatacommunities.org/id/metropolitan-district-council/walsall,WC94-139,31/07/2018,Adult Social Care,ADVANCE HEALTH CARE (UK) LTD,02/07/2018,288.03,73025-PROFESSIONAL SERVICES-PRIV CONTRACTOR & OTHER AGENCIES,COMMUNITY INTERMEDIATE CARE,Third Party Payments,Revenue
Walsall Council,http://opendatacommunities.org/id/metropolitan-district-council/walsall,WC94-140,31/07/2018,Adult Social Care,ADVANCE HEALTH CARE (UK) LTD,05/07/2018,288.03,73025-PROFESSIONAL SERVICES-PRIV CONTRACTOR & OTHER AGENCIES,COMMUNITY INTERMEDIATE CARE,Third Party Payments,Revenue
Walsall Council,http://opendatacommunities.org/id/metropolitan-district-council/walsall,WC94-141,31/07/2018,Adult Social Care,ADVANCE HEALTH CARE (UK) LTD,05/07/2018,295.05,73019-PSE'S-PRIV CONTRACTOR FEES,INTEGRATED DISCHARGE TEAM,Third Party Payments,Revenue
Walsall Council,http://opendatacommunities.org/id/metropolitan-district-council/walsall,WC94-142,31/07/2018,Adult Social Care,ADVANCE HEALTH CARE (UK) LTD,26/07/2018,316.13,73019-PSE'S-PRIV CONTRACTOR FEES,INTEGRATED DISCHARGE TEAM,Third Party Payments,Revenue
Walsall Council,http://opendatacommunities.org/id/metropolitan-district-council/walsall,WC94-143,31/07/2018,Adult Social Care,ADVANCE HEALTH CARE (UK) LTD,02/07/2018,330.18,73025-PROFESSIONAL SERVICES-PRIV CONTRACTOR & OTHER AGENCIES,COMMUNITY INTERMEDIATE CARE,Third Party Payments,Revenue
Walsall Council,http://opendatacommunities.org/id/metropolitan-district-council/walsall,WC94-144,31/07/2018,Adult Social Care,ADVANCE HEALTH CARE (UK) LTD,01/07/2018,344.23,73025-PROFESSIONAL SERVICES-PRIV CONTRACTOR & OTHER AGENCIES,COMMUNITY INTERMEDIATE CARE,Third Party Payments,Revenue
Walsall Council,http://opendatacommunities.org/id/metropolitan-district-council/walsall,WC94-145,31/07/2018,Adult Social Care,ADVANCE HEALTH CARE (UK) LTD,23/07/2018,393.40,73025-PROFESSIONAL SERVICES-PRIV CONTRACTOR & OTHER AGENCIES,RAPID RESPONSE,Third Party Payments,Revenue
Walsall Council,http://opendatacommunities.org/id/metropolitan-district-council/walsall,WC94-146,31/07/2018,Adult Social Care,ADVANCE HEALTH CARE (UK) LTD,05/07/2018,414.48,73019-PSE'S-PRIV CONTRACTOR FEES,INTEGRATED DISCHARGE TEAM,Third Party Payments,Revenue
Walsall Council,http://opendatacommunities.org/id/metropolitan-district-council/walsall,WC94-147,31/07/2018,Adult Social Care,ADVANCE HEALTH CARE (UK) LTD,01/07/2018,442.58,73025-PROFESSIONAL SERVICES-PRIV CONTRACTOR & OTHER AGENCIES,COMMUNITY INTERMEDIATE CARE,Third Party Payments,Revenue
Walsall Council,http://opendatacommunities.org/id/metropolitan-district-council/walsall,WC94-148,31/07/2018,Adult Social Care,ADVANCE HEALTH CARE (UK) LTD,01/07/2018,442.58,73025-PROFESSIONAL SERVICES-PRIV CONTRACTOR & OTHER AGENCIES,COMMUNITY INTERMEDIATE CARE,Third Party Payments,Revenue
Walsall Council,http://opendatacommunities.org/id/metropolitan-district-council/walsall,WC94-149,31/07/2018,Adult Social Care,ADVANCE HEALTH CARE (UK) LTD,01/07/2018,442.58,73025-PROFESSIONAL SERVICES-PRIV CONTRACTOR & OTHER AGENCIES,COMMUNITY INTERMEDIATE CARE,Third Party Payments,Revenue
Walsall Council,http://opendatacommunities.org/id/metropolitan-district-council/walsall,WC94-150,31/07/2018,Adult Social Care,ADVANCE HEALTH CARE (UK) LTD,01/07/2018,442.58,73025-PROFESSIONAL SERVICES-PRIV CONTRACTOR & OTHER AGENCIES,COMMUNITY INTERMEDIATE CARE,Third Party Payments,Revenue
Walsall Council,http://opendatacommunities.org/id/metropolitan-district-council/walsall,WC94-151,31/07/2018,Adult Social Care,ADVANCE HEALTH CARE (UK) LTD,01/07/2018,442.58,73025-PROFESSIONAL SERVICES-PRIV CONTRACTOR & OTHER AGENCIES,COMMUNITY INTERMEDIATE CARE,Third Party Payments,Revenue
Walsall Council,http://opendatacommunities.org/id/metropolitan-district-council/walsall,WC94-152,31/07/2018,Adult Social Care,ADVANCE HEALTH CARE (UK) LTD,01/07/2018,442.58,73025-PROFESSIONAL SERVICES-PRIV CONTRACTOR & OTHER AGENCIES,COMMUNITY INTERMEDIATE CARE,Third Party Payments,Revenue
Walsall Council,http://opendatacommunities.org/id/metropolitan-district-council/walsall,WC94-153,31/07/2018,Adult Social Care,ADVANCE HEALTH CARE (UK) LTD,01/07/2018,442.58,73025-PROFESSIONAL SERVICES-PRIV CONTRACTOR & OTHER AGENCIES,COMMUNITY INTERMEDIATE CARE,Third Party Payments,Revenue
Walsall Council,http://opendatacommunities.org/id/metropolitan-district-council/walsall,WC94-154,31/07/2018,Adult Social Care,ADVANCE HEALTH CARE (UK) LTD,01/07/2018,442.58,73025-PROFESSIONAL SERVICES-PRIV CONTRACTOR & OTHER AGENCIES,COMMUNITY INTERMEDIATE CARE,Third Party Payments,Revenue
Walsall Council,http://opendatacommunities.org/id/metropolitan-district-council/walsall,WC94-155,31/07/2018,Adult Social Care,ADVANCE HEALTH CARE (UK) LTD,01/07/2018,442.58,73025-PROFESSIONAL SERVICES-PRIV CONTRACTOR & OTHER AGENCIES,COMMUNITY INTERMEDIATE CARE,Third Party Payments,Revenue
Walsall Council,http://opendatacommunities.org/id/metropolitan-district-council/walsall,WC94-156,31/07/2018,Adult Social Care,ADVANCE HEALTH CARE (UK) LTD,02/07/2018,442.58,73025-PROFESSIONAL SERVICES-PRIV CONTRACTOR & OTHER AGENCIES,COMMUNITY INTERMEDIATE CARE,Third Party Payments,Revenue
Walsall Council,http://opendatacommunities.org/id/metropolitan-district-council/walsall,WC94-157,31/07/2018,Adult Social Care,ADVANCE HEALTH CARE (UK) LTD,02/07/2018,442.58,73025-PROFESSIONAL SERVICES-PRIV CONTRACTOR & OTHER AGENCIES,COMMUNITY INTERMEDIATE CARE,Third Party Payments,Revenue
Walsall Council,http://opendatacommunities.org/id/metropolitan-district-council/walsall,WC94-158,31/07/2018,Adult Social Care,ADVANCE HEALTH CARE (UK) LTD,02/07/2018,442.58,73025-PROFESSIONAL SERVICES-PRIV CONTRACTOR & OTHER AGENCIES,COMMUNITY INTERMEDIATE CARE,Third Party Payments,Revenue
Walsall Council,http://opendatacommunities.org/id/metropolitan-district-council/walsall,WC94-159,31/07/2018,Adult Social Care,ADVANCE HEALTH CARE (UK) LTD,02/07/2018,442.58,73025-PROFESSIONAL SERVICES-PRIV CONTRACTOR & OTHER AGENCIES,COMMUNITY INTERMEDIATE CARE,Third Party Payments,Revenue
Walsall Council,http://opendatacommunities.org/id/metropolitan-district-council/walsall,WC94-160,31/07/2018,Adult Social Care,ADVANCE HEALTH CARE (UK) LTD,02/07/2018,442.58,73025-PROFESSIONAL SERVICES-PRIV CONTRACTOR & OTHER AGENCIES,COMMUNITY INTERMEDIATE CARE,Third Party Payments,Revenue
Walsall Council,http://opendatacommunities.org/id/metropolitan-district-council/walsall,WC94-161,31/07/2018,Adult Social Care,ADVANCE HEALTH CARE (UK) LTD,05/07/2018,442.58,73019-PSE'S-PRIV CONTRACTOR FEES,INTEGRATED DISCHARGE TEAM,Third Party Payments,Revenue
Walsall Council,http://opendatacommunities.org/id/metropolitan-district-council/walsall,WC94-162,31/07/2018,Adult Social Care,ADVANCE HEALTH CARE (UK) LTD,05/07/2018,442.58,73019-PSE'S-PRIV CONTRACTOR FEES,INTEGRATED DISCHARGE TEAM,Third Party Payments,Revenue
Walsall Council,http://opendatacommunities.org/id/metropolitan-district-council/walsall,WC94-163,31/07/2018,Adult Social Care,ADVANCE HEALTH CARE (UK) LTD,05/07/2018,442.58,73019-PSE'S-PRIV CONTRACTOR FEES,INTEGRATED DISCHARGE TEAM,Third Party Payments,Revenue
Walsall Council,http://opendatacommunities.org/id/metropolitan-district-council/walsall,WC94-164,31/07/2018,Adult Social Care,ADVANCE HEALTH CARE (UK) LTD,05/07/2018,442.58,73019-PSE'S-PRIV CONTRACTOR FEES,INTEGRATED DISCHARGE TEAM,Third Party Payments,Revenue
Walsall Council,http://opendatacommunities.org/id/metropolitan-district-council/walsall,WC94-165,31/07/2018,Adult Social Care,ADVANCE HEALTH CARE (UK) LTD,05/07/2018,442.58,73019-PSE'S-PRIV CONTRACTOR FEES,INTEGRATED DISCHARGE TEAM,Third Party Payments,Revenue
Walsall Council,http://opendatacommunities.org/id/metropolitan-district-council/walsall,WC94-166,31/07/2018,Adult Social Care,ADVANCE HEALTH CARE (UK) LTD,05/07/2018,442.58,73019-PSE'S-PRIV CONTRACTOR FEES,INTEGRATED DISCHARGE TEAM,Third Party Payments,Revenue
Walsall Council,http://opendatacommunities.org/id/metropolitan-district-council/walsall,WC94-167,31/07/2018,Adult Social Care,ADVANCE HEALTH CARE (UK) LTD,05/07/2018,442.58,73019-PSE'S-PRIV CONTRACTOR FEES,INTEGRATED DISCHARGE TEAM,Third Party Payments,Revenue
Walsall Council,http://opendatacommunities.org/id/metropolitan-district-council/walsall,WC94-168,31/07/2018,Adult Social Care,ADVANCE HEALTH CARE (UK) LTD,05/07/2018,442.58,73019-PSE'S-PRIV CONTRACTOR FEES,INTEGRATED DISCHARGE TEAM,Third Party Payments,Revenue
Walsall Council,http://opendatacommunities.org/id/metropolitan-district-council/walsall,WC94-169,31/07/2018,Adult Social Care,ADVANCE HEALTH CARE (UK) LTD,05/07/2018,442.58,73019-PSE'S-PRIV CONTRACTOR FEES,INTEGRATED DISCHARGE TEAM,Third Party Payments,Revenue
Walsall Council,http://opendatacommunities.org/id/metropolitan-district-council/walsall,WC94-170,31/07/2018,Adult Social Care,ADVANCE HEALTH CARE (UK) LTD,05/07/2018,442.58,73019-PSE'S-PRIV CONTRACTOR FEES,INTEGRATED DISCHARGE TEAM,Third Party Payments,Revenue
Walsall Council,http://opendatacommunities.org/id/metropolitan-district-council/walsall,WC94-171,31/07/2018,Adult Social Care,ADVANCE HEALTH CARE (UK) LTD,05/07/2018,442.58,73019-PSE'S-PRIV CONTRACTOR FEES,INTEGRATED DISCHARGE TEAM,Third Party Payments,Revenue
Walsall Council,http://opendatacommunities.org/id/metropolitan-district-council/walsall,WC94-172,31/07/2018,Adult Social Care,ADVANCE HEALTH CARE (UK) LTD,05/07/2018,442.58,73019-PSE'S-PRIV CONTRACTOR FEES,INTEGRATED DISCHARGE TEAM,Third Party Payments,Revenue
Walsall Council,http://opendatacommunities.org/id/metropolitan-district-council/walsall,WC94-173,31/07/2018,Adult Social Care,ADVANCE HEALTH CARE (UK) LTD,05/07/2018,442.58,73019-PSE'S-PRIV CONTRACTOR FEES,INTEGRATED DISCHARGE TEAM,Third Party Payments,Revenue
Walsall Council,http://opendatacommunities.org/id/metropolitan-district-council/walsall,WC94-174,31/07/2018,Adult Social Care,ADVANCE HEALTH CARE (UK) LTD,05/07/2018,442.58,73019-PSE'S-PRIV CONTRACTOR FEES,INTEGRATED DISCHARGE TEAM,Third Party Payments,Revenue
Walsall Council,http://opendatacommunities.org/id/metropolitan-district-council/walsall,WC94-175,31/07/2018,Adult Social Care,ADVANCE HEALTH CARE (UK) LTD,05/07/2018,442.58,73019-PSE'S-PRIV CONTRACTOR FEES,INTEGRATED DISCHARGE TEAM,Third Party Payments,Revenue
Walsall Council,http://opendatacommunities.org/id/metropolitan-district-council/walsall,WC94-176,31/07/2018,Adult Social Care,ADVANCE HEALTH CARE (UK) LTD,05/07/2018,442.58,73019-PSE'S-PRIV CONTRACTOR FEES,INTEGRATED DISCHARGE TEAM,Third Party Payments,Revenue
Walsall Council,http://opendatacommunities.org/id/metropolitan-district-council/walsall,WC94-177,31/07/2018,Adult Social Care,ADVANCE HEALTH CARE (UK) LTD,05/07/2018,442.58,73025-PROFESSIONAL SERVICES-PRIV CONTRACTOR & OTHER AGENCIES,COMMUNITY INTERMEDIATE CARE,Third Party Payments,Revenue
Walsall Council,http://opendatacommunities.org/id/metropolitan-district-council/walsall,WC94-178,31/07/2018,Adult Social Care,ADVANCE HEALTH CARE (UK) LTD,05/07/2018,442.58,73025-PROFESSIONAL SERVICES-PRIV CONTRACTOR & OTHER AGENCIES,COMMUNITY INTERMEDIATE CARE,Third Party Payments,Revenue
Walsall Council,http://opendatacommunities.org/id/metropolitan-district-council/walsall,WC94-179,31/07/2018,Adult Social Care,ADVANCE HEALTH CARE (UK) LTD,05/07/2018,442.58,73025-PROFESSIONAL SERVICES-PRIV CONTRACTOR & OTHER AGENCIES,COMMUNITY INTERMEDIATE CARE,Third Party Payments,Revenue
Walsall Council,http://opendatacommunities.org/id/metropolitan-district-council/walsall,WC94-180,31/07/2018,Adult Social Care,ADVANCE HEALTH CARE (UK) LTD,05/07/2018,442.58,73025-PROFESSIONAL SERVICES-PRIV CONTRACTOR & OTHER AGENCIES,COMMUNITY INTERMEDIATE CARE,Third Party Payments,Revenue
Walsall Council,http://opendatacommunities.org/id/metropolitan-district-council/walsall,WC94-181,31/07/2018,Adult Social Care,ADVANCE HEALTH CARE (UK) LTD,05/07/2018,442.58,73019-PSE'S-PRIV CONTRACTOR FEES,INTEGRATED DISCHARGE TEAM,Third Party Payments,Revenue
Walsall Council,http://opendatacommunities.org/id/metropolitan-district-council/walsall,WC94-182,31/07/2018,Adult Social Care,ADVANCE HEALTH CARE (UK) LTD,11/07/2018,442.58,73019-PSE'S-PRIV CONTRACTOR FEES,INTEGRATED DISCHARGE TEAM,Third Party Payments,Revenue
Walsall Council,http://opendatacommunities.org/id/metropolitan-district-council/walsall,WC94-183,31/07/2018,Adult Social Care,ADVANCE HEALTH CARE (UK) LTD,11/07/2018,442.58,73025-PROFESSIONAL SERVICES-PRIV CONTRACTOR & OTHER AGENCIES,COMMUNITY INTERMEDIATE CARE,Third Party Payments,Revenue
Walsall Council,http://opendatacommunities.org/id/metropolitan-district-council/walsall,WC94-184,31/07/2018,Adult Social Care,ADVANCE HEALTH CARE (UK) LTD,11/07/2018,442.58,73025-PROFESSIONAL SERVICES-PRIV CONTRACTOR & OTHER AGENCIES,COMMUNITY INTERMEDIATE CARE,Third Party Payments,Revenue
Walsall Council,http://opendatacommunities.org/id/metropolitan-district-council/walsall,WC94-185,31/07/2018,Adult Social Care,ADVANCE HEALTH CARE (UK) LTD,11/07/2018,442.58,73025-PROFESSIONAL SERVICES-PRIV CONTRACTOR & OTHER AGENCIES,COMMUNITY INTERMEDIATE CARE,Third Party Payments,Revenue
Walsall Council,http://opendatacommunities.org/id/metropolitan-district-council/walsall,WC94-186,31/07/2018,Adult Social Care,ADVANCE HEALTH CARE (UK) LTD,11/07/2018,442.58,73025-PROFESSIONAL SERVICES-PRIV CONTRACTOR & OTHER AGENCIES,COMMUNITY INTERMEDIATE CARE,Third Party Payments,Revenue
Walsall Council,http://opendatacommunities.org/id/metropolitan-district-council/walsall,WC94-187,31/07/2018,Adult Social Care,ADVANCE HEALTH CARE (UK) LTD,11/07/2018,442.58,73025-PROFESSIONAL SERVICES-PRIV CONTRACTOR & OTHER AGENCIES,COMMUNITY INTERMEDIATE CARE,Third Party Payments,Revenue
Walsall Council,http://opendatacommunities.org/id/metropolitan-district-council/walsall,WC94-188,31/07/2018,Adult Social Care,ADVANCE HEALTH CARE (UK) LTD,11/07/2018,442.58,73025-PROFESSIONAL SERVICES-PRIV CONTRACTOR & OTHER AGENCIES,COMMUNITY INTERMEDIATE CARE,Third Party Payments,Revenue
Walsall Council,http://opendatacommunities.org/id/metropolitan-district-council/walsall,WC94-189,31/07/2018,Adult Social Care,ADVANCE HEALTH CARE (UK) LTD,11/07/2018,442.58,73025-PROFESSIONAL SERVICES-PRIV CONTRACTOR & OTHER AGENCIES,COMMUNITY INTERMEDIATE CARE,Third Party Payments,Revenue
Walsall Council,http://opendatacommunities.org/id/metropolitan-district-council/walsall,WC94-190,31/07/2018,Adult Social Care,ADVANCE HEALTH CARE (UK) LTD,11/07/2018,442.58,73025-PROFESSIONAL SERVICES-PRIV CONTRACTOR & OTHER AGENCIES,COMMUNITY INTERMEDIATE CARE,Third Party Payments,Revenue
Walsall Council,http://opendatacommunities.org/id/metropolitan-district-council/walsall,WC94-191,31/07/2018,Adult Social Care,ADVANCE HEALTH CARE (UK) LTD,11/07/2018,442.58,73025-PROFESSIONAL SERVICES-PRIV CONTRACTOR & OTHER AGENCIES,COMMUNITY INTERMEDIATE CARE,Third Party Payments,Revenue
Walsall Council,http://opendatacommunities.org/id/metropolitan-district-council/walsall,WC94-192,31/07/2018,Adult Social Care,ADVANCE HEALTH CARE (UK) LTD,11/07/2018,442.58,73025-PROFESSIONAL SERVICES-PRIV CONTRACTOR & OTHER AGENCIES,COMMUNITY INTERMEDIATE CARE,Third Party Payments,Revenue
Walsall Council,http://opendatacommunities.org/id/metropolitan-district-council/walsall,WC94-193,31/07/2018,Adult Social Care,ADVANCE HEALTH CARE (UK) LTD,11/07/2018,442.58,73025-PROFESSIONAL SERVICES-PRIV CONTRACTOR & OTHER AGENCIES,COMMUNITY INTERMEDIATE CARE,Third Party Payments,Revenue
Walsall Council,http://opendatacommunities.org/id/metropolitan-district-council/walsall,WC94-194,31/07/2018,Adult Social Care,ADVANCE HEALTH CARE (UK) LTD,11/07/2018,442.58,73025-PROFESSIONAL SERVICES-PRIV CONTRACTOR & OTHER AGENCIES,COMMUNITY INTERMEDIATE CARE,Third Party Payments,Revenue
Walsall Council,http://opendatacommunities.org/id/metropolitan-district-council/walsall,WC94-195,31/07/2018,Adult Social Care,ADVANCE HEALTH CARE (UK) LTD,25/07/2018,442.58,73025-PROFESSIONAL SERVICES-PRIV CONTRACTOR & OTHER AGENCIES,COMMUNITY INTERMEDIATE CARE,Third Party Payments,Revenue
Walsall Council,http://opendatacommunities.org/id/metropolitan-district-council/walsall,WC94-196,31/07/2018,Adult Social Care,ADVANCE HEALTH CARE (UK) LTD,25/07/2018,442.58,73025-PROFESSIONAL SERVICES-PRIV CONTRACTOR & OTHER AGENCIES,COMMUNITY INTERMEDIATE CARE,Third Party Payments,Revenue
Walsall Council,http://opendatacommunities.org/id/metropolitan-district-council/walsall,WC94-197,31/07/2018,Adult Social Care,ADVANCE HEALTH CARE (UK) LTD,25/07/2018,442.58,73025-PROFESSIONAL SERVICES-PRIV CONTRACTOR & OTHER AGENCIES,COMMUNITY INTERMEDIATE CARE,Third Party Payments,Revenue
Walsall Council,http://opendatacommunities.org/id/metropolitan-district-council/walsall,WC94-198,31/07/2018,Adult Social Care,ADVANCE HEALTH CARE (UK) LTD,25/07/2018,442.58,73025-PROFESSIONAL SERVICES-PRIV CONTRACTOR & OTHER AGENCIES,COMMUNITY INTERMEDIATE CARE,Third Party Payments,Revenue
Walsall Council,http://opendatacommunities.org/id/metropolitan-district-council/walsall,WC94-199,31/07/2018,Adult Social Care,ADVANCE HEALTH CARE (UK) LTD,26/07/2018,442.58,73019-PSE'S-PRIV CONTRACTOR FEES,INTEGRATED DISCHARGE TEAM,Third Party Payments,Revenue
Walsall Council,http://opendatacommunities.org/id/metropolitan-district-council/walsall,WC94-200,31/07/2018,Adult Social Care,ADVANCE HEALTH CARE (UK) LTD,26/07/2018,442.58,73025-PROFESSIONAL SERVICES-PRIV CONTRACTOR & OTHER AGENCIES,COMMUNITY INTERMEDIATE CARE,Third Party Payments,Revenue
Walsall Council,http://opendatacommunities.org/id/metropolitan-district-council/walsall,WC94-201,31/07/2018,Adult Social Care,ADVANCE HEALTH CARE (UK) LTD,26/07/2018,442.58,73025-PROFESSIONAL SERVICES-PRIV CONTRACTOR & OTHER AGENCIES,COMMUNITY INTERMEDIATE CARE,Third Party Payments,Revenue
Walsall Council,http://opendatacommunities.org/id/metropolitan-district-council/walsall,WC94-202,31/07/2018,Adult Social Care,ADVANCE HEALTH CARE (UK) LTD,26/07/2018,442.58,73025-PROFESSIONAL SERVICES-PRIV CONTRACTOR & OTHER AGENCIES,COMMUNITY INTERMEDIATE CARE,Third Party Payments,Revenue
Walsall Council,http://opendatacommunities.org/id/metropolitan-district-council/walsall,WC94-203,31/07/2018,Adult Social Care,ADVANCE HEALTH CARE (UK) LTD,26/07/2018,442.58,73025-PROFESSIONAL SERVICES-PRIV CONTRACTOR & OTHER AGENCIES,COMMUNITY INTERMEDIATE CARE,Third Party Payments,Revenue
Walsall Council,http://opendatacommunities.org/id/metropolitan-district-council/walsall,WC94-204,31/07/2018,Adult Social Care,ADVANCE HEALTH CARE (UK) LTD,26/07/2018,442.58,73019-PSE'S-PRIV CONTRACTOR FEES,INTEGRATED DISCHARGE TEAM,Third Party Payments,Revenue
Walsall Council,http://opendatacommunities.org/id/metropolitan-district-council/walsall,WC94-205,31/07/2018,Adult Social Care,ADVANCE HEALTH CARE (UK) LTD,26/07/2018,442.58,73019-PSE'S-PRIV CONTRACTOR FEES,INTEGRATED DISCHARGE TEAM,Third Party Payments,Revenue
Walsall Council,http://opendatacommunities.org/id/metropolitan-district-council/walsall,WC94-206,31/07/2018,Adult Social Care,ADVANCE HEALTH CARE (UK) LTD,26/07/2018,442.58,73019-PSE'S-PRIV CONTRACTOR FEES,INTEGRATED DISCHARGE TEAM,Third Party Payments,Revenue
Walsall Council,http://opendatacommunities.org/id/metropolitan-district-council/walsall,WC94-207,31/07/2018,Adult Social Care,ADVANCE HEALTH CARE (UK) LTD,26/07/2018,442.58,73019-PSE'S-PRIV CONTRACTOR FEES,INTEGRATED DISCHARGE TEAM,Third Party Payments,Revenue
Walsall Council,http://opendatacommunities.org/id/metropolitan-district-council/walsall,WC94-208,31/07/2018,Adult Social Care,ADVANCE HEALTH CARE (UK) LTD,26/07/2018,442.58,73019-PSE'S-PRIV CONTRACTOR FEES,INTEGRATED DISCHARGE TEAM,Third Party Payments,Revenue
Walsall Council,http://opendatacommunities.org/id/metropolitan-district-council/walsall,WC94-209,31/07/2018,Adult Social Care,ADVANCE HEALTH CARE (UK) LTD,26/07/2018,442.58,73019-PSE'S-PRIV CONTRACTOR FEES,INTEGRATED DISCHARGE TEAM,Third Party Payments,Revenue
Walsall Council,http://opendatacommunities.org/id/metropolitan-district-council/walsall,WC94-210,31/07/2018,Adult Social Care,ADVANCE HEALTH CARE (UK) LTD,26/07/2018,442.58,73019-PSE'S-PRIV CONTRACTOR FEES,INTEGRATED DISCHARGE TEAM,Third Party Payments,Revenue
Walsall Council,http://opendatacommunities.org/id/metropolitan-district-council/walsall,WC94-211,31/07/2018,Adult Social Care,ADVANCE HEALTH CARE (UK) LTD,26/07/2018,442.58,73019-PSE'S-PRIV CONTRACTOR FEES,INTEGRATED DISCHARGE TEAM,Third Party Payments,Revenue
Walsall Council,http://opendatacommunities.org/id/metropolitan-district-council/walsall,WC94-212,31/07/2018,Adult Social Care,ADVANCE HEALTH CARE (UK) LTD,26/07/2018,442.58,73019-PSE'S-PRIV CONTRACTOR FEES,INTEGRATED DISCHARGE TEAM,Third Party Payments,Revenue
Walsall Council,http://opendatacommunities.org/id/metropolitan-district-council/walsall,WC94-213,31/07/2018,Adult Social Care,ADVANCE HEALTH CARE (UK) LTD,26/07/2018,442.58,73019-PSE'S-PRIV CONTRACTOR FEES,INTEGRATED DISCHARGE TEAM,Third Party Payments,Revenue
Walsall Council,http://opendatacommunities.org/id/metropolitan-district-council/walsall,WC94-214,31/07/2018,Adult Social Care,ADVANCE HEALTH CARE (UK) LTD,27/07/2018,442.58,73025-PROFESSIONAL SERVICES-PRIV CONTRACTOR & OTHER AGENCIES,COMMUNITY INTERMEDIATE CARE,Third Party Payments,Revenue
Walsall Council,http://opendatacommunities.org/id/metropolitan-district-council/walsall,WC94-215,31/07/2018,Adult Social Care,ADVANCE HEALTH CARE (UK) LTD,27/07/2018,442.58,73025-PROFESSIONAL SERVICES-PRIV CONTRACTOR & OTHER AGENCIES,COMMUNITY INTERMEDIATE CARE,Third Party Payments,Revenue
Walsall Council,http://opendatacommunities.org/id/metropolitan-district-council/walsall,WC94-216,31/07/2018,Adult Social Care,ADVANCE HEALTH CARE (UK) LTD,27/07/2018,442.58,73025-PROFESSIONAL SERVICES-PRIV CONTRACTOR & OTHER AGENCIES,COMMUNITY INTERMEDIATE CARE,Third Party Payments,Revenue
Walsall Council,http://opendatacommunities.org/id/metropolitan-district-council/walsall,WC94-217,31/07/2018,Adult Social Care,ADVANCE HEALTH CARE (UK) LTD,11/07/2018,456.63,73025-PROFESSIONAL SERVICES-PRIV CONTRACTOR & OTHER AGENCIES,COMMUNITY INTERMEDIATE CARE,Third Party Payments,Revenue
Walsall Council,http://opendatacommunities.org/id/metropolitan-district-council/walsall,WC94-218,31/07/2018,Adult Social Care,ADVANCE HEALTH CARE (UK) LTD,11/07/2018,456.63,73025-PROFESSIONAL SERVICES-PRIV CONTRACTOR & OTHER AGENCIES,COMMUNITY INTERMEDIATE CARE,Third Party Payments,Revenue
Walsall Council,http://opendatacommunities.org/id/metropolitan-district-council/walsall,WC94-219,31/07/2018,Adult Social Care,ADVANCE HEALTH CARE (UK) LTD,27/07/2018,456.63,73025-PROFESSIONAL SERVICES-PRIV CONTRACTOR & OTHER AGENCIES,COMMUNITY INTERMEDIATE CARE,Third Party Payments,Revenue
Walsall Council,http://opendatacommunities.org/id/metropolitan-district-council/walsall,WC94-220,31/07/2018,Adult Social Care,ADVANCE HEALTH CARE (UK) LTD,27/07/2018,456.63,73025-PROFESSIONAL SERVICES-PRIV CONTRACTOR & OTHER AGENCIES,COMMUNITY INTERMEDIATE CARE,Third Party Payments,Revenue
Walsall Council,http://opendatacommunities.org/id/metropolitan-district-council/walsall,WC94-221,31/07/2018,Adult Social Care,ADVANCE HEALTH CARE (UK) LTD,01/07/2018,470.68,73025-PROFESSIONAL SERVICES-PRIV CONTRACTOR & OTHER AGENCIES,COMMUNITY INTERMEDIATE CARE,Third Party Payments,Revenue
Walsall Council,http://opendatacommunities.org/id/metropolitan-district-council/walsall,WC94-222,31/07/2018,Adult Social Care,ADVANCE HEALTH CARE (UK) LTD,26/07/2018,498.78,73025-PROFESSIONAL SERVICES-PRIV CONTRACTOR & OTHER AGENCIES,COMMUNITY INTERMEDIATE CARE,Third Party Payments,Revenue
Walsall Council,http://opendatacommunities.org/id/metropolitan-district-council/walsall,WC94-223,31/07/2018,Adult Social Care,ADVANCE HEALTH CARE (UK) LTD,26/07/2018,505.80,73019-PSE'S-PRIV CONTRACTOR FEES,INTEGRATED DISCHARGE TEAM,Third Party Payments,Revenue
Walsall Council,http://opendatacommunities.org/id/metropolitan-district-council/walsall,WC94-224,31/07/2018,Adult Social Care,ADVANCE HEALTH CARE (UK) LTD,01/07/2018,526.88,73025-PROFESSIONAL SERVICES-PRIV CONTRACTOR & OTHER AGENCIES,COMMUNITY INTERMEDIATE CARE,Third Party Payments,Revenue
Walsall Council,http://opendatacommunities.org/id/metropolitan-district-council/walsall,WC94-225,31/07/2018,Adult Social Care,ADVANCE HEALTH CARE (UK) LTD,01/07/2018,540.93,73025-PROFESSIONAL SERVICES-PRIV CONTRACTOR & OTHER AGENCIES,COMMUNITY INTERMEDIATE CARE,Third Party Payments,Revenue
Walsall Council,http://opendatacommunities.org/id/metropolitan-district-council/walsall,WC94-226,31/07/2018,Adult Social Care,ADVANCE HEALTH CARE (UK) LTD,02/07/2018,540.93,73025-PROFESSIONAL SERVICES-PRIV CONTRACTOR & OTHER AGENCIES,COMMUNITY INTERMEDIATE CARE,Third Party Payments,Revenue
Walsall Council,http://opendatacommunities.org/id/metropolitan-district-council/walsall,WC94-227,31/07/2018,Adult Social Care,ADVANCE HEALTH CARE (UK) LTD,02/07/2018,540.93,73025-PROFESSIONAL SERVICES-PRIV CONTRACTOR & OTHER AGENCIES,COMMUNITY INTERMEDIATE CARE,Third Party Payments,Revenue
Walsall Council,http://opendatacommunities.org/id/metropolitan-district-council/walsall,WC94-228,31/07/2018,Adult Social Care,ADVANCE HEALTH CARE (UK) LTD,11/07/2018,540.93,73025-PROFESSIONAL SERVICES-PRIV CONTRACTOR & OTHER AGENCIES,COMMUNITY INTERMEDIATE CARE,Third Party Payments,Revenue
Walsall Council,http://opendatacommunities.org/id/metropolitan-district-council/walsall,WC94-229,31/07/2018,Adult Social Care,ADVANCE HEALTH CARE (UK) LTD,27/07/2018,540.93,73025-PROFESSIONAL SERVICES-PRIV CONTRACTOR & OTHER AGENCIES,COMMUNITY INTERMEDIATE CARE,Third Party Payments,Revenue
Walsall Council,http://opendatacommunities.org/id/metropolitan-district-council/walsall,WC94-230,31/07/2018,Adult Social Care,ADVANCE HEALTH CARE (UK) LTD,26/07/2018,554.98,73019-PSE'S-PRIV CONTRACTOR FEES,INTEGRATED DISCHARGE TEAM,Third Party Payments,Revenue
Walsall Council,http://opendatacommunities.org/id/metropolitan-district-council/walsall,WC94-231,31/07/2018,Adult Social Care,ADVANCE HEALTH CARE (UK) LTD,26/07/2018,569.03,73019-PSE'S-PRIV CONTRACTOR FEES,INTEGRATED DISCHARGE TEAM,Third Party Payments,Revenue
Walsall Council,http://opendatacommunities.org/id/metropolitan-district-council/walsall,WC94-232,31/07/2018,Adult Social Care,ADVANCE HEALTH CARE (UK) LTD,26/07/2018,646.30,73025-PROFESSIONAL SERVICES-PRIV CONTRACTOR & OTHER AGENCIES,COMMUNITY INTERMEDIATE CARE,Third Party Payments,Revenue
Walsall Council,http://opendatacommunities.org/id/metropolitan-district-council/walsall,WC94-233,31/07/2018,Adult Social Care,ADVANCE HEALTH CARE (UK) LTD,20/07/2018,997.55,73025-PROFESSIONAL SERVICES-PRIV CONTRACTOR & OTHER AGENCIES,RAPID RESPONSE,Third Party Payments,Revenue
Walsall Council,http://opendatacommunities.org/id/metropolitan-district-council/walsall,WC94-234,31/07/2018,Adult Social Care,ADVANCE HEALTH CARE (UK) LTD,02/07/2018,"1,253.96",73025-PROFESSIONAL SERVICES-PRIV CONTRACTOR & OTHER AGENCIES,COMMUNITY INTERMEDIATE CARE,Third Party Payments,Revenue
Walsall Council,http://opendatacommunities.org/id/metropolitan-district-council/walsall,WC94-235,31/07/2018,Adult Social Care,ADVANCE HEALTH CARE (UK) LTD,05/07/2018,"1,376.90",73019-PSE'S-PRIV CONTRACTOR FEES,INTEGRATED DISCHARGE TEAM,Third Party Payments,Revenue
Walsall Council,http://opendatacommunities.org/id/metropolitan-district-council/walsall,WC94-236,31/07/2018,Adult Social Care,ADVANCE HEALTH CARE (UK) LTD,20/07/2018,"97,361.84",73372-DOMICILIARY CARE,OP PACKAGE/PLACEMENT COSTS,Third Party Payments,Revenue
Walsall Council,http://opendatacommunities.org/id/metropolitan-district-council/walsall,WC94-237,31/07/2018,Resources and Transformation,ADVANCED CONTRACTS (MIDLANDS) LTD,11/07/2018,"1,920.00","40000-REPAIRS,ALTERATIONS & MAINTENANCE-PREM",WALSALL TOWN HALL,Premises,Revenue
Walsall Council,http://opendatacommunities.org/id/metropolitan-district-council/walsall,WC94-238,31/07/2018,Resources and Transformation,ADVANCED DIGITAL IMAGING,25/07/2018,972.00,62008-OUTWORK-PRINT ROOM,PRINTING SERVICES,Supplies & Services,Revenue
Walsall Council,http://opendatacommunities.org/id/metropolitan-district-council/walsall,WC94-239,31/07/2018,Adult Social Care,ADVANCED HEALTH AND CARE,13/07/2018,239.72,63102-CONSULTANTS FEES - CORPORATE,COMMUNITY INTERMEDIATE CARE,Supplies & Services,Revenue
Walsall Council,http://opendatacommunities.org/id/metropolitan-district-council/walsall,WC94-240,31/07/2018,Economy & Environment,AEBI SCHMIDT UK LIMITED,04/07/2018,289.12,60514-MATERIALS TO STORES,FLEET PARTS STOCK ACCOUNT,Supplies & Services,Revenue
Walsall Council,http://opendatacommunities.org/id/metropolitan-district-council/walsall,WC94-241,31/07/2018,Economy & Environment,AEBI SCHMIDT UK LIMITED,24/07/2018,318.06,60500-GENERAL MATERIALS,FLEET,Supplies & Services,Revenue
Walsall Council,http://opendatacommunities.org/id/metropolitan-district-council/walsall,WC94-242,31/07/2018,Economy & Environment,AEBI SCHMIDT UK LIMITED,24/07/2018,324.74,60500-GENERAL MATERIALS,FLEET,Supplies & Services,Revenue
Walsall Council,http://opendatacommunities.org/id/metropolitan-district-council/walsall,WC94-243,31/07/2018,Economy & Environment,AEBI SCHMIDT UK LIMITED,24/07/2018,358.72,60500-GENERAL MATERIALS,FLEET,Supplies & Services,Revenue
Walsall Council,http://opendatacommunities.org/id/metropolitan-district-council/walsall,WC94-244,31/07/2018,Economy & Environment,AEBI SCHMIDT UK LIMITED,04/07/2018,480.97,60500-GENERAL MATERIALS,FLEET,Supplies & Services,Revenue
Walsall Council,http://opendatacommunities.org/id/metropolitan-district-council/walsall,WC94-245,31/07/2018,Economy & Environment,AECOM LIMITED,04/07/2018,"3,310.13",01001-OTHER CONSULTANTS FEES,CFR 1219 DARLASTON MONITORING AND EVALUATION,Capital,Capital
Walsall Council,http://opendatacommunities.org/id/metropolitan-district-council/walsall,WC94-246,31/07/2018,Adult Social Care,AGINCARE UK LTD,02/07/2018,"1,573.60",73372-DOMICILIARY CARE,OP PACKAGE/PLACEMENT COSTS,Third Party Payments,Revenue
Walsall Council,http://opendatacommunities.org/id/metropolitan-district-council/walsall,WC94-247,31/07/2018,Adult Social Care,REDACTED,11/07/2018,"2,092.80",73506-DIRECT PAYMENT,LEARNING DISABILITY SUPPORT,Third Party Payments,Revenue
Walsall Council,http://opendatacommunities.org/id/metropolitan-district-council/walsall,WC94-248,31/07/2018,Adult Social Care,REDACTED,11/07/2018,"1,277.00",73506-DIRECT PAYMENT,PHYSICAL SUPPORT,Third Party Payments,Revenue
Walsall Council,http://opendatacommunities.org/id/metropolitan-district-council/walsall,WC94-249,31/07/2018,Adult Social Care,REDACTED,11/07/2018,786.80,73506-DIRECT PAYMENT,PHYSICAL SUPPORT,Third Party Payments,Revenue
Walsall Council,http://opendatacommunities.org/id/metropolitan-district-council/walsall,WC94-250,31/07/2018,Childrens,ALBERT PRITCHARD INFANT AND WOOD GREEN JUNIOR FEDERATED SCHOOLS,25/07/2018,450.00,77300-ISB-FORMULA ALLOCATION,OUT OF BOROUGH SCHOOLS,Transfer Payments,Revenue
Walsall Council,http://opendatacommunities.org/id/metropolitan-district-council/walsall,WC94-251,31/07/2018,Childrens,ALBRIGHTON CARE LTD,16/07/2018,"9,980.00",74036-EXTERNAL RESIDENTIAL CARE-OTH AGENCY PROVISION,INDEPENDENT RESIDENTIAL HOMES,Third Party Payments,Revenue
Walsall Council,http://opendatacommunities.org/id/metropolitan-district-council/walsall,WC94-252,31/07/2018,Childrens,ALBRIGHTON CARE LTD,16/07/2018,"19,460.00",74036-EXTERNAL RESIDENTIAL CARE-OTH AGENCY PROVISION,INDEPENDENT RESIDENTIAL HOMES,Third Party Payments,Revenue
Walsall Council,http://opendatacommunities.org/id/metropolitan-district-council/walsall,WC94-253,31/07/2018,Economy & Environment,ALDERBROOK HEALTHCARE LTD,19/07/2018,"1,654.20",63000-PROFESSIONAL FEES AND SERVICES,CORONERS SERVICE,Supplies & Services,Revenue
Walsall Council,http://opendatacommunities.org/id/metropolitan-district-council/walsall,WC94-254,31/07/2018,Economy & Environment,ALDERBROOK HEALTHCARE LTD,19/07/2018,"2,907.70",63000-PROFESSIONAL FEES AND SERVICES,CORONERS SERVICE,Supplies & Services,Revenue
Walsall Council,http://opendatacommunities.org/id/metropolitan-district-council/walsall,WC94-255,31/07/2018,Adult Social Care,ALDERGROVE MANOR LTD,03/07/2018,"1,877.24",73373-RESIDENTIAL & NURSING CARE PLACEMENTS,MENTAL HEALTH PACKAGE/PLACEMENT COSTS,Third Party Payments,Revenue
Walsall Council,http://opendatacommunities.org/id/metropolitan-district-council/walsall,WC94-256,31/07/2018,Adult Social Care,ALDERGROVE MANOR LTD,03/07/2018,"1,877.24",73373-RESIDENTIAL & NURSING CARE PLACEMENTS,MENTAL HEALTH PACKAGE/PLACEMENT COSTS,Third Party Payments,Revenue
Walsall Council,http://opendatacommunities.org/id/metropolitan-district-council/walsall,WC94-257,31/07/2018,Adult Social Care,ALDERGROVE MANOR LTD,03/07/2018,"1,877.24",73373-RESIDENTIAL & NURSING CARE PLACEMENTS,MENTAL HEALTH PACKAGE/PLACEMENT COSTS,Third Party Payments,Revenue
Walsall Council,http://opendatacommunities.org/id/metropolitan-district-council/walsall,WC94-258,31/07/2018,Adult Social Care,ALDERGROVE MANOR LTD,30/07/2018,"1,877.24",73373-RESIDENTIAL & NURSING CARE PLACEMENTS,MENTAL HEALTH PACKAGE/PLACEMENT COSTS,Third Party Payments,Revenue
Walsall Council,http://opendatacommunities.org/id/metropolitan-district-council/walsall,WC94-259,31/07/2018,Adult Social Care,ALDERGROVE MANOR LTD,03/07/2018,"2,039.68",73373-RESIDENTIAL & NURSING CARE PLACEMENTS,OP PACKAGE/PLACEMENT COSTS,Third Party Payments,Revenue
Walsall Council,http://opendatacommunities.org/id/metropolitan-district-council/walsall,WC94-260,31/07/2018,Adult Social Care,ALDERGROVE MANOR LTD,03/07/2018,"2,039.68",73373-RESIDENTIAL & NURSING CARE PLACEMENTS,OP PACKAGE/PLACEMENT COSTS,Third Party Payments,Revenue
Walsall Council,http://opendatacommunities.org/id/metropolitan-district-council/walsall,WC94-261,31/07/2018,Childrens,ALDRIDGE & BARONS LIMITED,09/07/2018,"11,694.20",52000-WITH DRIVER-HIRE OF VEHICLES,HOME TO SCHOOL TRANSPORT,Transport,Revenue
Walsall Council,http://opendatacommunities.org/id/metropolitan-district-council/walsall,WC94-262,31/07/2018,Childrens,ALDRIDGE & BARONS LIMITED,09/07/2018,"16,086.00",52000-WITH DRIVER-HIRE OF VEHICLES,HOME TO SCHOOL TRANSPORT,Transport,Revenue
Walsall Council,http://opendatacommunities.org/id/metropolitan-district-council/walsall,WC94-263,31/07/2018,Adult Social Care,ALEXANDRA HOUSE CARE SERVICES LTD T/A STONEBRIDGE NURSING HOME,10/07/2018,"7,117.44",73373-RESIDENTIAL & NURSING CARE PLACEMENTS,LD PACKAGE/PLACEMENT COSTS,Third Party Payments,Revenue
Walsall Council,http://opendatacommunities.org/id/metropolitan-district-council/walsall,WC94-264,31/07/2018,Adult Social Care,REDACTED,11/07/2018,"1,771.28",73506-DIRECT PAYMENT,PHYSICAL SUPPORT,Third Party Payments,Revenue
Walsall Council,http://opendatacommunities.org/id/metropolitan-district-council/walsall,WC94-265,31/07/2018,Childrens,REDACTED,12/07/2018,288.00,73506-DIRECT PAYMENT,FAMILY SUPPORT - DIRECT PAYMENTS,Third Party Payments,Revenue
Walsall Council,http://opendatacommunities.org/id/metropolitan-district-council/walsall,WC94-266,31/07/2018,Adult Social Care,REDACTED,01/07/2018,"1,301.64",73372-DOMICILIARY CARE,LD PACKAGE/PLACEMENT COSTS,Third Party Payments,Revenue
Walsall Council,http://opendatacommunities.org/id/metropolitan-district-council/walsall,WC94-267,31/07/2018,Adult Social Care,REDACTED,30/07/2018,"1,301.64",73372-DOMICILIARY CARE,LD PACKAGE/PLACEMENT COSTS,Third Party Payments,Revenue
Walsall Council,http://opendatacommunities.org/id/metropolitan-district-council/walsall,WC94-268,31/07/2018,Childrens,ALL SAINTS NATIONAL ACADEMY #1,27/07/2018,"5,013.47",66502-TOP UP FUNDING -GRANTS TO SCHOOLS,ALL SAINTS NATIONAL ACADEMY,Third Party Payments,Revenue
Walsall Council,http://opendatacommunities.org/id/metropolitan-district-council/walsall,WC94-269,31/07/2018,Adult Social Care,ALLSORTS OFFICE SUPPLIES LTD,18/07/2018,213.20,63800-COMPUTER EQUIPMENT AND SUPPLIES,EAST LOCALITY TEAM,Supplies & Services,Revenue
Walsall Council,http://opendatacommunities.org/id/metropolitan-district-council/walsall,WC94-270,31/07/2018,Resources and Transformation,ALLSORTS OFFICE SUPPLIES LTD,18/07/2018,275.20,60000-FURNITURE & EQUIPMENT,INFORMATION GOVERNANCE,Supplies & Services,Revenue
Walsall Council,http://opendatacommunities.org/id/metropolitan-district-council/walsall,WC94-271,31/07/2018,Resources and Transformation,ALLSORTS OFFICE SUPPLIES LTD,11/07/2018,680.00,63800-COMPUTER EQUIPMENT AND SUPPLIES,RECHARGEABLE EQUIPMENT,Supplies & Services,Revenue
Walsall Council,http://opendatacommunities.org/id/metropolitan-district-council/walsall,WC94-272,31/07/2018,Resources and Transformation,ALLSORTS OFFICE SUPPLIES LTD,01/07/2018,"1,360.00",63800-COMPUTER EQUIPMENT AND SUPPLIES,RECHARGEABLE EQUIPMENT,Supplies & Services,Revenue
Walsall Council,http://opendatacommunities.org/id/metropolitan-district-council/walsall,WC94-273,31/07/2018,Resources and Transformation,ALLSORTS OFFICE SUPPLIES LTD,18/07/2018,"1,798.50",60006-NEW-FURNITURE & EQUIPMENT,ELECTORAL SERVICES,Supplies & Services,Revenue
Walsall Council,http://opendatacommunities.org/id/metropolitan-district-council/walsall,WC94-274,31/07/2018,Adult Social Care,ALMA COURT,01/07/2018,"2,700.00",73372-DOMICILIARY CARE,OP PACKAGE/PLACEMENT COSTS,Third Party Payments,Revenue
Walsall Council,http://opendatacommunities.org/id/metropolitan-district-council/walsall,WC94-275,31/07/2018,Adult Social Care,ALPHA HEALTH CARE LTD,01/07/2018,257.14,73019-PSE'S-PRIV CONTRACTOR FEES,INTEGRATED DISCHARGE TEAM,Third Party Payments,Revenue
Walsall Council,http://opendatacommunities.org/id/metropolitan-district-council/walsall,WC94-276,31/07/2018,Adult Social Care,ALPHA HEALTH CARE LTD,01/07/2018,900.00,73019-PSE'S-PRIV CONTRACTOR FEES,INTEGRATED DISCHARGE TEAM,Third Party Payments,Revenue
Walsall Council,http://opendatacommunities.org/id/metropolitan-district-council/walsall,WC94-277,31/07/2018,Adult Social Care,ALPHA HEALTH CARE LTD,01/07/2018,"1,285.71",73019-PSE'S-PRIV CONTRACTOR FEES,INTEGRATED DISCHARGE TEAM,Third Party Payments,Revenue
Walsall Council,http://opendatacommunities.org/id/metropolitan-district-council/walsall,WC94-278,31/07/2018,Adult Social Care,ALPHA HEALTH CARE LTD,10/07/2018,"1,688.84",73373-RESIDENTIAL & NURSING CARE PLACEMENTS,OP PACKAGE/PLACEMENT COSTS,Third Party Payments,Revenue
Walsall Council,http://opendatacommunities.org/id/metropolitan-district-council/walsall,WC94-279,31/07/2018,Adult Social Care,ALPHA HEALTH CARE LTD,17/07/2018,"1,708.57",73373-RESIDENTIAL & NURSING CARE PLACEMENTS,OP PACKAGE/PLACEMENT COSTS,Third Party Payments,Revenue
Walsall Council,http://opendatacommunities.org/id/metropolitan-district-council/walsall,WC94-280,31/07/2018,Adult Social Care,ALPHA HEALTH CARE LTD,01/07/2018,"1,800.00",73019-PSE'S-PRIV CONTRACTOR FEES,INTEGRATED DISCHARGE TEAM,Third Party Payments,Revenue
Walsall Council,http://opendatacommunities.org/id/metropolitan-district-council/walsall,WC94-281,31/07/2018,Adult Social Care,ALPHA HEALTH CARE LTD,17/07/2018,"1,840.00",73373-RESIDENTIAL & NURSING CARE PLACEMENTS,OP PACKAGE/PLACEMENT COSTS,Third Party Payments,Revenue
Walsall Council,http://opendatacommunities.org/id/metropolitan-district-council/walsall,WC94-282,31/07/2018,Adult Social Care,ALPHA HEALTH CARE LTD,17/07/2018,"1,840.00",73373-RESIDENTIAL & NURSING CARE PLACEMENTS,OP PACKAGE/PLACEMENT COSTS,Third Party Payments,Revenue
Walsall Council,http://opendatacommunities.org/id/metropolitan-district-council/walsall,WC94-283,31/07/2018,Adult Social Care,ALPHA HEALTH CARE LTD,17/07/2018,"1,840.00",73373-RESIDENTIAL & NURSING CARE PLACEMENTS,OP PACKAGE/PLACEMENT COSTS,Third Party Payments,Revenue
Walsall Council,http://opendatacommunities.org/id/metropolitan-district-council/walsall,WC94-284,31/07/2018,Adult Social Care,ALPHA HEALTH CARE LTD,10/07/2018,"1,876.52",73373-RESIDENTIAL & NURSING CARE PLACEMENTS,OP PACKAGE/PLACEMENT COSTS,Third Party Payments,Revenue
Walsall Council,http://opendatacommunities.org/id/metropolitan-district-council/walsall,WC94-285,31/07/2018,Adult Social Care,ALPHA HEALTH CARE LTD,24/07/2018,"2,039.68",73373-RESIDENTIAL & NURSING CARE PLACEMENTS,OP PACKAGE/PLACEMENT COSTS,Third Party Payments,Revenue
Walsall Council,http://opendatacommunities.org/id/metropolitan-district-council/walsall,WC94-286,31/07/2018,Adult Social Care,ALPHA HEALTH CARE LTD,30/07/2018,"2,160.00",73373-RESIDENTIAL & NURSING CARE PLACEMENTS,OP PACKAGE/PLACEMENT COSTS,Third Party Payments,Revenue
Walsall Council,http://opendatacommunities.org/id/metropolitan-district-council/walsall,WC94-287,31/07/2018,Adult Social Care,ALPHA HEALTH CARE LTD,10/07/2018,"2,243.64",73373-RESIDENTIAL & NURSING CARE PLACEMENTS,OP PACKAGE/PLACEMENT COSTS,Third Party Payments,Revenue
Walsall Council,http://opendatacommunities.org/id/metropolitan-district-council/walsall,WC94-288,31/07/2018,Adult Social Care,ALPHA HEALTH CARE LTD,10/07/2018,"2,243.64",73373-RESIDENTIAL & NURSING CARE PLACEMENTS,OP PACKAGE/PLACEMENT COSTS,Third Party Payments,Revenue
Walsall Council,http://opendatacommunities.org/id/metropolitan-district-council/walsall,WC94-289,31/07/2018,Adult Social Care,ALPHA HEALTH CARE LTD,10/07/2018,"2,243.64",73373-RESIDENTIAL & NURSING CARE PLACEMENTS,OP PACKAGE/PLACEMENT COSTS,Third Party Payments,Revenue
Walsall Council,http://opendatacommunities.org/id/metropolitan-district-council/walsall,WC94-290,31/07/2018,Adult Social Care,ALPHA HEALTH CARE LTD,10/07/2018,"2,243.64",73373-RESIDENTIAL & NURSING CARE PLACEMENTS,MENTAL HEALTH PACKAGE/PLACEMENT COSTS,Third Party Payments,Revenue
Walsall Council,http://opendatacommunities.org/id/metropolitan-district-council/walsall,WC94-291,31/07/2018,Adult Social Care,ALPHA HEALTH CARE LTD,10/07/2018,"2,326.00",73373-RESIDENTIAL & NURSING CARE PLACEMENTS,MENTAL HEALTH PACKAGE/PLACEMENT COSTS,Third Party Payments,Revenue
Walsall Council,http://opendatacommunities.org/id/metropolitan-district-council/walsall,WC94-292,31/07/2018,Adult Social Care,ALPHA HEALTH CARE LTD,10/07/2018,"2,379.80",73373-RESIDENTIAL & NURSING CARE PLACEMENTS,OP PACKAGE/PLACEMENT COSTS,Third Party Payments,Revenue
Walsall Council,http://opendatacommunities.org/id/metropolitan-district-council/walsall,WC94-293,31/07/2018,Adult Social Care,ALPHA HEALTH CARE LTD,10/07/2018,"2,484.88",73373-RESIDENTIAL & NURSING CARE PLACEMENTS,OP PACKAGE/PLACEMENT COSTS,Third Party Payments,Revenue
Walsall Council,http://opendatacommunities.org/id/metropolitan-district-council/walsall,WC94-294,31/07/2018,Adult Social Care,ALPHA HEALTH CARE LTD,10/07/2018,"2,688.84",73373-RESIDENTIAL & NURSING CARE PLACEMENTS,OP PACKAGE/PLACEMENT COSTS,Third Party Payments,Revenue
Walsall Council,http://opendatacommunities.org/id/metropolitan-district-council/walsall,WC94-295,31/07/2018,Adult Social Care,ALPHA HEALTH CARE LTD,10/07/2018,"2,767.36",73373-RESIDENTIAL & NURSING CARE PLACEMENTS,OP PACKAGE/PLACEMENT COSTS,Third Party Payments,Revenue
Walsall Council,http://opendatacommunities.org/id/metropolitan-district-council/walsall,WC94-296,31/07/2018,Adult Social Care,ALPHA HEALTH CARE LTD,10/07/2018,"2,779.80",73373-RESIDENTIAL & NURSING CARE PLACEMENTS,OP PACKAGE/PLACEMENT COSTS,Third Party Payments,Revenue
Walsall Council,http://opendatacommunities.org/id/metropolitan-district-council/walsall,WC94-297,31/07/2018,Adult Social Care,ALPHA HEALTH CARE LTD,10/07/2018,"2,823.44",73373-RESIDENTIAL & NURSING CARE PLACEMENTS,OP PACKAGE/PLACEMENT COSTS,Third Party Payments,Revenue
Walsall Council,http://opendatacommunities.org/id/metropolitan-district-council/walsall,WC94-298,31/07/2018,Adult Social Care,ALPHA HEALTH CARE LTD,10/07/2018,"5,440.28",73373-RESIDENTIAL & NURSING CARE PLACEMENTS,MENTAL HEALTH PACKAGE/PLACEMENT COSTS,Third Party Payments,Revenue
Walsall Council,http://opendatacommunities.org/id/metropolitan-district-council/walsall,WC94-299,31/07/2018,Childrens,ALPHA TRAINING ACADEMY UK LTD,01/07/2018,"1,470.67",66502-TOP UP FUNDING -GRANTS TO SCHOOLS,INDEPENDENT PROVIDERS - SPECIAL & AP,Third Party Payments,Revenue
Walsall Council,http://opendatacommunities.org/id/metropolitan-district-council/walsall,WC94-300,31/07/2018,Adult Social Care,ALTERNATIVE COMMUNICATIONS SYSTEMS LTD,20/07/2018,"7,658.69",01006-SITE WORKS MAIN CONTRACTORS,CFR 772 SUPPORTING INDEPENDENCE,Capital,Capital
Walsall Council,http://opendatacommunities.org/id/metropolitan-district-council/walsall,WC94-301,31/07/2018,Childrens,ALTUM RESIDENTIAL CARE LTD,16/07/2018,"15,000.00",74036-EXTERNAL RESIDENTIAL CARE-OTH AGENCY PROVISION,INDEPENDENT RESIDENTIAL HOMES,Third Party Payments,Revenue
Walsall Council,http://opendatacommunities.org/id/metropolitan-district-council/walsall,WC94-302,31/07/2018,Childrens,REDACTED,02/07/2018,318.08,74510-RESIDENTS ORDERS,ADOPTION ALLOWANCES,Third Party Payments,Revenue
Walsall Council,http://opendatacommunities.org/id/metropolitan-district-council/walsall,WC94-303,31/07/2018,Childrens,REDACTED,02/07/2018,318.08,74510-RESIDENTS ORDERS,ADOPTION ALLOWANCES,Third Party Payments,Revenue
Walsall Council,http://opendatacommunities.org/id/metropolitan-district-council/walsall,WC94-304,31/07/2018,Childrens,REDACTED,30/07/2018,318.08,74510-RESIDENTS ORDERS,ADOPTION ALLOWANCES,Third Party Payments,Revenue
Walsall Council,http://opendatacommunities.org/id/metropolitan-district-council/walsall,WC94-305,31/07/2018,Childrens,REDACTED,30/07/2018,318.08,74510-RESIDENTS ORDERS,ADOPTION ALLOWANCES,Third Party Payments,Revenue
Walsall Council,http://opendatacommunities.org/id/metropolitan-district-council/walsall,WC94-306,31/07/2018,Childrens,REDACTED,02/07/2018,808.04,74009-ADOPTION ALLOWANCE,ADOPTION ALLOWANCES,Transfer Payments,Revenue
Walsall Council,http://opendatacommunities.org/id/metropolitan-district-council/walsall,WC94-307,31/07/2018,Childrens,REDACTED,30/07/2018,808.04,74009-ADOPTION ALLOWANCE,ADOPTION ALLOWANCES,Transfer Payments,Revenue
Walsall Council,http://opendatacommunities.org/id/metropolitan-district-council/walsall,WC94-308,31/07/2018,Childrens,REDACTED,16/07/2018,132.84,64002-OTHER EXPENSES-EXPENSES,INTERNAL FOSTER CARE PROVISION,Supplies & Services,Revenue
Walsall Council,http://opendatacommunities.org/id/metropolitan-district-council/walsall,WC94-309,31/07/2018,Childrens,REDACTED,16/07/2018,664.29,74501-MAINTENANCE ALLOWANCE-FOSTER CARERS,INTERNAL FOSTER CARE PROVISION,Transfer Payments,Revenue
Walsall Council,http://opendatacommunities.org/id/metropolitan-district-council/walsall,WC94-310,31/07/2018,Childrens,REDACTED,16/07/2018,"1,857.14",74508-INTERNAL FOSTER CARERS-CARER FEES,INTERNAL FOSTER CARE PROVISION,Transfer Payments,Revenue
Walsall Council,http://opendatacommunities.org/id/metropolitan-district-council/walsall,WC94-311,31/07/2018,Childrens,AMANS TRAVEL LTD,01/07/2018,"9,349.00",52000-WITH DRIVER-HIRE OF VEHICLES,HOME TO SCHOOL TRANSPORT,Transport,Revenue
Walsall Council,http://opendatacommunities.org/id/metropolitan-district-council/walsall,WC94-312,31/07/2018,Childrens,AMANS TRAVEL LTD,11/07/2018,"16,131.00",52000-WITH DRIVER-HIRE OF VEHICLES,HOME TO SCHOOL TRANSPORT,Transport,Revenue
Walsall Council,http://opendatacommunities.org/id/metropolitan-district-council/walsall,WC94-313,31/07/2018,Adult Social Care,REDACTED,11/07/2018,897.60,73506-DIRECT PAYMENT,LEARNING DISABILITY SUPPORT,Third Party Payments,Revenue
Walsall Council,http://opendatacommunities.org/id/metropolitan-district-council/walsall,WC94-314,31/07/2018,Resources and Transformation,AMBERHAWK TRAINING LIMITED,30/07/2018,290.00,63800-COMPUTER EQUIPMENT AND SUPPLIES,RECHARGEABLE EQUIPMENT,Supplies & Services,Revenue
Walsall Council,http://opendatacommunities.org/id/metropolitan-district-council/walsall,WC94-315,31/07/2018,Resources and Transformation,AMBERHAWK TRAINING LIMITED,03/07/2018,453.00,63800-COMPUTER EQUIPMENT AND SUPPLIES,RECHARGEABLE EQUIPMENT,Supplies & Services,Revenue
Walsall Council,http://opendatacommunities.org/id/metropolitan-district-council/walsall,WC94-316,31/07/2018,Economy & Environment,AMEY LG LIMITED,11/07/2018,599.95,73025-PROFESSIONAL SERVICES-PRIV CONTRACTOR & OTHER AGENCIES,PARKING SERVICES OFF-STREET,Third Party Payments,Revenue
Walsall Council,http://opendatacommunities.org/id/metropolitan-district-council/walsall,WC94-317,31/07/2018,Economy & Environment,AMEY LG LIMITED,04/07/2018,"15,845.07",73025-PROFESSIONAL SERVICES-PRIV CONTRACTOR & OTHER AGENCIES,TRAFFIC MANAGEMENT,Third Party Payments,Revenue
Walsall Council,http://opendatacommunities.org/id/metropolitan-district-council/walsall,WC94-318,31/07/2018,Childrens,AMG NURSING CARE SERVICES,04/07/2018,"1,110.72",63000-PROFESSIONAL FEES AND SERVICES,DIRECTLY COMMISSIONED NURSING SERVICES,Supplies & Services,Revenue
Walsall Council,http://opendatacommunities.org/id/metropolitan-district-council/walsall,WC94-319,31/07/2018,Childrens,AMG NURSING CARE SERVICES,06/07/2018,"1,480.96",63000-PROFESSIONAL FEES AND SERVICES,DIRECTLY COMMISSIONED NURSING SERVICES,Supplies & Services,Revenue
Walsall Council,http://opendatacommunities.org/id/metropolitan-district-council/walsall,WC94-320,31/07/2018,Childrens,AMG NURSING CARE SERVICES,25/07/2018,"1,480.96",63000-PROFESSIONAL FEES AND SERVICES,DIRECTLY COMMISSIONED NURSING SERVICES,Supplies & Services,Revenue
Walsall Council,http://opendatacommunities.org/id/metropolitan-district-council/walsall,WC94-321,31/07/2018,Childrens,AMG NURSING CARE SERVICES,19/07/2018,"2,228.76",63000-PROFESSIONAL FEES AND SERVICES,DIRECTLY COMMISSIONED NURSING SERVICES,Supplies & Services,Revenue
Walsall Council,http://opendatacommunities.org/id/metropolitan-district-council/walsall,WC94-322,31/07/2018,Childrens,AMG NURSING CARE SERVICES,06/07/2018,"2,258.16",63000-PROFESSIONAL FEES AND SERVICES,DIRECTLY COMMISSIONED NURSING SERVICES,Supplies & Services,Revenue
Walsall Council,http://opendatacommunities.org/id/metropolitan-district-council/walsall,WC94-323,31/07/2018,Childrens,AMG NURSING CARE SERVICES,06/07/2018,"2,274.48",63000-PROFESSIONAL FEES AND SERVICES,DIRECTLY COMMISSIONED NURSING SERVICES,Supplies & Services,Revenue
Walsall Council,http://opendatacommunities.org/id/metropolitan-district-council/walsall,WC94-324,31/07/2018,Childrens,AMG NURSING CARE SERVICES,06/07/2018,"2,274.48",63000-PROFESSIONAL FEES AND SERVICES,DIRECTLY COMMISSIONED NURSING SERVICES,Supplies & Services,Revenue
Walsall Council,http://opendatacommunities.org/id/metropolitan-district-council/walsall,WC94-325,31/07/2018,Childrens,AMG NURSING CARE SERVICES,06/07/2018,"2,340.40",63000-PROFESSIONAL FEES AND SERVICES,DIRECTLY COMMISSIONED NURSING SERVICES,Supplies & Services,Revenue
Walsall Council,http://opendatacommunities.org/id/metropolitan-district-council/walsall,WC94-326,31/07/2018,Childrens,AMG NURSING CARE SERVICES,04/07/2018,"2,644.72",63000-PROFESSIONAL FEES AND SERVICES,DIRECTLY COMMISSIONED NURSING SERVICES,Supplies & Services,Revenue
Walsall Council,http://opendatacommunities.org/id/metropolitan-district-council/walsall,WC94-327,31/07/2018,Adult Social Care,AMG NURSING CARE SERVICES,23/07/2018,"3,640.00",73372-DOMICILIARY CARE,PD PACKAGE/PLACEMENT COSTS,Third Party Payments,Revenue
Walsall Council,http://opendatacommunities.org/id/metropolitan-district-council/walsall,WC94-328,31/07/2018,Adult Social Care,AMG NURSING CARE SERVICES,11/07/2018,"10,711.68",73372-DOMICILIARY CARE,OP PACKAGE/PLACEMENT COSTS,Third Party Payments,Revenue
Walsall Council,http://opendatacommunities.org/id/metropolitan-district-council/walsall,WC94-329,31/07/2018,Adult Social Care,REDACTED,11/07/2018,"1,133.44",73506-DIRECT PAYMENT,PHYSICAL SUPPORT,Third Party Payments,Revenue
Walsall Council,http://opendatacommunities.org/id/metropolitan-district-council/walsall,WC94-330,31/07/2018,Childrens,REDACTED,02/07/2018,150.00,74504-HOLIDAY/CHRISTMAS ALLOWANCE-FOSTER CARERS,FAMILY & FRIENDS FOSTER CARE PROVISION,Transfer Payments,Revenue
Walsall Council,http://opendatacommunities.org/id/metropolitan-district-council/walsall,WC94-331,31/07/2018,Childrens,REDACTED,02/07/2018,340.00,74508-INTERNAL FOSTER CARERS-CARER FEES,FAMILY & FRIENDS FOSTER CARE PROVISION,Transfer Payments,Revenue
Walsall Council,http://opendatacommunities.org/id/metropolitan-district-council/walsall,WC94-332,31/07/2018,Childrens,REDACTED,30/07/2018,340.00,74508-INTERNAL FOSTER CARERS-CARER FEES,FAMILY & FRIENDS FOSTER CARE PROVISION,Transfer Payments,Revenue
Walsall Council,http://opendatacommunities.org/id/metropolitan-district-council/walsall,WC94-333,31/07/2018,Childrens,REDACTED,02/07/2018,600.00,74501-MAINTENANCE ALLOWANCE-FOSTER CARERS,FAMILY & FRIENDS FOSTER CARE PROVISION,Transfer Payments,Revenue
Walsall Council,http://opendatacommunities.org/id/metropolitan-district-council/walsall,WC94-334,31/07/2018,Childrens,REDACTED,30/07/2018,600.00,74501-MAINTENANCE ALLOWANCE-FOSTER CARERS,FAMILY & FRIENDS FOSTER CARE PROVISION,Transfer Payments,Revenue
Walsall Council,http://opendatacommunities.org/id/metropolitan-district-council/walsall,WC94-335,31/07/2018,Childrens,REDACTED,02/07/2018,425.08,74510-RESIDENTS ORDERS,ADOPTION ALLOWANCES,Third Party Payments,Revenue
Walsall Council,http://opendatacommunities.org/id/metropolitan-district-council/walsall,WC94-336,31/07/2018,Childrens,REDACTED,30/07/2018,425.08,74510-RESIDENTS ORDERS,ADOPTION ALLOWANCES,Third Party Payments,Revenue
Walsall Council,http://opendatacommunities.org/id/metropolitan-district-council/walsall,WC94-337,31/07/2018,Adult Social Care,ANCHOR,03/07/2018,"-2,092.15",73373-RESIDENTIAL & NURSING CARE PLACEMENTS,OP PACKAGE/PLACEMENT COSTS,Third Party Payments,Revenue
Walsall Council,http://opendatacommunities.org/id/metropolitan-district-council/walsall,WC94-338,31/07/2018,Adult Social Care,ANCHOR,10/07/2018,"-1,571.43",73373-RESIDENTIAL & NURSING CARE PLACEMENTS,OP PACKAGE/PLACEMENT COSTS,Third Party Payments,Revenue
Walsall Council,http://opendatacommunities.org/id/metropolitan-district-council/walsall,WC94-339,31/07/2018,Adult Social Care,ANCHOR,03/07/2018,"-1,142.86",73373-RESIDENTIAL & NURSING CARE PLACEMENTS,OP PACKAGE/PLACEMENT COSTS,Third Party Payments,Revenue
Walsall Council,http://opendatacommunities.org/id/metropolitan-district-council/walsall,WC94-340,31/07/2018,Adult Social Care,ANCHOR,30/07/2018,"-1,140.57",73373-RESIDENTIAL & NURSING CARE PLACEMENTS,OP PACKAGE/PLACEMENT COSTS,Third Party Payments,Revenue
Walsall Council,http://opendatacommunities.org/id/metropolitan-district-council/walsall,WC94-341,31/07/2018,Adult Social Care,ANCHOR,03/07/2018,-920.00,73373-RESIDENTIAL & NURSING CARE PLACEMENTS,MENTAL HEALTH PACKAGE/PLACEMENT COSTS,Third Party Payments,Revenue
Walsall Council,http://opendatacommunities.org/id/metropolitan-district-council/walsall,WC94-342,31/07/2018,Adult Social Care,ANCHOR,24/07/2018,354.86,73373-RESIDENTIAL & NURSING CARE PLACEMENTS,OP PACKAGE/PLACEMENT COSTS,Third Party Payments,Revenue
Walsall Council,http://opendatacommunities.org/id/metropolitan-district-council/walsall,WC94-343,31/07/2018,Adult Social Care,ANCHOR,03/07/2018,360.00,73373-RESIDENTIAL & NURSING CARE PLACEMENTS,OP PACKAGE/PLACEMENT COSTS,Third Party Payments,Revenue
Walsall Council,http://opendatacommunities.org/id/metropolitan-district-council/walsall,WC94-344,31/07/2018,Adult Social Care,ANCHOR,10/07/2018,628.57,73373-RESIDENTIAL & NURSING CARE PLACEMENTS,OP PACKAGE/PLACEMENT COSTS,Third Party Payments,Revenue
Walsall Council,http://opendatacommunities.org/id/metropolitan-district-council/walsall,WC94-345,31/07/2018,Adult Social Care,ANCHOR,24/07/2018,655.72,73373-RESIDENTIAL & NURSING CARE PLACEMENTS,OP PACKAGE/PLACEMENT COSTS,Third Party Payments,Revenue
Walsall Council,http://opendatacommunities.org/id/metropolitan-district-council/walsall,WC94-346,31/07/2018,Adult Social Care,ANCHOR,03/07/2018,714.29,73373-RESIDENTIAL & NURSING CARE PLACEMENTS,OP PACKAGE/PLACEMENT COSTS,Third Party Payments,Revenue
Walsall Council,http://opendatacommunities.org/id/metropolitan-district-council/walsall,WC94-347,31/07/2018,Adult Social Care,ANCHOR,03/07/2018,937.86,73373-RESIDENTIAL & NURSING CARE PLACEMENTS,OP PACKAGE/PLACEMENT COSTS,Third Party Payments,Revenue
Walsall Council,http://opendatacommunities.org/id/metropolitan-district-council/walsall,WC94-348,31/07/2018,Adult Social Care,ANCHOR,03/07/2018,"1,021.43",73373-RESIDENTIAL & NURSING CARE PLACEMENTS,OP PACKAGE/PLACEMENT COSTS,Third Party Payments,Revenue
Walsall Council,http://opendatacommunities.org/id/metropolitan-district-council/walsall,WC94-349,31/07/2018,Adult Social Care,ANCHOR,03/07/2018,"1,082.14",73373-RESIDENTIAL & NURSING CARE PLACEMENTS,OP PACKAGE/PLACEMENT COSTS,Third Party Payments,Revenue
Walsall Council,http://opendatacommunities.org/id/metropolitan-district-council/walsall,WC94-350,31/07/2018,Adult Social Care,ANCHOR,03/07/2018,"1,178.57",73373-RESIDENTIAL & NURSING CARE PLACEMENTS,OP PACKAGE/PLACEMENT COSTS,Third Party Payments,Revenue
Walsall Council,http://opendatacommunities.org/id/metropolitan-district-council/walsall,WC94-351,31/07/2018,Adult Social Care,ANCHOR,03/07/2018,"1,206.31",73373-RESIDENTIAL & NURSING CARE PLACEMENTS,OP PACKAGE/PLACEMENT COSTS,Third Party Payments,Revenue
Walsall Council,http://opendatacommunities.org/id/metropolitan-district-council/walsall,WC94-352,31/07/2018,Adult Social Care,ANCHOR,24/07/2018,"1,301.14",73373-RESIDENTIAL & NURSING CARE PLACEMENTS,OP PACKAGE/PLACEMENT COSTS,Third Party Payments,Revenue
Walsall Council,http://opendatacommunities.org/id/metropolitan-district-council/walsall,WC94-353,31/07/2018,Adult Social Care,ANCHOR,03/07/2018,"1,568.21",73373-RESIDENTIAL & NURSING CARE PLACEMENTS,OP PACKAGE/PLACEMENT COSTS,Third Party Payments,Revenue
Walsall Council,http://opendatacommunities.org/id/metropolitan-district-council/walsall,WC94-354,31/07/2018,Adult Social Care,ANCHOR,24/07/2018,"1,568.94",73373-RESIDENTIAL & NURSING CARE PLACEMENTS,OP PACKAGE/PLACEMENT COSTS,Third Party Payments,Revenue
Walsall Council,http://opendatacommunities.org/id/metropolitan-district-council/walsall,WC94-355,31/07/2018,Adult Social Care,ANCHOR,10/07/2018,"1,571.43",73373-RESIDENTIAL & NURSING CARE PLACEMENTS,OP PACKAGE/PLACEMENT COSTS,Third Party Payments,Revenue
Walsall Council,http://opendatacommunities.org/id/metropolitan-district-council/walsall,WC94-356,31/07/2018,Adult Social Care,ANCHOR,10/07/2018,"1,688.84",73373-RESIDENTIAL & NURSING CARE PLACEMENTS,OP PACKAGE/PLACEMENT COSTS,Third Party Payments,Revenue
Walsall Council,http://opendatacommunities.org/id/metropolitan-district-council/walsall,WC94-357,31/07/2018,Adult Social Care,ANCHOR,30/07/2018,"1,688.84",73373-RESIDENTIAL & NURSING CARE PLACEMENTS,OP PACKAGE/PLACEMENT COSTS,Third Party Payments,Revenue
Walsall Council,http://opendatacommunities.org/id/metropolitan-district-council/walsall,WC94-358,31/07/2018,Adult Social Care,ANCHOR,03/07/2018,"1,774.29",73373-RESIDENTIAL & NURSING CARE PLACEMENTS,OP PACKAGE/PLACEMENT COSTS,Third Party Payments,Revenue
Walsall Council,http://opendatacommunities.org/id/metropolitan-district-council/walsall,WC94-359,31/07/2018,Adult Social Care,ANCHOR,03/07/2018,"1,840.00",73373-RESIDENTIAL & NURSING CARE PLACEMENTS,OP PACKAGE/PLACEMENT COSTS,Third Party Payments,Revenue
Walsall Council,http://opendatacommunities.org/id/metropolitan-district-council/walsall,WC94-360,31/07/2018,Adult Social Care,ANCHOR,03/07/2018,"1,840.00",73373-RESIDENTIAL & NURSING CARE PLACEMENTS,OP PACKAGE/PLACEMENT COSTS,Third Party Payments,Revenue
Walsall Council,http://opendatacommunities.org/id/metropolitan-district-council/walsall,WC94-361,31/07/2018,Adult Social Care,ANCHOR,03/07/2018,"1,840.00",73373-RESIDENTIAL & NURSING CARE PLACEMENTS,OP PACKAGE/PLACEMENT COSTS,Third Party Payments,Revenue
Walsall Council,http://opendatacommunities.org/id/metropolitan-district-council/walsall,WC94-362,31/07/2018,Adult Social Care,ANCHOR,10/07/2018,"1,840.00",73373-RESIDENTIAL & NURSING CARE PLACEMENTS,OP PACKAGE/PLACEMENT COSTS,Third Party Payments,Revenue
Walsall Council,http://opendatacommunities.org/id/metropolitan-district-council/walsall,WC94-363,31/07/2018,Adult Social Care,ANCHOR,10/07/2018,"1,840.00",73373-RESIDENTIAL & NURSING CARE PLACEMENTS,OP PACKAGE/PLACEMENT COSTS,Third Party Payments,Revenue
Walsall Council,http://opendatacommunities.org/id/metropolitan-district-council/walsall,WC94-364,31/07/2018,Adult Social Care,ANCHOR,10/07/2018,"1,840.00",73373-RESIDENTIAL & NURSING CARE PLACEMENTS,OP PACKAGE/PLACEMENT COSTS,Third Party Payments,Revenue
Walsall Council,http://opendatacommunities.org/id/metropolitan-district-council/walsall,WC94-365,31/07/2018,Adult Social Care,ANCHOR,17/07/2018,"1,840.00",73373-RESIDENTIAL & NURSING CARE PLACEMENTS,OP PACKAGE/PLACEMENT COSTS,Third Party Payments,Revenue
Walsall Council,http://opendatacommunities.org/id/metropolitan-district-council/walsall,WC94-366,31/07/2018,Adult Social Care,ANCHOR,17/07/2018,"1,840.00",73373-RESIDENTIAL & NURSING CARE PLACEMENTS,OP PACKAGE/PLACEMENT COSTS,Third Party Payments,Revenue
Walsall Council,http://opendatacommunities.org/id/metropolitan-district-council/walsall,WC94-367,31/07/2018,Adult Social Care,ANCHOR,17/07/2018,"1,840.00",73373-RESIDENTIAL & NURSING CARE PLACEMENTS,OP PACKAGE/PLACEMENT COSTS,Third Party Payments,Revenue
Walsall Council,http://opendatacommunities.org/id/metropolitan-district-council/walsall,WC94-368,31/07/2018,Adult Social Care,ANCHOR,17/07/2018,"1,840.00",73373-RESIDENTIAL & NURSING CARE PLACEMENTS,MENTAL HEALTH PACKAGE/PLACEMENT COSTS,Third Party Payments,Revenue
Walsall Council,http://opendatacommunities.org/id/metropolitan-district-council/walsall,WC94-369,31/07/2018,Adult Social Care,ANCHOR,30/07/2018,"1,840.00",73373-RESIDENTIAL & NURSING CARE PLACEMENTS,OP PACKAGE/PLACEMENT COSTS,Third Party Payments,Revenue
Walsall Council,http://opendatacommunities.org/id/metropolitan-district-council/walsall,WC94-370,31/07/2018,Adult Social Care,ANCHOR,30/07/2018,"1,840.00",73373-RESIDENTIAL & NURSING CARE PLACEMENTS,OP PACKAGE/PLACEMENT COSTS,Third Party Payments,Revenue
Walsall Council,http://opendatacommunities.org/id/metropolitan-district-council/walsall,WC94-371,31/07/2018,Adult Social Care,ANCHOR,30/07/2018,"1,840.00",73373-RESIDENTIAL & NURSING CARE PLACEMENTS,OP PACKAGE/PLACEMENT COSTS,Third Party Payments,Revenue
Walsall Council,http://opendatacommunities.org/id/metropolitan-district-council/walsall,WC94-372,31/07/2018,Adult Social Care,ANCHOR,10/07/2018,"1,876.52",73373-RESIDENTIAL & NURSING CARE PLACEMENTS,OP PACKAGE/PLACEMENT COSTS,Third Party Payments,Revenue
Walsall Council,http://opendatacommunities.org/id/metropolitan-district-council/walsall,WC94-373,31/07/2018,Adult Social Care,ANCHOR,10/07/2018,"1,876.52",73373-RESIDENTIAL & NURSING CARE PLACEMENTS,OP PACKAGE/PLACEMENT COSTS,Third Party Payments,Revenue
Walsall Council,http://opendatacommunities.org/id/metropolitan-district-council/walsall,WC94-374,31/07/2018,Adult Social Care,ANCHOR,10/07/2018,"1,876.52",73373-RESIDENTIAL & NURSING CARE PLACEMENTS,OP PACKAGE/PLACEMENT COSTS,Third Party Payments,Revenue
Walsall Council,http://opendatacommunities.org/id/metropolitan-district-council/walsall,WC94-375,31/07/2018,Adult Social Care,ANCHOR,10/07/2018,"1,876.52",73373-RESIDENTIAL & NURSING CARE PLACEMENTS,OP PACKAGE/PLACEMENT COSTS,Third Party Payments,Revenue
Walsall Council,http://opendatacommunities.org/id/metropolitan-district-council/walsall,WC94-376,31/07/2018,Adult Social Care,ANCHOR,10/07/2018,"1,876.52",73373-RESIDENTIAL & NURSING CARE PLACEMENTS,OP PACKAGE/PLACEMENT COSTS,Third Party Payments,Revenue
Walsall Council,http://opendatacommunities.org/id/metropolitan-district-council/walsall,WC94-377,31/07/2018,Adult Social Care,ANCHOR,10/07/2018,"1,876.52",73373-RESIDENTIAL & NURSING CARE PLACEMENTS,OP PACKAGE/PLACEMENT COSTS,Third Party Payments,Revenue
Walsall Council,http://opendatacommunities.org/id/metropolitan-district-council/walsall,WC94-378,31/07/2018,Adult Social Care,ANCHOR,17/07/2018,"1,876.52",73373-RESIDENTIAL & NURSING CARE PLACEMENTS,OP PACKAGE/PLACEMENT COSTS,Third Party Payments,Revenue
Walsall Council,http://opendatacommunities.org/id/metropolitan-district-council/walsall,WC94-379,31/07/2018,Adult Social Care,ANCHOR,17/07/2018,"1,876.52",73373-RESIDENTIAL & NURSING CARE PLACEMENTS,OP PACKAGE/PLACEMENT COSTS,Third Party Payments,Revenue
Walsall Council,http://opendatacommunities.org/id/metropolitan-district-council/walsall,WC94-380,31/07/2018,Adult Social Care,ANCHOR,17/07/2018,"1,876.52",73373-RESIDENTIAL & NURSING CARE PLACEMENTS,OP PACKAGE/PLACEMENT COSTS,Third Party Payments,Revenue
Walsall Council,http://opendatacommunities.org/id/metropolitan-district-council/walsall,WC94-381,31/07/2018,Adult Social Care,ANCHOR,17/07/2018,"1,876.52",73373-RESIDENTIAL & NURSING CARE PLACEMENTS,OP PACKAGE/PLACEMENT COSTS,Third Party Payments,Revenue
Walsall Council,http://opendatacommunities.org/id/metropolitan-district-council/walsall,WC94-382,31/07/2018,Adult Social Care,ANCHOR,30/07/2018,"1,876.52",73373-RESIDENTIAL & NURSING CARE PLACEMENTS,OP PACKAGE/PLACEMENT COSTS,Third Party Payments,Revenue
Walsall Council,http://opendatacommunities.org/id/metropolitan-district-council/walsall,WC94-383,31/07/2018,Adult Social Care,ANCHOR,30/07/2018,"1,876.52",73373-RESIDENTIAL & NURSING CARE PLACEMENTS,OP PACKAGE/PLACEMENT COSTS,Third Party Payments,Revenue
Walsall Council,http://opendatacommunities.org/id/metropolitan-district-council/walsall,WC94-384,31/07/2018,Adult Social Care,ANCHOR,30/07/2018,"1,876.52",73373-RESIDENTIAL & NURSING CARE PLACEMENTS,OP PACKAGE/PLACEMENT COSTS,Third Party Payments,Revenue
Walsall Council,http://opendatacommunities.org/id/metropolitan-district-council/walsall,WC94-385,31/07/2018,Adult Social Care,ANCHOR,17/07/2018,"1,996.00",73373-RESIDENTIAL & NURSING CARE PLACEMENTS,OP PACKAGE/PLACEMENT COSTS,Third Party Payments,Revenue
Walsall Council,http://opendatacommunities.org/id/metropolitan-district-council/walsall,WC94-386,31/07/2018,Adult Social Care,ANCHOR,03/07/2018,"2,000.00",73373-RESIDENTIAL & NURSING CARE PLACEMENTS,OP PACKAGE/PLACEMENT COSTS,Third Party Payments,Revenue
Walsall Council,http://opendatacommunities.org/id/metropolitan-district-council/walsall,WC94-387,31/07/2018,Adult Social Care,ANCHOR,03/07/2018,"2,020.00",73373-RESIDENTIAL & NURSING CARE PLACEMENTS,OP PACKAGE/PLACEMENT COSTS,Third Party Payments,Revenue
Walsall Council,http://opendatacommunities.org/id/metropolitan-district-council/walsall,WC94-388,31/07/2018,Adult Social Care,ANCHOR,24/07/2018,"2,068.85",73373-RESIDENTIAL & NURSING CARE PLACEMENTS,OP PACKAGE/PLACEMENT COSTS,Third Party Payments,Revenue
Walsall Council,http://opendatacommunities.org/id/metropolitan-district-council/walsall,WC94-389,31/07/2018,Adult Social Care,ANCHOR,17/07/2018,"2,080.00",73373-RESIDENTIAL & NURSING CARE PLACEMENTS,MENTAL HEALTH PACKAGE/PLACEMENT COSTS,Third Party Payments,Revenue
Walsall Council,http://opendatacommunities.org/id/metropolitan-district-council/walsall,WC94-390,31/07/2018,Adult Social Care,ANCHOR,03/07/2018,"2,180.00",73373-RESIDENTIAL & NURSING CARE PLACEMENTS,OP PACKAGE/PLACEMENT COSTS,Third Party Payments,Revenue
Walsall Council,http://opendatacommunities.org/id/metropolitan-district-council/walsall,WC94-391,31/07/2018,Adult Social Care,ANCHOR,03/07/2018,"2,180.00",73373-RESIDENTIAL & NURSING CARE PLACEMENTS,OP PACKAGE/PLACEMENT COSTS,Third Party Payments,Revenue
Walsall Council,http://opendatacommunities.org/id/metropolitan-district-council/walsall,WC94-392,31/07/2018,Adult Social Care,ANCHOR,17/07/2018,"2,180.00",73373-RESIDENTIAL & NURSING CARE PLACEMENTS,OP PACKAGE/PLACEMENT COSTS,Third Party Payments,Revenue
Walsall Council,http://opendatacommunities.org/id/metropolitan-district-council/walsall,WC94-393,31/07/2018,Adult Social Care,ANCHOR,17/07/2018,"2,180.00",73373-RESIDENTIAL & NURSING CARE PLACEMENTS,OP PACKAGE/PLACEMENT COSTS,Third Party Payments,Revenue
Walsall Council,http://opendatacommunities.org/id/metropolitan-district-council/walsall,WC94-394,31/07/2018,Adult Social Care,ANCHOR,03/07/2018,"2,200.00",73373-RESIDENTIAL & NURSING CARE PLACEMENTS,OP PACKAGE/PLACEMENT COSTS,Third Party Payments,Revenue
Walsall Council,http://opendatacommunities.org/id/metropolitan-district-council/walsall,WC94-395,31/07/2018,Adult Social Care,ANCHOR,03/07/2018,"2,200.00",73373-RESIDENTIAL & NURSING CARE PLACEMENTS,OP PACKAGE/PLACEMENT COSTS,Third Party Payments,Revenue
Walsall Council,http://opendatacommunities.org/id/metropolitan-district-council/walsall,WC94-396,31/07/2018,Adult Social Care,ANCHOR,03/07/2018,"2,200.00",73373-RESIDENTIAL & NURSING CARE PLACEMENTS,OP PACKAGE/PLACEMENT COSTS,Third Party Payments,Revenue
Walsall Council,http://opendatacommunities.org/id/metropolitan-district-council/walsall,WC94-397,31/07/2018,Adult Social Care,ANCHOR,17/07/2018,"2,200.00",73373-RESIDENTIAL & NURSING CARE PLACEMENTS,OP PACKAGE/PLACEMENT COSTS,Third Party Payments,Revenue
Walsall Council,http://opendatacommunities.org/id/metropolitan-district-council/walsall,WC94-398,31/07/2018,Adult Social Care,ANCHOR,03/07/2018,"2,768.57",73373-RESIDENTIAL & NURSING CARE PLACEMENTS,MENTAL HEALTH PACKAGE/PLACEMENT COSTS,Third Party Payments,Revenue
Walsall Council,http://opendatacommunities.org/id/metropolitan-district-council/walsall,WC94-399,31/07/2018,Adult Social Care,ANCHOR,03/07/2018,"3,680.00",73373-RESIDENTIAL & NURSING CARE PLACEMENTS,OP PACKAGE/PLACEMENT COSTS,Third Party Payments,Revenue
Walsall Council,http://opendatacommunities.org/id/metropolitan-district-council/walsall,WC94-400,31/07/2018,Adult Social Care,ANCHOR,03/07/2018,"4,032.00",73373-RESIDENTIAL & NURSING CARE PLACEMENTS,OP PACKAGE/PLACEMENT COSTS,Third Party Payments,Revenue
Walsall Council,http://opendatacommunities.org/id/metropolitan-district-council/walsall,WC94-401,31/07/2018,Childrens,REDACTED,02/07/2018,314.44,74509-SPECIAL GUARDIANSHIP ORDERS,ADOPTION ALLOWANCES,Transfer Payments,Revenue
Walsall Council,http://opendatacommunities.org/id/metropolitan-district-council/walsall,WC94-402,31/07/2018,Childrens,REDACTED,30/07/2018,314.44,74509-SPECIAL GUARDIANSHIP ORDERS,ADOPTION ALLOWANCES,Transfer Payments,Revenue
Walsall Council,http://opendatacommunities.org/id/metropolitan-district-council/walsall,WC94-403,31/07/2018,Childrens,REDACTED,16/07/2018,720.00,74501-MAINTENANCE ALLOWANCE-FOSTER CARERS,INTERNAL FOSTER CARE PROVISION,Transfer Payments,Revenue
Walsall Council,http://opendatacommunities.org/id/metropolitan-district-council/walsall,WC94-404,31/07/2018,Childrens,REDACTED,16/07/2018,"1,000.00",74508-INTERNAL FOSTER CARERS-CARER FEES,INTERNAL FOSTER CARE PROVISION,Transfer Payments,Revenue
Walsall Council,http://opendatacommunities.org/id/metropolitan-district-council/walsall,WC94-405,31/07/2018,Adult Social Care,REDACTED,11/07/2018,"1,771.28",73506-DIRECT PAYMENT,PHYSICAL SUPPORT,Third Party Payments,Revenue
Walsall Council,http://opendatacommunities.org/id/metropolitan-district-council/walsall,WC94-406,31/07/2018,Adult Social Care,ANGEL COURT RESIDENTIAL CARE HOME,17/07/2018,"1,809.40",73373-RESIDENTIAL & NURSING CARE PLACEMENTS,OP PACKAGE/PLACEMENT COSTS,Third Party Payments,Revenue
Walsall Council,http://opendatacommunities.org/id/metropolitan-district-council/walsall,WC94-407,31/07/2018,Adult Social Care,ANGEL COURT RESIDENTIAL CARE HOME,17/07/2018,"2,010.56",73373-RESIDENTIAL & NURSING CARE PLACEMENTS,OP PACKAGE/PLACEMENT COSTS,Third Party Payments,Revenue
Walsall Council,http://opendatacommunities.org/id/metropolitan-district-council/walsall,WC94-408,31/07/2018,Adult Social Care,ANGEL COURT RESIDENTIAL CARE HOME,17/07/2018,"2,088.94",73373-RESIDENTIAL & NURSING CARE PLACEMENTS,OP PACKAGE/PLACEMENT COSTS,Third Party Payments,Revenue
Walsall Council,http://opendatacommunities.org/id/metropolitan-district-council/walsall,WC94-409,31/07/2018,Adult Social Care,ANGEL COURT RESIDENTIAL CARE HOME,17/07/2018,"2,119.84",73373-RESIDENTIAL & NURSING CARE PLACEMENTS,OP PACKAGE/PLACEMENT COSTS,Third Party Payments,Revenue
Walsall Council,http://opendatacommunities.org/id/metropolitan-district-council/walsall,WC94-410,31/07/2018,Childrens,REDACTED,02/07/2018,368.76,74509-SPECIAL GUARDIANSHIP ORDERS,ADOPTION ALLOWANCES,Transfer Payments,Revenue
Walsall Council,http://opendatacommunities.org/id/metropolitan-district-council/walsall,WC94-411,31/07/2018,Childrens,REDACTED,02/07/2018,368.76,74509-SPECIAL GUARDIANSHIP ORDERS,ADOPTION ALLOWANCES,Transfer Payments,Revenue
Walsall Council,http://opendatacommunities.org/id/metropolitan-district-council/walsall,WC94-412,31/07/2018,Childrens,REDACTED,30/07/2018,368.76,74509-SPECIAL GUARDIANSHIP ORDERS,ADOPTION ALLOWANCES,Transfer Payments,Revenue
Walsall Council,http://opendatacommunities.org/id/metropolitan-district-council/walsall,WC94-413,31/07/2018,Childrens,REDACTED,30/07/2018,368.76,74509-SPECIAL GUARDIANSHIP ORDERS,ADOPTION ALLOWANCES,Transfer Payments,Revenue
Walsall Council,http://opendatacommunities.org/id/metropolitan-district-council/walsall,WC94-414,31/07/2018,Childrens,REDACTED,02/07/2018,500.16,74509-SPECIAL GUARDIANSHIP ORDERS,ADOPTION ALLOWANCES,Transfer Payments,Revenue
Walsall Council,http://opendatacommunities.org/id/metropolitan-district-council/walsall,WC94-415,31/07/2018,Childrens,REDACTED,30/07/2018,500.16,74509-SPECIAL GUARDIANSHIP ORDERS,ADOPTION ALLOWANCES,Transfer Payments,Revenue
Walsall Council,http://opendatacommunities.org/id/metropolitan-district-council/walsall,WC94-416,31/07/2018,Childrens,REDACTED,02/07/2018,312.04,74509-SPECIAL GUARDIANSHIP ORDERS,ADOPTION ALLOWANCES,Transfer Payments,Revenue
Walsall Council,http://opendatacommunities.org/id/metropolitan-district-council/walsall,WC94-417,31/07/2018,Childrens,REDACTED,30/07/2018,312.04,74509-SPECIAL GUARDIANSHIP ORDERS,ADOPTION ALLOWANCES,Transfer Payments,Revenue
Walsall Council,http://opendatacommunities.org/id/metropolitan-district-council/walsall,WC94-418,31/07/2018,Adult Social Care,REDACTED,11/07/2018,327.36,73506-DIRECT PAYMENT,LEARNING DISABILITY SUPPORT,Third Party Payments,Revenue
Walsall Council,http://opendatacommunities.org/id/metropolitan-district-council/walsall,WC94-419,31/07/2018,Economy & Environment,REDACTED,09/07/2018,"2,000.00",01002-PROJECT FEES,CFR 632 WALSALL ARBORETUM RESTORATION PROGRAMME,Capital,Capital
Walsall Council,http://opendatacommunities.org/id/metropolitan-district-council/walsall,WC94-420,31/07/2018,Adult Social Care,REDACTED,11/07/2018,"1,152.12",73506-DIRECT PAYMENT,PHYSICAL SUPPORT,Third Party Payments,Revenue
Walsall Council,http://opendatacommunities.org/id/metropolitan-district-council/walsall,WC94-421,31/07/2018,Adult Social Care,ANSON COURT RESIDENTIAL HOME,30/07/2018,-469.13,73373-RESIDENTIAL & NURSING CARE PLACEMENTS,OP PACKAGE/PLACEMENT COSTS,Third Party Payments,Revenue
Walsall Council,http://opendatacommunities.org/id/metropolitan-district-council/walsall,WC94-422,31/07/2018,Adult Social Care,ANSON COURT RESIDENTIAL HOME,10/07/2018,-268.07,73373-RESIDENTIAL & NURSING CARE PLACEMENTS,OP PACKAGE/PLACEMENT COSTS,Third Party Payments,Revenue
Walsall Council,http://opendatacommunities.org/id/metropolitan-district-council/walsall,WC94-423,31/07/2018,Adult Social Care,ANSON COURT RESIDENTIAL HOME,10/07/2018,335.09,73373-RESIDENTIAL & NURSING CARE PLACEMENTS,OP PACKAGE/PLACEMENT COSTS,Third Party Payments,Revenue
Walsall Council,http://opendatacommunities.org/id/metropolitan-district-council/walsall,WC94-424,31/07/2018,Adult Social Care,ANSON COURT RESIDENTIAL HOME,03/07/2018,"1,876.52",73373-RESIDENTIAL & NURSING CARE PLACEMENTS,OP PACKAGE/PLACEMENT COSTS,Third Party Payments,Revenue
Walsall Council,http://opendatacommunities.org/id/metropolitan-district-council/walsall,WC94-425,31/07/2018,Adult Social Care,ANSON COURT RESIDENTIAL HOME,03/07/2018,"1,876.52",73373-RESIDENTIAL & NURSING CARE PLACEMENTS,OP PACKAGE/PLACEMENT COSTS,Third Party Payments,Revenue
Walsall Council,http://opendatacommunities.org/id/metropolitan-district-council/walsall,WC94-426,31/07/2018,Adult Social Care,ANSON COURT RESIDENTIAL HOME,03/07/2018,"1,876.52",73373-RESIDENTIAL & NURSING CARE PLACEMENTS,OP PACKAGE/PLACEMENT COSTS,Third Party Payments,Revenue
Walsall Council,http://opendatacommunities.org/id/metropolitan-district-council/walsall,WC94-427,31/07/2018,Adult Social Care,ANSON COURT RESIDENTIAL HOME,03/07/2018,"1,876.52",73373-RESIDENTIAL & NURSING CARE PLACEMENTS,OP PACKAGE/PLACEMENT COSTS,Third Party Payments,Revenue
Walsall Council,http://opendatacommunities.org/id/metropolitan-district-council/walsall,WC94-428,31/07/2018,Adult Social Care,ANSON COURT RESIDENTIAL HOME,03/07/2018,"1,876.52",73373-RESIDENTIAL & NURSING CARE PLACEMENTS,OP PACKAGE/PLACEMENT COSTS,Third Party Payments,Revenue
Walsall Council,http://opendatacommunities.org/id/metropolitan-district-council/walsall,WC94-429,31/07/2018,Adult Social Care,ANSON COURT RESIDENTIAL HOME,03/07/2018,"1,876.52",73373-RESIDENTIAL & NURSING CARE PLACEMENTS,OP PACKAGE/PLACEMENT COSTS,Third Party Payments,Revenue
Walsall Council,http://opendatacommunities.org/id/metropolitan-district-council/walsall,WC94-430,31/07/2018,Adult Social Care,ANSON COURT RESIDENTIAL HOME,03/07/2018,"1,876.52",73373-RESIDENTIAL & NURSING CARE PLACEMENTS,OP PACKAGE/PLACEMENT COSTS,Third Party Payments,Revenue
Walsall Council,http://opendatacommunities.org/id/metropolitan-district-council/walsall,WC94-431,31/07/2018,Adult Social Care,ANSON COURT RESIDENTIAL HOME,03/07/2018,"1,876.52",73373-RESIDENTIAL & NURSING CARE PLACEMENTS,OP PACKAGE/PLACEMENT COSTS,Third Party Payments,Revenue
Walsall Council,http://opendatacommunities.org/id/metropolitan-district-council/walsall,WC94-432,31/07/2018,Adult Social Care,ANSON COURT RESIDENTIAL HOME,03/07/2018,"1,876.52",73373-RESIDENTIAL & NURSING CARE PLACEMENTS,OP PACKAGE/PLACEMENT COSTS,Third Party Payments,Revenue
Walsall Council,http://opendatacommunities.org/id/metropolitan-district-council/walsall,WC94-433,31/07/2018,Adult Social Care,ANSON COURT RESIDENTIAL HOME,03/07/2018,"1,876.52",73373-RESIDENTIAL & NURSING CARE PLACEMENTS,OP PACKAGE/PLACEMENT COSTS,Third Party Payments,Revenue
Walsall Council,http://opendatacommunities.org/id/metropolitan-district-council/walsall,WC94-434,31/07/2018,Adult Social Care,ANSON COURT RESIDENTIAL HOME,03/07/2018,"1,876.52",73373-RESIDENTIAL & NURSING CARE PLACEMENTS,MENTAL HEALTH PACKAGE/PLACEMENT COSTS,Third Party Payments,Revenue
Walsall Council,http://opendatacommunities.org/id/metropolitan-district-council/walsall,WC94-435,31/07/2018,Adult Social Care,ANSON COURT RESIDENTIAL HOME,03/07/2018,"1,876.52",73373-RESIDENTIAL & NURSING CARE PLACEMENTS,OP PACKAGE/PLACEMENT COSTS,Third Party Payments,Revenue
Walsall Council,http://opendatacommunities.org/id/metropolitan-district-council/walsall,WC94-436,31/07/2018,Adult Social Care,ANSON COURT RESIDENTIAL HOME,03/07/2018,"1,876.52",73373-RESIDENTIAL & NURSING CARE PLACEMENTS,OP PACKAGE/PLACEMENT COSTS,Third Party Payments,Revenue
Walsall Council,http://opendatacommunities.org/id/metropolitan-district-council/walsall,WC94-437,31/07/2018,Adult Social Care,ANSON COURT RESIDENTIAL HOME,03/07/2018,"1,876.52",73373-RESIDENTIAL & NURSING CARE PLACEMENTS,OP PACKAGE/PLACEMENT COSTS,Third Party Payments,Revenue
Walsall Council,http://opendatacommunities.org/id/metropolitan-district-council/walsall,WC94-438,31/07/2018,Adult Social Care,ANSON COURT RESIDENTIAL HOME,03/07/2018,"1,876.52",73373-RESIDENTIAL & NURSING CARE PLACEMENTS,OP PACKAGE/PLACEMENT COSTS,Third Party Payments,Revenue
Walsall Council,http://opendatacommunities.org/id/metropolitan-district-council/walsall,WC94-439,31/07/2018,Adult Social Care,ANSON COURT RESIDENTIAL HOME,03/07/2018,"1,876.52",73373-RESIDENTIAL & NURSING CARE PLACEMENTS,OP PACKAGE/PLACEMENT COSTS,Third Party Payments,Revenue
Walsall Council,http://opendatacommunities.org/id/metropolitan-district-council/walsall,WC94-440,31/07/2018,Adult Social Care,ANSON COURT RESIDENTIAL HOME,03/07/2018,"1,876.52",73373-RESIDENTIAL & NURSING CARE PLACEMENTS,OP PACKAGE/PLACEMENT COSTS,Third Party Payments,Revenue
Walsall Council,http://opendatacommunities.org/id/metropolitan-district-council/walsall,WC94-441,31/07/2018,Adult Social Care,ANSON COURT RESIDENTIAL HOME,03/07/2018,"1,876.52",73373-RESIDENTIAL & NURSING CARE PLACEMENTS,OP PACKAGE/PLACEMENT COSTS,Third Party Payments,Revenue
Walsall Council,http://opendatacommunities.org/id/metropolitan-district-council/walsall,WC94-442,31/07/2018,Adult Social Care,ANSON COURT RESIDENTIAL HOME,03/07/2018,"1,876.52",73373-RESIDENTIAL & NURSING CARE PLACEMENTS,OP PACKAGE/PLACEMENT COSTS,Third Party Payments,Revenue
Walsall Council,http://opendatacommunities.org/id/metropolitan-district-council/walsall,WC94-443,31/07/2018,Adult Social Care,ANSON COURT RESIDENTIAL HOME,10/07/2018,"1,876.52",73373-RESIDENTIAL & NURSING CARE PLACEMENTS,OP PACKAGE/PLACEMENT COSTS,Third Party Payments,Revenue
Walsall Council,http://opendatacommunities.org/id/metropolitan-district-council/walsall,WC94-444,31/07/2018,Adult Social Care,ANSON COURT RESIDENTIAL HOME,03/07/2018,"1,956.52",73373-RESIDENTIAL & NURSING CARE PLACEMENTS,OP PACKAGE/PLACEMENT COSTS,Third Party Payments,Revenue
Walsall Council,http://opendatacommunities.org/id/metropolitan-district-council/walsall,WC94-445,31/07/2018,Adult Social Care,ANSON COURT RESIDENTIAL HOME,03/07/2018,"1,956.52",73373-RESIDENTIAL & NURSING CARE PLACEMENTS,OP PACKAGE/PLACEMENT COSTS,Third Party Payments,Revenue
Walsall Council,http://opendatacommunities.org/id/metropolitan-district-council/walsall,WC94-446,31/07/2018,Adult Social Care,ANSON COURT RESIDENTIAL HOME,03/07/2018,"1,956.52",73373-RESIDENTIAL & NURSING CARE PLACEMENTS,OP PACKAGE/PLACEMENT COSTS,Third Party Payments,Revenue
Walsall Council,http://opendatacommunities.org/id/metropolitan-district-council/walsall,WC94-447,31/07/2018,Adult Social Care,ANSON COURT RESIDENTIAL HOME,03/07/2018,"1,956.58",73373-RESIDENTIAL & NURSING CARE PLACEMENTS,OP PACKAGE/PLACEMENT COSTS,Third Party Payments,Revenue
Walsall Council,http://opendatacommunities.org/id/metropolitan-district-council/walsall,WC94-448,31/07/2018,Adult Social Care,ANSON COURT RESIDENTIAL HOME,03/07/2018,"1,996.52",73373-RESIDENTIAL & NURSING CARE PLACEMENTS,OP PACKAGE/PLACEMENT COSTS,Third Party Payments,Revenue
Walsall Council,http://opendatacommunities.org/id/metropolitan-district-council/walsall,WC94-449,31/07/2018,Adult Social Care,ANSON COURT RESIDENTIAL HOME,03/07/2018,"1,996.52",73373-RESIDENTIAL & NURSING CARE PLACEMENTS,OP PACKAGE/PLACEMENT COSTS,Third Party Payments,Revenue
Walsall Council,http://opendatacommunities.org/id/metropolitan-district-council/walsall,WC94-450,31/07/2018,Adult Social Care,ANSON COURT RESIDENTIAL HOME,03/07/2018,"4,956.52",73373-RESIDENTIAL & NURSING CARE PLACEMENTS,MENTAL HEALTH PACKAGE/PLACEMENT COSTS,Third Party Payments,Revenue
Walsall Council,http://opendatacommunities.org/id/metropolitan-district-council/walsall,WC94-451,31/07/2018,Childrens,REDACTED,02/07/2018,604.00,74510-RESIDENTS ORDERS,ADOPTION ALLOWANCES,Third Party Payments,Revenue
Walsall Council,http://opendatacommunities.org/id/metropolitan-district-council/walsall,WC94-452,31/07/2018,Childrens,REDACTED,30/07/2018,604.00,74510-RESIDENTS ORDERS,ADOPTION ALLOWANCES,Third Party Payments,Revenue
Walsall Council,http://opendatacommunities.org/id/metropolitan-district-council/walsall,WC94-453,31/07/2018,Childrens,REDACTED,02/07/2018,333.12,74509-SPECIAL GUARDIANSHIP ORDERS,ADOPTION ALLOWANCES,Transfer Payments,Revenue
Walsall Council,http://opendatacommunities.org/id/metropolitan-district-council/walsall,WC94-454,31/07/2018,Childrens,REDACTED,30/07/2018,333.12,74509-SPECIAL GUARDIANSHIP ORDERS,ADOPTION ALLOWANCES,Transfer Payments,Revenue
Walsall Council,http://opendatacommunities.org/id/metropolitan-district-council/walsall,WC94-455,31/07/2018,Economy & Environment,APCOA PARKING SERVICES (UK) LTD,19/07/2018,"42,413.72",73025-PROFESSIONAL SERVICES-PRIV CONTRACTOR & OTHER AGENCIES,PARKING SERVICES OFF-STREET,Third Party Payments,Revenue
Walsall Council,http://opendatacommunities.org/id/metropolitan-district-council/walsall,WC94-456,31/07/2018,Economy & Environment,AQUA FORCE SPECIAL WASTE LTD,11/07/2018,700.00,73029-HAZARDOUS WASTE REMOVAL/DISPOSAL-PRIV CONTRACTOR FEES,WASTE DISPOSAL - RESIDUAL,Third Party Payments,Revenue
Walsall Council,http://opendatacommunities.org/id/metropolitan-district-council/walsall,WC94-457,31/07/2018,Childrens,AQUAID (BIRMINGHAM CENTRAL),18/07/2018,298.00,61009-BEVERAGES-PROVISIONS,PELSALL EDC,Supplies & Services,Revenue
Walsall Council,http://opendatacommunities.org/id/metropolitan-district-council/walsall,WC94-458,31/07/2018,Childrens,AQUAID (BIRMINGHAM CENTRAL),23/07/2018,534.00,61009-BEVERAGES-PROVISIONS,PELSALL EDC,Supplies & Services,Revenue
Walsall Council,http://opendatacommunities.org/id/metropolitan-district-council/walsall,WC94-459,31/07/2018,Childrens,AQUAID (BIRMINGHAM CENTRAL),18/07/2018,555.00,61009-BEVERAGES-PROVISIONS,PELSALL EDC,Supplies & Services,Revenue
Walsall Council,http://opendatacommunities.org/id/metropolitan-district-council/walsall,WC94-460,31/07/2018,Economy & Environment,AQUALYMPIC,23/07/2018,375.00,34305-AGENCY STAFF-EMPLOYEES,BLOXWICH LEISURE CENTRE,Employees,Revenue
Walsall Council,http://opendatacommunities.org/id/metropolitan-district-council/walsall,WC94-461,31/07/2018,Adult Social Care,ARBORETUM NURSING HOME.,03/07/2018,"-1,414.29",73373-RESIDENTIAL & NURSING CARE PLACEMENTS,OP PACKAGE/PLACEMENT COSTS,Third Party Payments,Revenue
Walsall Council,http://opendatacommunities.org/id/metropolitan-district-council/walsall,WC94-462,31/07/2018,Adult Social Care,ARBORETUM NURSING HOME.,03/07/2018,"-1,275.00",73373-RESIDENTIAL & NURSING CARE PLACEMENTS,OP PACKAGE/PLACEMENT COSTS,Third Party Payments,Revenue
Walsall Council,http://opendatacommunities.org/id/metropolitan-district-council/walsall,WC94-463,31/07/2018,Adult Social Care,ARBORETUM NURSING HOME.,03/07/2018,364.90,73373-RESIDENTIAL & NURSING CARE PLACEMENTS,OP PACKAGE/PLACEMENT COSTS,Third Party Payments,Revenue
Walsall Council,http://opendatacommunities.org/id/metropolitan-district-council/walsall,WC94-464,31/07/2018,Adult Social Care,ARBORETUM NURSING HOME.,03/07/2018,785.71,73373-RESIDENTIAL & NURSING CARE PLACEMENTS,OP PACKAGE/PLACEMENT COSTS,Third Party Payments,Revenue
Walsall Council,http://opendatacommunities.org/id/metropolitan-district-council/walsall,WC94-465,31/07/2018,Adult Social Care,ARBORETUM NURSING HOME.,03/07/2018,"1,000.00",73373-RESIDENTIAL & NURSING CARE PLACEMENTS,OP PACKAGE/PLACEMENT COSTS,Third Party Payments,Revenue
Walsall Council,http://opendatacommunities.org/id/metropolitan-district-council/walsall,WC94-466,31/07/2018,Adult Social Care,ARBORETUM NURSING HOME.,24/07/2018,"1,069.84",73373-RESIDENTIAL & NURSING CARE PLACEMENTS,OP PACKAGE/PLACEMENT COSTS,Third Party Payments,Revenue
Walsall Council,http://opendatacommunities.org/id/metropolitan-district-council/walsall,WC94-467,31/07/2018,Adult Social Care,ARBORETUM NURSING HOME.,03/07/2018,"1,071.43",73373-RESIDENTIAL & NURSING CARE PLACEMENTS,OP PACKAGE/PLACEMENT COSTS,Third Party Payments,Revenue
Walsall Council,http://opendatacommunities.org/id/metropolitan-district-council/walsall,WC94-468,31/07/2018,Adult Social Care,ARBORETUM NURSING HOME.,24/07/2018,"1,299.09",73373-RESIDENTIAL & NURSING CARE PLACEMENTS,OP PACKAGE/PLACEMENT COSTS,Third Party Payments,Revenue
Walsall Council,http://opendatacommunities.org/id/metropolitan-district-council/walsall,WC94-469,31/07/2018,Adult Social Care,ARBORETUM NURSING HOME.,30/07/2018,"1,299.09",73373-RESIDENTIAL & NURSING CARE PLACEMENTS,OP PACKAGE/PLACEMENT COSTS,Third Party Payments,Revenue
Walsall Council,http://opendatacommunities.org/id/metropolitan-district-council/walsall,WC94-470,31/07/2018,Adult Social Care,ARBORETUM NURSING HOME.,03/07/2018,"1,675.45",73373-RESIDENTIAL & NURSING CARE PLACEMENTS,OP PACKAGE/PLACEMENT COSTS,Third Party Payments,Revenue
Walsall Council,http://opendatacommunities.org/id/metropolitan-district-council/walsall,WC94-471,31/07/2018,Adult Social Care,ARBORETUM NURSING HOME.,10/07/2018,"2,039.68",73373-RESIDENTIAL & NURSING CARE PLACEMENTS,PD PACKAGE/PLACEMENT COSTS,Third Party Payments,Revenue
Walsall Council,http://opendatacommunities.org/id/metropolitan-district-council/walsall,WC94-472,31/07/2018,Adult Social Care,ARBORETUM NURSING HOME.,10/07/2018,"2,039.68",73373-RESIDENTIAL & NURSING CARE PLACEMENTS,OP PACKAGE/PLACEMENT COSTS,Third Party Payments,Revenue
Walsall Council,http://opendatacommunities.org/id/metropolitan-district-council/walsall,WC94-473,31/07/2018,Adult Social Care,ARBORETUM NURSING HOME.,10/07/2018,"2,039.68",73373-RESIDENTIAL & NURSING CARE PLACEMENTS,OP PACKAGE/PLACEMENT COSTS,Third Party Payments,Revenue
Walsall Council,http://opendatacommunities.org/id/metropolitan-district-council/walsall,WC94-474,31/07/2018,Adult Social Care,ARBORETUM NURSING HOME.,10/07/2018,"2,119.68",73373-RESIDENTIAL & NURSING CARE PLACEMENTS,OP PACKAGE/PLACEMENT COSTS,Third Party Payments,Revenue
Walsall Council,http://opendatacommunities.org/id/metropolitan-district-council/walsall,WC94-475,31/07/2018,Adult Social Care,ARBORETUM NURSING HOME.,10/07/2018,"2,549.60",73373-RESIDENTIAL & NURSING CARE PLACEMENTS,OP PACKAGE/PLACEMENT COSTS,Third Party Payments,Revenue
Walsall Council,http://opendatacommunities.org/id/metropolitan-district-council/walsall,WC94-476,31/07/2018,Adult Social Care,ARBORETUM NURSING HOME.,11/07/2018,"8,195.00",73025-PROFESSIONAL SERVICES-PRIV CONTRACTOR & OTHER AGENCIES,TRANSITIONAL CARE SUPPORT TEAM,Third Party Payments,Revenue
Walsall Council,http://opendatacommunities.org/id/metropolitan-district-council/walsall,WC94-477,31/07/2018,Adult Social Care,ARBORETUM NURSING HOME.,11/07/2018,"14,900.00",73019-PSE'S-PRIV CONTRACTOR FEES,INTEGRATED DISCHARGE TEAM,Third Party Payments,Revenue
Walsall Council,http://opendatacommunities.org/id/metropolitan-district-council/walsall,WC94-478,31/07/2018,Economy & Environment,ARBURY WALSALL,24/07/2018,424.86,60009-LEASING/HIRE/RENTAL-EQUIPMENT,TARMAC,Supplies & Services,Revenue
Walsall Council,http://opendatacommunities.org/id/metropolitan-district-council/walsall,WC94-479,31/07/2018,Economy & Environment,ARCHWAY TCS LTD,02/07/2018,707.50,73025-PROFESSIONAL SERVICES-PRIV CONTRACTOR & OTHER AGENCIES,DEPOT,Third Party Payments,Revenue
Walsall Council,http://opendatacommunities.org/id/metropolitan-district-council/walsall,WC94-480,31/07/2018,Economy & Environment,ARCHWAY TCS LTD,23/07/2018,707.50,73025-PROFESSIONAL SERVICES-PRIV CONTRACTOR & OTHER AGENCIES,DEPOT,Third Party Payments,Revenue
Walsall Council,http://opendatacommunities.org/id/metropolitan-district-council/walsall,WC94-481,31/07/2018,Economy & Environment,ARCHWAY TCS LTD,30/07/2018,707.50,60537-VEHICLE WASH PLANT-MATERIALS,DEPOT,Supplies & Services,Revenue
Walsall Council,http://opendatacommunities.org/id/metropolitan-district-council/walsall,WC94-482,31/07/2018,Adult Social Care,ARDEN MANOR CARE HOME,10/07/2018,"2,500.00",73373-RESIDENTIAL & NURSING CARE PLACEMENTS,OP PACKAGE/PLACEMENT COSTS,Third Party Payments,Revenue
Walsall Council,http://opendatacommunities.org/id/metropolitan-district-council/walsall,WC94-483,31/07/2018,Adult Social Care,ARK HOME HEALTHCARE LIMITED,20/07/2018,"-5,553.74",73372-DOMICILIARY CARE,OP PACKAGE/PLACEMENT COSTS,Third Party Payments,Revenue
Walsall Council,http://opendatacommunities.org/id/metropolitan-district-council/walsall,WC94-484,31/07/2018,Childrens,ARNFIELD CARE LIMITED,16/07/2018,"15,616.00",74036-EXTERNAL RESIDENTIAL CARE-OTH AGENCY PROVISION,INDEPENDENT RESIDENTIAL HOMES,Third Party Payments,Revenue
Walsall Council,http://opendatacommunities.org/id/metropolitan-district-council/walsall,WC94-485,31/07/2018,Resources and Transformation,ART OF BRILLIANCE LTD,04/07/2018,"1,610.80",63102-CONSULTANTS FEES - CORPORATE,LEARNING & MANAGEMENT DEVELOPMENT,Supplies & Services,Revenue
Walsall Council,http://opendatacommunities.org/id/metropolitan-district-council/walsall,WC94-486,31/07/2018,Childrens,ARTHUR M GRIFFITHS & SON LTD,25/07/2018,"67,853.22",01006-SITE WORKS MAIN CONTRACTORS,CFR 929 FIBBERSLEY PRIMARY SIGNIFICANT ENLARGEMENT,Capital,Capital
Walsall Council,http://opendatacommunities.org/id/metropolitan-district-council/walsall,WC94-487,31/07/2018,Economy & Environment,ASDA PHARMACY,25/07/2018,250.54,71007-CONTRIBUTION TO PCT,PUBLIC HEALTH BUSINESS SUPPORT,Third Party Payments,Revenue
Walsall Council,http://opendatacommunities.org/id/metropolitan-district-council/walsall,WC94-488,31/07/2018,Adult Social Care,ASH GRANGE CARE HOME,17/07/2018,"1,688.84",73373-RESIDENTIAL & NURSING CARE PLACEMENTS,OP PACKAGE/PLACEMENT COSTS,Third Party Payments,Revenue
Walsall Council,http://opendatacommunities.org/id/metropolitan-district-council/walsall,WC94-489,31/07/2018,Adult Social Care,ASH GRANGE CARE HOME,17/07/2018,"1,688.84",73373-RESIDENTIAL & NURSING CARE PLACEMENTS,OP PACKAGE/PLACEMENT COSTS,Third Party Payments,Revenue
Walsall Council,http://opendatacommunities.org/id/metropolitan-district-council/walsall,WC94-490,31/07/2018,Adult Social Care,ASH GRANGE CARE HOME,17/07/2018,"2,039.68",73373-RESIDENTIAL & NURSING CARE PLACEMENTS,MENTAL HEALTH PACKAGE/PLACEMENT COSTS,Third Party Payments,Revenue
Walsall Council,http://opendatacommunities.org/id/metropolitan-district-council/walsall,WC94-491,31/07/2018,Adult Social Care,ASH GRANGE CARE HOME,17/07/2018,"2,039.68",73373-RESIDENTIAL & NURSING CARE PLACEMENTS,OP PACKAGE/PLACEMENT COSTS,Third Party Payments,Revenue
Walsall Council,http://opendatacommunities.org/id/metropolitan-district-council/walsall,WC94-492,31/07/2018,Adult Social Care,ASH GRANGE CARE HOME,17/07/2018,"2,039.68",73373-RESIDENTIAL & NURSING CARE PLACEMENTS,OP PACKAGE/PLACEMENT COSTS,Third Party Payments,Revenue
Walsall Council,http://opendatacommunities.org/id/metropolitan-district-council/walsall,WC94-493,31/07/2018,Adult Social Care,ASH GRANGE CARE HOME,17/07/2018,"2,039.68",73373-RESIDENTIAL & NURSING CARE PLACEMENTS,OP PACKAGE/PLACEMENT COSTS,Third Party Payments,Revenue
Walsall Council,http://opendatacommunities.org/id/metropolitan-district-council/walsall,WC94-494,31/07/2018,Adult Social Care,ASH GRANGE CARE HOME,17/07/2018,"2,039.68",73373-RESIDENTIAL & NURSING CARE PLACEMENTS,OP PACKAGE/PLACEMENT COSTS,Third Party Payments,Revenue
Walsall Council,http://opendatacommunities.org/id/metropolitan-district-council/walsall,WC94-495,31/07/2018,Adult Social Care,ASH GRANGE CARE HOME,17/07/2018,"2,039.68",73373-RESIDENTIAL & NURSING CARE PLACEMENTS,OP PACKAGE/PLACEMENT COSTS,Third Party Payments,Revenue
Walsall Council,http://opendatacommunities.org/id/metropolitan-district-council/walsall,WC94-496,31/07/2018,Adult Social Care,ASH GRANGE CARE HOME,17/07/2018,"2,039.68",73373-RESIDENTIAL & NURSING CARE PLACEMENTS,OP PACKAGE/PLACEMENT COSTS,Third Party Payments,Revenue
Walsall Council,http://opendatacommunities.org/id/metropolitan-district-council/walsall,WC94-497,31/07/2018,Adult Social Care,ASH GRANGE CARE HOME,17/07/2018,"2,039.68",73373-RESIDENTIAL & NURSING CARE PLACEMENTS,OP PACKAGE/PLACEMENT COSTS,Third Party Payments,Revenue
Walsall Council,http://opendatacommunities.org/id/metropolitan-district-council/walsall,WC94-498,31/07/2018,Adult Social Care,ASH GRANGE CARE HOME,17/07/2018,"2,039.68",73373-RESIDENTIAL & NURSING CARE PLACEMENTS,OP PACKAGE/PLACEMENT COSTS,Third Party Payments,Revenue
Walsall Council,http://opendatacommunities.org/id/metropolitan-district-council/walsall,WC94-499,31/07/2018,Adult Social Care,ASH GRANGE CARE HOME,30/07/2018,"2,039.68",73373-RESIDENTIAL & NURSING CARE PLACEMENTS,OP PACKAGE/PLACEMENT COSTS,Third Party Payments,Revenue
Walsall Council,http://opendatacommunities.org/id/metropolitan-district-council/walsall,WC94-500,31/07/2018,Adult Social Care,ASH GRANGE CARE HOME,17/07/2018,"2,243.64",73373-RESIDENTIAL & NURSING CARE PLACEMENTS,OP PACKAGE/PLACEMENT COSTS,Third Party Payments,Revenue
Walsall Council,http://opendatacommunities.org/id/metropolitan-district-council/walsall,WC94-501,31/07/2018,Adult Social Care,ASH GRANGE CARE HOME,17/07/2018,"2,243.64",73373-RESIDENTIAL & NURSING CARE PLACEMENTS,OP PACKAGE/PLACEMENT COSTS,Third Party Payments,Revenue
Walsall Council,http://opendatacommunities.org/id/metropolitan-district-council/walsall,WC94-502,31/07/2018,Adult Social Care,ASH GRANGE CARE HOME,17/07/2018,"2,319.68",73373-RESIDENTIAL & NURSING CARE PLACEMENTS,OP PACKAGE/PLACEMENT COSTS,Third Party Payments,Revenue
Walsall Council,http://opendatacommunities.org/id/metropolitan-district-council/walsall,WC94-503,31/07/2018,Adult Social Care,ASH GRANGE CARE HOME,24/07/2018,"2,495.72",73373-RESIDENTIAL & NURSING CARE PLACEMENTS,PD PACKAGE/PLACEMENT COSTS,Third Party Payments,Revenue
Walsall Council,http://opendatacommunities.org/id/metropolitan-district-council/walsall,WC94-504,31/07/2018,Adult Social Care,ASH GRANGE CARE HOME,10/07/2018,"2,657.14",73373-RESIDENTIAL & NURSING CARE PLACEMENTS,OP PACKAGE/PLACEMENT COSTS,Third Party Payments,Revenue
Walsall Council,http://opendatacommunities.org/id/metropolitan-district-council/walsall,WC94-505,31/07/2018,Adult Social Care,ASH GRANGE CARE HOME,10/07/2018,"2,745.71",73373-RESIDENTIAL & NURSING CARE PLACEMENTS,OP PACKAGE/PLACEMENT COSTS,Third Party Payments,Revenue
Walsall Council,http://opendatacommunities.org/id/metropolitan-district-council/walsall,WC94-506,31/07/2018,Adult Social Care,ASHBOURNE LODGE,10/07/2018,"2,103.86",73373-RESIDENTIAL & NURSING CARE PLACEMENTS,OP PACKAGE/PLACEMENT COSTS,Third Party Payments,Revenue
Walsall Council,http://opendatacommunities.org/id/metropolitan-district-council/walsall,WC94-507,31/07/2018,Adult Social Care,ASHCROFT HOLLOW NURSING HOME,24/07/2018,655.64,73373-RESIDENTIAL & NURSING CARE PLACEMENTS,OP PACKAGE/PLACEMENT COSTS,Third Party Payments,Revenue
Walsall Council,http://opendatacommunities.org/id/metropolitan-district-council/walsall,WC94-508,31/07/2018,Adult Social Care,REDACTED,11/07/2018,422.00,73506-DIRECT PAYMENT,LEARNING DISABILITY SUPPORT,Third Party Payments,Revenue
Walsall Council,http://opendatacommunities.org/id/metropolitan-district-council/walsall,WC94-509,31/07/2018,Adult Social Care,REDACTED,11/07/2018,"1,092.00",73506-DIRECT PAYMENT,LEARNING DISABILITY SUPPORT,Third Party Payments,Revenue
Walsall Council,http://opendatacommunities.org/id/metropolitan-district-council/walsall,WC94-510,31/07/2018,Economy & Environment,ASKEWS AND HOLTS LIBRARY SERVICES LTD,04/07/2018,"3,100.00",60501-LIBRARY BOOKS,LIBRARY STOCK AND PERFORMANCE,Supplies & Services,Revenue
Walsall Council,http://opendatacommunities.org/id/metropolitan-district-council/walsall,WC94-511,31/07/2018,Adult Social Care,REDACTED,11/07/2018,856.80,73506-DIRECT PAYMENT,PHYSICAL SUPPORT,Third Party Payments,Revenue
Walsall Council,http://opendatacommunities.org/id/metropolitan-district-council/walsall,WC94-512,31/07/2018,Adult Social Care,ASSURED HEALTHCARE SOLUTIONS (PARK FARM LODGE),10/07/2018,"2,087.49",73373-RESIDENTIAL & NURSING CARE PLACEMENTS,OP PACKAGE/PLACEMENT COSTS,Third Party Payments,Revenue
Walsall Council,http://opendatacommunities.org/id/metropolitan-district-council/walsall,WC94-513,31/07/2018,Adult Social Care,AUTISM WEST MIDLANDS,24/07/2018,"7,608.72",73373-RESIDENTIAL & NURSING CARE PLACEMENTS,LD PACKAGE/PLACEMENT COSTS,Third Party Payments,Revenue
Walsall Council,http://opendatacommunities.org/id/metropolitan-district-council/walsall,WC94-514,31/07/2018,Adult Social Care,AUTISM WEST MIDLANDS 001,30/07/2018,"5,086.03",73373-RESIDENTIAL & NURSING CARE PLACEMENTS,LD PACKAGE/PLACEMENT COSTS,Third Party Payments,Revenue
Walsall Council,http://opendatacommunities.org/id/metropolitan-district-council/walsall,WC94-515,31/07/2018,Economy & Environment,AUTOBITS,06/07/2018,330.00,73005-LANDFILL PTYS-PRIV CONTRACTOR FEES,WASTE DISPOSAL - RESIDUAL,Third Party Payments,Revenue
Walsall Council,http://opendatacommunities.org/id/metropolitan-district-council/walsall,WC94-516,31/07/2018,Economy & Environment,AUTORITE INDUSTRIES (WILLENHALL)LTD,17/07/2018,227.50,73025-PROFESSIONAL SERVICES-PRIV CONTRACTOR & OTHER AGENCIES,FLEET,Third Party Payments,Revenue
Walsall Council,http://opendatacommunities.org/id/metropolitan-district-council/walsall,WC94-517,31/07/2018,Holding Accounts,AUXILLIS SERVICES LIMITED,06/07/2018,"1,269.83",67001-MISC INSURANCES - PAYMENT OF CLAIMS,PUBLIC LIABILITY,Supplies & Services,Revenue
Walsall Council,http://opendatacommunities.org/id/metropolitan-district-council/walsall,WC94-518,31/07/2018,Adult Social Care,REDACTED,11/07/2018,989.04,73506-DIRECT PAYMENT,SUPPORT WITH MEMORY & COGNITION,Third Party Payments,Revenue
Walsall Council,http://opendatacommunities.org/id/metropolitan-district-council/walsall,WC94-519,31/07/2018,Economy & Environment,AWKEYE,19/07/2018,"1,285.19",60500-GENERAL MATERIALS,INFRASTRUCTURE MAINTENANCE,Supplies & Services,Revenue
Walsall Council,http://opendatacommunities.org/id/metropolitan-district-council/walsall,WC94-520,31/07/2018,Childrens,REDACTED,12/07/2018,"1,284.00",73506-DIRECT PAYMENT,FAMILY SUPPORT - DIRECT PAYMENTS,Third Party Payments,Revenue
Walsall Council,http://opendatacommunities.org/id/metropolitan-district-council/walsall,WC94-521,31/07/2018,Adult Social Care,REDACTED,11/07/2018,"3,182.40",73506-DIRECT PAYMENT,LEARNING DISABILITY SUPPORT,Third Party Payments,Revenue
Walsall Council,http://opendatacommunities.org/id/metropolitan-district-council/walsall,WC94-522,31/07/2018,Economy & Environment,B & S CHAINS LTD,11/07/2018,"1,148.50",60500-GENERAL MATERIALS,INFRASTRUCTURE MAINTENANCE,Supplies & Services,Revenue
Walsall Council,http://opendatacommunities.org/id/metropolitan-district-council/walsall,WC94-523,31/07/2018,Childrens,REDACTED,17/07/2018,"1,333.00",60500-GENERAL MATERIALS,PRIMARY CONSULTATIVE GROUP,Supplies & Services,Revenue
Walsall Council,http://opendatacommunities.org/id/metropolitan-district-council/walsall,WC94-524,31/07/2018,Childrens,REDACTED,03/07/2018,464.00,76000-TRANSFER PAYMENTS - SOCIAL SERVICES CLIENTS,TRANSITION AND LEAVING CARE PLACEMENTS,Transfer Payments,Revenue
Walsall Council,http://opendatacommunities.org/id/metropolitan-district-council/walsall,WC94-525,31/07/2018,Childrens,REDACTED,03/07/2018,464.00,76000-TRANSFER PAYMENTS - SOCIAL SERVICES CLIENTS,TRANSITION AND LEAVING CARE PLACEMENTS,Transfer Payments,Revenue
Walsall Council,http://opendatacommunities.org/id/metropolitan-district-council/walsall,WC94-526,31/07/2018,Childrens,REDACTED,17/07/2018,464.00,76000-TRANSFER PAYMENTS - SOCIAL SERVICES CLIENTS,TRANSITION AND LEAVING CARE PLACEMENTS,Transfer Payments,Revenue
Walsall Council,http://opendatacommunities.org/id/metropolitan-district-council/walsall,WC94-527,31/07/2018,Childrens,REDACTED,17/07/2018,464.00,76000-TRANSFER PAYMENTS - SOCIAL SERVICES CLIENTS,TRANSITION AND LEAVING CARE PLACEMENTS,Transfer Payments,Revenue
Walsall Council,http://opendatacommunities.org/id/metropolitan-district-council/walsall,WC94-528,31/07/2018,Childrens,REDACTED,31/07/2018,464.00,76000-TRANSFER PAYMENTS - SOCIAL SERVICES CLIENTS,TRANSITION AND LEAVING CARE PLACEMENTS,Transfer Payments,Revenue
Walsall Council,http://opendatacommunities.org/id/metropolitan-district-council/walsall,WC94-529,31/07/2018,Childrens,REDACTED,31/07/2018,464.00,76000-TRANSFER PAYMENTS - SOCIAL SERVICES CLIENTS,TRANSITION AND LEAVING CARE PLACEMENTS,Transfer Payments,Revenue
Walsall Council,http://opendatacommunities.org/id/metropolitan-district-council/walsall,WC94-530,31/07/2018,Resources and Transformation,BABCOCK INTERNATIONAL GROUP,20/07/2018,440.00,30030-EXTERNAL TRAINING,FINANCE,Employees,Revenue
Walsall Council,http://opendatacommunities.org/id/metropolitan-district-council/walsall,WC94-531,31/07/2018,Childrens,BACK CARE SOLUTIONS LTD,13/07/2018,"1,191.40",60000-FURNITURE & EQUIPMENT,EARLY YEARS,Supplies & Services,Revenue
Walsall Council,http://opendatacommunities.org/id/metropolitan-district-council/walsall,WC94-532,31/07/2018,Economy & Environment,BAKER HALL PARTNERSHIP,12/07/2018,723.75,63000-PROFESSIONAL FEES AND SERVICES,BUILDING CONTROL REVENUE FUNDED,Supplies & Services,Revenue
Walsall Council,http://opendatacommunities.org/id/metropolitan-district-council/walsall,WC94-533,31/07/2018,Economy & Environment,BAKER HALL PARTNERSHIP,10/07/2018,"1,180.50",63000-PROFESSIONAL FEES AND SERVICES,BUILDING CONTROL REVENUE FUNDED,Supplies & Services,Revenue
Walsall Council,http://opendatacommunities.org/id/metropolitan-district-council/walsall,WC94-534,31/07/2018,Adult Social Care,REDACTED,11/07/2018,"3,328.80",73506-DIRECT PAYMENT,LEARNING DISABILITY SUPPORT,Third Party Payments,Revenue
Walsall Council,http://opendatacommunities.org/id/metropolitan-district-council/walsall,WC94-535,31/07/2018,Adult Social Care,REDACTED,11/07/2018,"1,582.88",73506-DIRECT PAYMENT,PHYSICAL SUPPORT,Third Party Payments,Revenue
Walsall Council,http://opendatacommunities.org/id/metropolitan-district-council/walsall,WC94-536,31/07/2018,Childrens,REDACTED,30/07/2018,70.00,60006-NEW-FURNITURE & EQUIPMENT,FAMILY & FRIENDS FOSTER CARE PROVISION,Supplies & Services,Revenue
Walsall Council,http://opendatacommunities.org/id/metropolitan-district-council/walsall,WC94-537,31/07/2018,Childrens,REDACTED,02/07/2018,340.00,74508-INTERNAL FOSTER CARERS-CARER FEES,FAMILY & FRIENDS FOSTER CARE PROVISION,Transfer Payments,Revenue
Walsall Council,http://opendatacommunities.org/id/metropolitan-district-council/walsall,WC94-538,31/07/2018,Childrens,REDACTED,30/07/2018,340.00,74508-INTERNAL FOSTER CARERS-CARER FEES,FAMILY & FRIENDS FOSTER CARE PROVISION,Transfer Payments,Revenue
Walsall Council,http://opendatacommunities.org/id/metropolitan-district-council/walsall,WC94-539,31/07/2018,Childrens,REDACTED,02/07/2018,540.00,74501-MAINTENANCE ALLOWANCE-FOSTER CARERS,FAMILY & FRIENDS FOSTER CARE PROVISION,Transfer Payments,Revenue
Walsall Council,http://opendatacommunities.org/id/metropolitan-district-council/walsall,WC94-540,31/07/2018,Childrens,REDACTED,30/07/2018,540.00,74501-MAINTENANCE ALLOWANCE-FOSTER CARERS,FAMILY & FRIENDS FOSTER CARE PROVISION,Transfer Payments,Revenue
Walsall Council,http://opendatacommunities.org/id/metropolitan-district-council/walsall,WC94-541,31/07/2018,Adult Social Care,REDACTED,11/07/2018,814.92,73506-DIRECT PAYMENT,SUPPORT WITH MEMORY & COGNITION,Third Party Payments,Revenue
Walsall Council,http://opendatacommunities.org/id/metropolitan-district-council/walsall,WC94-542,31/07/2018,Economy & Environment,BARBOUR LOGIC LIMITED,09/07/2018,"6,562.50",73025-PROFESSIONAL SERVICES-PRIV CONTRACTOR & OTHER AGENCIES,PARKING SERVICES OFF-STREET,Third Party Payments,Revenue
Walsall Council,http://opendatacommunities.org/id/metropolitan-district-council/walsall,WC94-543,31/07/2018,Childrens,BARNARDOS SERVICES LTD,23/07/2018,"1,010.75",32000-MISC FEES AND EXPENSES,DIRECTLY COMMISSIONED NURSING SERVICES,Employees,Revenue
Walsall Council,http://opendatacommunities.org/id/metropolitan-district-council/walsall,WC94-544,31/07/2018,Childrens,BARNARDOS SERVICES LTD,23/07/2018,"1,088.50",32000-MISC FEES AND EXPENSES,DIRECTLY COMMISSIONED NURSING SERVICES,Employees,Revenue
Walsall Council,http://opendatacommunities.org/id/metropolitan-district-council/walsall,WC94-545,31/07/2018,Childrens,BARNARDOS SERVICES LTD,23/07/2018,"2,021.50",32000-MISC FEES AND EXPENSES,DIRECTLY COMMISSIONED NURSING SERVICES,Employees,Revenue
Walsall Council,http://opendatacommunities.org/id/metropolitan-district-council/walsall,WC94-546,31/07/2018,Childrens,BARNARDOS SERVICES LTD,23/07/2018,"3,006.33",32000-MISC FEES AND EXPENSES,DIRECTLY COMMISSIONED NURSING SERVICES,Employees,Revenue
Walsall Council,http://opendatacommunities.org/id/metropolitan-district-council/walsall,WC94-547,31/07/2018,Childrens,BARNARDOS SERVICES LTD,16/07/2018,"3,116.40",74037-INDEPENDENT FOSTER CARE-OTH AGENCY PROVISION,EXTERNAL FOSTER CARE PROVISION,Third Party Payments,Revenue
Walsall Council,http://opendatacommunities.org/id/metropolitan-district-council/walsall,WC94-548,31/07/2018,Childrens,BARNARDOS SERVICES LTD,20/07/2018,"3,467.60",63000-PROFESSIONAL FEES AND SERVICES,DIRECTLY COMMISSIONED NURSING SERVICES,Supplies & Services,Revenue
Walsall Council,http://opendatacommunities.org/id/metropolitan-district-council/walsall,WC94-549,31/07/2018,Resources and Transformation,BARNBOROUGH LTD,02/07/2018,644.40,60007-REPAIR OF EQUIPMENT-EQUIPMENT,CL ADMIN,Supplies & Services,Revenue
Walsall Council,http://opendatacommunities.org/id/metropolitan-district-council/walsall,WC94-550,31/07/2018,Childrens,BARR BEACON SCHOOL TRUST,25/07/2018,360.00,77300-ISB-FORMULA ALLOCATION,BARR BEACON SCHOOL TRUST (ACADEMY),Transfer Payments,Revenue
Walsall Council,http://opendatacommunities.org/id/metropolitan-district-council/walsall,WC94-551,31/07/2018,Childrens,BARR BEACON SCHOOL TRUST,25/07/2018,902.00,77300-ISB-FORMULA ALLOCATION,BARR BEACON SCHOOL TRUST (ACADEMY),Transfer Payments,Revenue
Walsall Council,http://opendatacommunities.org/id/metropolitan-district-council/walsall,WC94-552,31/07/2018,Childrens,BARR BEACON SCHOOL TRUST,25/07/2018,"1,300.00",77300-ISB-FORMULA ALLOCATION,BARR BEACON SCHOOL TRUST (ACADEMY),Transfer Payments,Revenue
Walsall Council,http://opendatacommunities.org/id/metropolitan-district-council/walsall,WC94-553,31/07/2018,Childrens,BARR BEACON SCHOOL TRUST,30/07/2018,"19,355.16",66502-TOP UP FUNDING -GRANTS TO SCHOOLS,BARR BEACON SCHOOL TRUST (ACADEMY),Third Party Payments,Revenue
Walsall Council,http://opendatacommunities.org/id/metropolitan-district-council/walsall,WC94-554,31/07/2018,Adult Social Care,REDACTED,11/07/2018,490.40,73506-DIRECT PAYMENT,PHYSICAL SUPPORT,Third Party Payments,Revenue
Walsall Council,http://opendatacommunities.org/id/metropolitan-district-council/walsall,WC94-555,31/07/2018,Economy & Environment,BAT FABRICATIONS LTD,01/07/2018,210.00,"40000-REPAIRS,ALTERATIONS & MAINTENANCE-PREM",GREEN SPACE MANAGEMENT,Premises,Revenue
Walsall Council,http://opendatacommunities.org/id/metropolitan-district-council/walsall,WC94-556,31/07/2018,Economy & Environment,BAT FABRICATIONS LTD,01/07/2018,310.00,60500-GENERAL MATERIALS,INFRASTRUCTURE MAINTENANCE,Supplies & Services,Revenue
Walsall Council,http://opendatacommunities.org/id/metropolitan-district-council/walsall,WC94-557,31/07/2018,Economy & Environment,BAT FABRICATIONS LTD,19/07/2018,350.00,"40000-REPAIRS,ALTERATIONS & MAINTENANCE-PREM",INFRASTRUCTURE MAINTENANCE,Premises,Revenue
Walsall Council,http://opendatacommunities.org/id/metropolitan-district-council/walsall,WC94-558,31/07/2018,Childrens,BAT FABRICATIONS LTD,25/07/2018,"2,450.00",01006-SITE WORKS MAIN CONTRACTORS,CFR 1137 ST GILES PRIMARY EXPANSION,Capital,Capital
Walsall Council,http://opendatacommunities.org/id/metropolitan-district-council/walsall,WC94-559,31/07/2018,Economy & Environment,BAT FABRICATIONS LTD,19/07/2018,"7,500.00","40000-REPAIRS,ALTERATIONS & MAINTENANCE-PREM",GREEN SPACE MANAGEMENT,Premises,Revenue
Walsall Council,http://opendatacommunities.org/id/metropolitan-district-council/walsall,WC94-560,31/07/2018,Economy & Environment,BAUER CORPORATE SERVICES - BAUER RADIO LTD,11/07/2018,"1,820.44",63253-PAYMENT TO CONTRACTOR,HEALTH CHECKS - PHARMACIES,Third Party Payments,Revenue
Walsall Council,http://opendatacommunities.org/id/metropolitan-district-council/walsall,WC94-561,31/07/2018,Economy & Environment,BEADEN POWERLEC LIMITED,25/07/2018,298.38,60007-REPAIR OF EQUIPMENT-EQUIPMENT,OAK PARK,Supplies & Services,Revenue
Walsall Council,http://opendatacommunities.org/id/metropolitan-district-council/walsall,WC94-562,31/07/2018,Economy & Environment,BEADEN POWERLEC LIMITED,25/07/2018,"1,867.00",60008-MAINTENANCE-FURNITURE & EQUIPMENT,OAK PARK,Supplies & Services,Revenue
Walsall Council,http://opendatacommunities.org/id/metropolitan-district-council/walsall,WC94-563,31/07/2018,Childrens,REDACTED,16/07/2018,800.00,74508-INTERNAL FOSTER CARERS-CARER FEES,INTERNAL FOSTER CARE PROVISION,Transfer Payments,Revenue
Walsall Council,http://opendatacommunities.org/id/metropolitan-district-council/walsall,WC94-564,31/07/2018,Adult Social Care,REDACTED,11/07/2018,758.72,73506-DIRECT PAYMENT,PHYSICAL SUPPORT,Third Party Payments,Revenue
Walsall Council,http://opendatacommunities.org/id/metropolitan-district-council/walsall,WC94-565,31/07/2018,Economy & Environment,BEE TEE ALARMS LTD,01/07/2018,700.80,60500-GENERAL MATERIALS,INFRASTRUCTURE MAINTENANCE,Supplies & Services,Revenue
Walsall Council,http://opendatacommunities.org/id/metropolitan-district-council/walsall,WC94-566,31/07/2018,Childrens,BELVIDERE SCHOOL,25/07/2018,"1,200.00",77300-ISB-FORMULA ALLOCATION,OUT OF BOROUGH SCHOOLS,Transfer Payments,Revenue
Walsall Council,http://opendatacommunities.org/id/metropolitan-district-council/walsall,WC94-567,31/07/2018,Adult Social Care,REDACTED,11/07/2018,"2,569.64",73506-DIRECT PAYMENT,LEARNING DISABILITY SUPPORT,Third Party Payments,Revenue
Walsall Council,http://opendatacommunities.org/id/metropolitan-district-council/walsall,WC94-568,31/07/2018,Adult Social Care,BENTLEY COURT PRIORY,30/07/2018,544.95,73373-RESIDENTIAL & NURSING CARE PLACEMENTS,OP PACKAGE/PLACEMENT COSTS,Third Party Payments,Revenue
Walsall Council,http://opendatacommunities.org/id/metropolitan-district-council/walsall,WC94-569,31/07/2018,Adult Social Care,BENTLEY COURT PRIORY,30/07/2018,"1,868.40",73373-RESIDENTIAL & NURSING CARE PLACEMENTS,OP PACKAGE/PLACEMENT COSTS,Third Party Payments,Revenue
Walsall Council,http://opendatacommunities.org/id/metropolitan-district-council/walsall,WC94-570,31/07/2018,Adult Social Care,BENTLEY COURT PRIORY,03/07/2018,"2,041.20",73373-RESIDENTIAL & NURSING CARE PLACEMENTS,OP PACKAGE/PLACEMENT COSTS,Third Party Payments,Revenue
Walsall Council,http://opendatacommunities.org/id/metropolitan-district-council/walsall,WC94-571,31/07/2018,Adult Social Care,BENTLEY COURT PRIORY,30/07/2018,"2,163.51",73373-RESIDENTIAL & NURSING CARE PLACEMENTS,OP PACKAGE/PLACEMENT COSTS,Third Party Payments,Revenue
Walsall Council,http://opendatacommunities.org/id/metropolitan-district-council/walsall,WC94-572,31/07/2018,Adult Social Care,BENTLEY COURT PRIORY,03/07/2018,"2,185.37",73373-RESIDENTIAL & NURSING CARE PLACEMENTS,OP PACKAGE/PLACEMENT COSTS,Third Party Payments,Revenue
Walsall Council,http://opendatacommunities.org/id/metropolitan-district-council/walsall,WC94-573,31/07/2018,Adult Social Care,BENTLEY COURT PRIORY,03/07/2018,"2,403.90",73373-RESIDENTIAL & NURSING CARE PLACEMENTS,OP PACKAGE/PLACEMENT COSTS,Third Party Payments,Revenue
Walsall Council,http://opendatacommunities.org/id/metropolitan-district-council/walsall,WC94-574,31/07/2018,Adult Social Care,BENTLEY COURT PRIORY,03/07/2018,"2,403.90",73373-RESIDENTIAL & NURSING CARE PLACEMENTS,OP PACKAGE/PLACEMENT COSTS,Third Party Payments,Revenue
Walsall Council,http://opendatacommunities.org/id/metropolitan-district-council/walsall,WC94-575,31/07/2018,Adult Social Care,BENTLEY COURT PRIORY,03/07/2018,"2,403.90",73373-RESIDENTIAL & NURSING CARE PLACEMENTS,OP PACKAGE/PLACEMENT COSTS,Third Party Payments,Revenue
Walsall Council,http://opendatacommunities.org/id/metropolitan-district-council/walsall,WC94-576,31/07/2018,Adult Social Care,BENTLEY COURT PRIORY,30/07/2018,"2,403.90",73373-RESIDENTIAL & NURSING CARE PLACEMENTS,OP PACKAGE/PLACEMENT COSTS,Third Party Payments,Revenue
Walsall Council,http://opendatacommunities.org/id/metropolitan-district-council/walsall,WC94-577,31/07/2018,Adult Social Care,BENTLEY COURT PRIORY,30/07/2018,"2,484.03",73373-RESIDENTIAL & NURSING CARE PLACEMENTS,OP PACKAGE/PLACEMENT COSTS,Third Party Payments,Revenue
Walsall Council,http://opendatacommunities.org/id/metropolitan-district-council/walsall,WC94-578,31/07/2018,Adult Social Care,BENTLEY COURT PRIORY,03/07/2018,"2,549.60",73373-RESIDENTIAL & NURSING CARE PLACEMENTS,OP PACKAGE/PLACEMENT COSTS,Third Party Payments,Revenue
Walsall Council,http://opendatacommunities.org/id/metropolitan-district-council/walsall,WC94-579,31/07/2018,Adult Social Care,BENTLEY COURT PRIORY,30/07/2018,"3,000.00",73373-RESIDENTIAL & NURSING CARE PLACEMENTS,OP PACKAGE/PLACEMENT COSTS,Third Party Payments,Revenue
Walsall Council,http://opendatacommunities.org/id/metropolitan-district-council/walsall,WC94-580,31/07/2018,Adult Social Care,BENTLEY COURT PRIORY,24/07/2018,"3,371.14",73373-RESIDENTIAL & NURSING CARE PLACEMENTS,OP PACKAGE/PLACEMENT COSTS,Third Party Payments,Revenue
Walsall Council,http://opendatacommunities.org/id/metropolitan-district-council/walsall,WC94-581,31/07/2018,Adult Social Care,BENTLEY COURT PRIORY,24/07/2018,"5,488.73",73373-RESIDENTIAL & NURSING CARE PLACEMENTS,OP PACKAGE/PLACEMENT COSTS,Third Party Payments,Revenue
Walsall Council,http://opendatacommunities.org/id/metropolitan-district-council/walsall,WC94-582,31/07/2018,Holding Accounts,BERRYMANS LACE MAWER LLP,24/07/2018,"1,863.00",67001-MISC INSURANCES - PAYMENT OF CLAIMS,PUBLIC LIABILITY,Supplies & Services,Revenue
Walsall Council,http://opendatacommunities.org/id/metropolitan-district-council/walsall,WC94-583,31/07/2018,Holding Accounts,BERRYMANS LACE MAWER LLP,11/07/2018,"5,354.00",67001-MISC INSURANCES - PAYMENT OF CLAIMS,PUBLIC LIABILITY,Supplies & Services,Revenue
Walsall Council,http://opendatacommunities.org/id/metropolitan-district-council/walsall,WC94-584,31/07/2018,Adult Social Care,REDACTED,11/07/2018,"1,082.48",73506-DIRECT PAYMENT,PHYSICAL SUPPORT,Third Party Payments,Revenue
Walsall Council,http://opendatacommunities.org/id/metropolitan-district-council/walsall,WC94-585,31/07/2018,Adult Social Care,REDACTED,11/07/2018,"1,743.20",73506-DIRECT PAYMENT,PHYSICAL SUPPORT,Third Party Payments,Revenue
Walsall Council,http://opendatacommunities.org/id/metropolitan-district-council/walsall,WC94-586,31/07/2018,Adult Social Care,REDACTED,11/07/2018,747.36,73506-DIRECT PAYMENT,SOCIAL SUPPORT,Third Party Payments,Revenue
Walsall Council,http://opendatacommunities.org/id/metropolitan-district-council/walsall,WC94-587,31/07/2018,Adult Social Care,BESCOT LODGE RESIDENTIAL CARE HOME,24/07/2018,737.20,73373-RESIDENTIAL & NURSING CARE PLACEMENTS,OP PACKAGE/PLACEMENT COSTS,Third Party Payments,Revenue
Walsall Council,http://opendatacommunities.org/id/metropolitan-district-council/walsall,WC94-588,31/07/2018,Adult Social Care,BESCOT LODGE RESIDENTIAL CARE HOME,10/07/2018,785.71,73373-RESIDENTIAL & NURSING CARE PLACEMENTS,OP PACKAGE/PLACEMENT COSTS,Third Party Payments,Revenue
Walsall Council,http://opendatacommunities.org/id/metropolitan-district-council/walsall,WC94-589,31/07/2018,Adult Social Care,BESCOT LODGE RESIDENTIAL CARE HOME,10/07/2018,"1,642.86",73373-RESIDENTIAL & NURSING CARE PLACEMENTS,OP PACKAGE/PLACEMENT COSTS,Third Party Payments,Revenue
Walsall Council,http://opendatacommunities.org/id/metropolitan-district-council/walsall,WC94-590,31/07/2018,Adult Social Care,BESCOT LODGE RESIDENTIAL CARE HOME,30/07/2018,"1,675.46",73373-RESIDENTIAL & NURSING CARE PLACEMENTS,OP PACKAGE/PLACEMENT COSTS,Third Party Payments,Revenue
Walsall Council,http://opendatacommunities.org/id/metropolitan-district-council/walsall,WC94-591,31/07/2018,Adult Social Care,BESCOT LODGE RESIDENTIAL CARE HOME,24/07/2018,"1,869.79",73373-RESIDENTIAL & NURSING CARE PLACEMENTS,OP PACKAGE/PLACEMENT COSTS,Third Party Payments,Revenue
Walsall Council,http://opendatacommunities.org/id/metropolitan-district-council/walsall,WC94-592,31/07/2018,Adult Social Care,BESCOT LODGE RESIDENTIAL CARE HOME,24/07/2018,"1,869.79",73373-RESIDENTIAL & NURSING CARE PLACEMENTS,LD PACKAGE/PLACEMENT COSTS,Third Party Payments,Revenue
Walsall Council,http://opendatacommunities.org/id/metropolitan-district-council/walsall,WC94-593,31/07/2018,Adult Social Care,BESCOT LODGE RESIDENTIAL CARE HOME,03/07/2018,"1,876.52",73373-RESIDENTIAL & NURSING CARE PLACEMENTS,OP PACKAGE/PLACEMENT COSTS,Third Party Payments,Revenue
Walsall Council,http://opendatacommunities.org/id/metropolitan-district-council/walsall,WC94-594,31/07/2018,Adult Social Care,BESCOT LODGE RESIDENTIAL CARE HOME,03/07/2018,"2,010.56",73373-RESIDENTIAL & NURSING CARE PLACEMENTS,OP PACKAGE/PLACEMENT COSTS,Third Party Payments,Revenue
Walsall Council,http://opendatacommunities.org/id/metropolitan-district-council/walsall,WC94-595,31/07/2018,Adult Social Care,BESCOT LODGE RESIDENTIAL CARE HOME,17/07/2018,"2,010.56",73373-RESIDENTIAL & NURSING CARE PLACEMENTS,OP PACKAGE/PLACEMENT COSTS,Third Party Payments,Revenue
Walsall Council,http://opendatacommunities.org/id/metropolitan-district-council/walsall,WC94-596,31/07/2018,Adult Social Care,BESCOT LODGE RESIDENTIAL CARE HOME,24/07/2018,"2,077.58",73373-RESIDENTIAL & NURSING CARE PLACEMENTS,OP PACKAGE/PLACEMENT COSTS,Third Party Payments,Revenue
Walsall Council,http://opendatacommunities.org/id/metropolitan-district-council/walsall,WC94-597,31/07/2018,Adult Social Care,BESCOT LODGE RESIDENTIAL CARE HOME,24/07/2018,"2,077.58",73373-RESIDENTIAL & NURSING CARE PLACEMENTS,OP PACKAGE/PLACEMENT COSTS,Third Party Payments,Revenue
Walsall Council,http://opendatacommunities.org/id/metropolitan-district-council/walsall,WC94-598,31/07/2018,Adult Social Care,BESCOT LODGE RESIDENTIAL CARE HOME,24/07/2018,"2,077.58",73373-RESIDENTIAL & NURSING CARE PLACEMENTS,OP PACKAGE/PLACEMENT COSTS,Third Party Payments,Revenue
Walsall Council,http://opendatacommunities.org/id/metropolitan-district-council/walsall,WC94-599,31/07/2018,Adult Social Care,BESCOT LODGE RESIDENTIAL CARE HOME,30/07/2018,"2,077.58",73373-RESIDENTIAL & NURSING CARE PLACEMENTS,OP PACKAGE/PLACEMENT COSTS,Third Party Payments,Revenue
Walsall Council,http://opendatacommunities.org/id/metropolitan-district-council/walsall,WC94-600,31/07/2018,Adult Social Care,BESCOT LODGE RESIDENTIAL CARE HOME,24/07/2018,"2,166.15",73373-RESIDENTIAL & NURSING CARE PLACEMENTS,OP PACKAGE/PLACEMENT COSTS,Third Party Payments,Revenue
Walsall Council,http://opendatacommunities.org/id/metropolitan-district-council/walsall,WC94-601,31/07/2018,Adult Social Care,BESCOT LODGE RESIDENTIAL CARE HOME,24/07/2018,"2,258.21",73373-RESIDENTIAL & NURSING CARE PLACEMENTS,OP PACKAGE/PLACEMENT COSTS,Third Party Payments,Revenue
Walsall Council,http://opendatacommunities.org/id/metropolitan-district-council/walsall,WC94-602,31/07/2018,Adult Social Care,BESCOT LODGE RESIDENTIAL CARE HOME,03/07/2018,"6,358.69",73373-RESIDENTIAL & NURSING CARE PLACEMENTS,OP PACKAGE/PLACEMENT COSTS,Third Party Payments,Revenue
Walsall Council,http://opendatacommunities.org/id/metropolitan-district-council/walsall,WC94-603,31/07/2018,Economy & Environment,BESCOT STADIUM SUNDAY MARKET LTD,30/07/2018,"2,800.00",73025-PROFESSIONAL SERVICES-PRIV CONTRACTOR & OTHER AGENCIES,WILLENHALL MARKET,Third Party Payments,Revenue
Walsall Council,http://opendatacommunities.org/id/metropolitan-district-council/walsall,WC94-604,31/07/2018,Economy & Environment,BESCOT STADIUM SUNDAY MARKET LTD,30/07/2018,"3,500.00",73025-PROFESSIONAL SERVICES-PRIV CONTRACTOR & OTHER AGENCIES,WILLENHALL MARKET,Third Party Payments,Revenue
Walsall Council,http://opendatacommunities.org/id/metropolitan-district-council/walsall,WC94-605,31/07/2018,Adult Social Care,BESS CARE LIMITED,02/07/2018,365.30,73372-DOMICILIARY CARE,OP PACKAGE/PLACEMENT COSTS,Third Party Payments,Revenue
Walsall Council,http://opendatacommunities.org/id/metropolitan-district-council/walsall,WC94-606,31/07/2018,Adult Social Care,BESS CARE LIMITED,23/07/2018,565.51,73372-DOMICILIARY CARE,OP PACKAGE/PLACEMENT COSTS,Third Party Payments,Revenue
Walsall Council,http://opendatacommunities.org/id/metropolitan-district-council/walsall,WC94-607,31/07/2018,Adult Social Care,BESS CARE LIMITED,23/07/2018,590.10,73372-DOMICILIARY CARE,OP PACKAGE/PLACEMENT COSTS,Third Party Payments,Revenue
Walsall Council,http://opendatacommunities.org/id/metropolitan-district-council/walsall,WC94-608,31/07/2018,Adult Social Care,BESS CARE LIMITED,02/07/2018,688.45,73372-DOMICILIARY CARE,OP PACKAGE/PLACEMENT COSTS,Third Party Payments,Revenue
Walsall Council,http://opendatacommunities.org/id/metropolitan-district-council/walsall,WC94-609,31/07/2018,Adult Social Care,BESS CARE LIMITED,02/07/2018,688.45,73372-DOMICILIARY CARE,OP PACKAGE/PLACEMENT COSTS,Third Party Payments,Revenue
Walsall Council,http://opendatacommunities.org/id/metropolitan-district-council/walsall,WC94-610,31/07/2018,Childrens,BESTUITION,02/07/2018,"1,650.00",63000-PROFESSIONAL FEES AND SERVICES,VIRTUAL SCHOOL CENTRAL PUPIL PREMIUM,Supplies & Services,Revenue
Walsall Council,http://opendatacommunities.org/id/metropolitan-district-council/walsall,WC94-611,31/07/2018,Childrens,BESTUITION,09/07/2018,"1,650.00",63000-PROFESSIONAL FEES AND SERVICES,VIRTUAL SCHOOL CENTRAL PUPIL PREMIUM,Supplies & Services,Revenue
Walsall Council,http://opendatacommunities.org/id/metropolitan-district-council/walsall,WC94-612,31/07/2018,Childrens,BESTUITION,02/07/2018,"3,300.00",63000-PROFESSIONAL FEES AND SERVICES,VIRTUAL SCHOOL CENTRAL PUPIL PREMIUM,Supplies & Services,Revenue
Walsall Council,http://opendatacommunities.org/id/metropolitan-district-council/walsall,WC94-613,31/07/2018,Adult Social Care,BETHPHAGE.,18/07/2018,"1,026.00",73372-DOMICILIARY CARE,LD PACKAGE/PLACEMENT COSTS,Third Party Payments,Revenue
Walsall Council,http://opendatacommunities.org/id/metropolitan-district-council/walsall,WC94-614,31/07/2018,Adult Social Care,BETHPHAGE.,18/07/2018,"1,311.00",73372-DOMICILIARY CARE,LD PACKAGE/PLACEMENT COSTS,Third Party Payments,Revenue
Walsall Council,http://opendatacommunities.org/id/metropolitan-district-council/walsall,WC94-615,31/07/2018,Adult Social Care,BETHPHAGE.,19/07/2018,"1,339.52",73372-DOMICILIARY CARE,LD PACKAGE/PLACEMENT COSTS,Third Party Payments,Revenue
Walsall Council,http://opendatacommunities.org/id/metropolitan-district-council/walsall,WC94-616,31/07/2018,Adult Social Care,BETHPHAGE.,18/07/2018,"1,453.52",73372-DOMICILIARY CARE,LD PACKAGE/PLACEMENT COSTS,Third Party Payments,Revenue
Walsall Council,http://opendatacommunities.org/id/metropolitan-district-council/walsall,WC94-617,31/07/2018,Adult Social Care,BETHPHAGE.,19/07/2018,"2,693.24",73372-DOMICILIARY CARE,LD PACKAGE/PLACEMENT COSTS,Third Party Payments,Revenue
Walsall Council,http://opendatacommunities.org/id/metropolitan-district-council/walsall,WC94-618,31/07/2018,Adult Social Care,REDACTED,11/07/2018,949.52,73506-DIRECT PAYMENT,PHYSICAL SUPPORT,Third Party Payments,Revenue
Walsall Council,http://opendatacommunities.org/id/metropolitan-district-council/walsall,WC94-619,31/07/2018,Adult Social Care,REDACTED,11/07/2018,"2,767.84",73506-DIRECT PAYMENT,PHYSICAL SUPPORT,Third Party Payments,Revenue
Walsall Council,http://opendatacommunities.org/id/metropolitan-district-council/walsall,WC94-620,31/07/2018,Resources and Transformation,BFA SAFETY TRAINING,09/07/2018,295.00,30030-EXTERNAL TRAINING,HEALTH & SAFETY,Employees,Revenue
Walsall Council,http://opendatacommunities.org/id/metropolitan-district-council/walsall,WC94-621,31/07/2018,Resources and Transformation,BFA SAFETY TRAINING,09/07/2018,495.00,30030-EXTERNAL TRAINING,HEALTH & SAFETY,Employees,Revenue
Walsall Council,http://opendatacommunities.org/id/metropolitan-district-council/walsall,WC94-622,31/07/2018,Resources and Transformation,BFA SAFETY TRAINING,09/07/2018,795.00,30030-EXTERNAL TRAINING,HEALTH & SAFETY,Employees,Revenue
Walsall Council,http://opendatacommunities.org/id/metropolitan-district-council/walsall,WC94-623,31/07/2018,Childrens,REDACTED,12/07/2018,517.92,73506-DIRECT PAYMENT,FAMILY SUPPORT - DIRECT PAYMENTS,Third Party Payments,Revenue
Walsall Council,http://opendatacommunities.org/id/metropolitan-district-council/walsall,WC94-624,31/07/2018,Childrens,BIRCHILLS C OF E COMMUNITY ACADEMY,25/07/2018,250.00,77300-ISB-FORMULA ALLOCATION,BIRCHILLS CE COMMUNITY ACADEMY,Transfer Payments,Revenue
Walsall Council,http://opendatacommunities.org/id/metropolitan-district-council/walsall,WC94-625,31/07/2018,Childrens,BIRCHILLS C OF E COMMUNITY ACADEMY,23/07/2018,"1,136.85",66505-OTHER-GRANTS TO OTHER ORGS,EARLY YEARS - 3 YR OLDS,Third Party Payments,Revenue
Walsall Council,http://opendatacommunities.org/id/metropolitan-district-council/walsall,WC94-626,31/07/2018,Childrens,BIRCHILLS C OF E COMMUNITY ACADEMY,30/07/2018,"3,393.00",66505-OTHER-GRANTS TO OTHER ORGS,EARLY YEARS - 3 YR OLDS,Third Party Payments,Revenue
Walsall Council,http://opendatacommunities.org/id/metropolitan-district-council/walsall,WC94-627,31/07/2018,Childrens,BIRCHILLS C OF E COMMUNITY ACADEMY,27/07/2018,"22,135.41",66502-TOP UP FUNDING -GRANTS TO SCHOOLS,BIRCHILLS CE COMMUNITY ACADEMY,Third Party Payments,Revenue
Walsall Council,http://opendatacommunities.org/id/metropolitan-district-council/walsall,WC94-628,31/07/2018,Childrens,BIRMINGHAM CITY COUNCIL,11/07/2018,763.52,52000-WITH DRIVER-HIRE OF VEHICLES,HOME TO SCHOOL TRANSPORT,Transport,Revenue
Walsall Council,http://opendatacommunities.org/id/metropolitan-district-council/walsall,WC94-629,31/07/2018,Childrens,BIRMINGHAM CITY COUNCIL,01/07/2018,"1,260.00",63000-PROFESSIONAL FEES AND SERVICES,VIRTUAL SCHOOL CENTRAL PUPIL PREMIUM,Supplies & Services,Revenue
Walsall Council,http://opendatacommunities.org/id/metropolitan-district-council/walsall,WC94-630,31/07/2018,Childrens,BIRMINGHAM CITY COUNCIL,16/07/2018,"1,956.16",74037-INDEPENDENT FOSTER CARE-OTH AGENCY PROVISION,EXTERNAL FOSTER CARE PROVISION,Third Party Payments,Revenue
Walsall Council,http://opendatacommunities.org/id/metropolitan-district-council/walsall,WC94-631,31/07/2018,Childrens,BIRMINGHAM CITY COUNCIL,16/07/2018,"4,811.33",66502-TOP UP FUNDING -GRANTS TO SCHOOLS,MAINTAINED PROVIDERS,Third Party Payments,Revenue
Walsall Council,http://opendatacommunities.org/id/metropolitan-district-council/walsall,WC94-632,31/07/2018,Economy & Environment,BIRMINGHAM CITY UNIVERSITY,13/07/2018,"4,000.00",30030-EXTERNAL TRAINING,PUBLIC HEALTH BUSINESS SUPPORT,Employees,Revenue
Walsall Council,http://opendatacommunities.org/id/metropolitan-district-council/walsall,WC94-633,31/07/2018,Economy & Environment,BIRMINGHAM MUSEUMS TRUST,18/07/2018,847.50,60500-GENERAL MATERIALS,CEMETERIES CENTRAL ADMINISTRATION,Supplies & Services,Revenue
Walsall Council,http://opendatacommunities.org/id/metropolitan-district-council/walsall,WC94-634,31/07/2018,Economy & Environment,BLACK COUNTRY BIG BAND,11/07/2018,250.00,62523-EVENTS,ARBORETUM,Supplies & Services,Revenue
Walsall Council,http://opendatacommunities.org/id/metropolitan-district-council/walsall,WC94-635,31/07/2018,Economy & Environment,BLACK COUNTRY CONSORTIUM LIMITED,06/07/2018,"45,044.38",01045-PRIVATE GRANTS,CFR 1072 CAPITALISATION OF PROJECT OFFICER COSTS,Capital,Capital
Walsall Council,http://opendatacommunities.org/id/metropolitan-district-council/walsall,WC94-636,31/07/2018,Childrens,BLAKENALL HEATH JMI SCHOOL,17/07/2018,"57,165.00",77302-ISB-SCHOOL STANDARDS GRANT,BLAKENALL HEATH JUNIOR SCHOOL,Transfer Payments,Revenue
Walsall Council,http://opendatacommunities.org/id/metropolitan-district-council/walsall,WC94-637,31/07/2018,Childrens,BLOXWICH ACADEMY,27/07/2018,349.80,66505-OTHER-GRANTS TO OTHER ORGS,EARLY YEARS - 3 YR OLDS,Third Party Payments,Revenue
Walsall Council,http://opendatacommunities.org/id/metropolitan-district-council/walsall,WC94-638,31/07/2018,Childrens,BLOXWICH ACADEMY,23/07/2018,"1,923.90",66505-OTHER-GRANTS TO OTHER ORGS,EARLY YEARS - 3 YR OLDS,Third Party Payments,Revenue
Walsall Council,http://opendatacommunities.org/id/metropolitan-district-council/walsall,WC94-639,31/07/2018,Childrens,BLOXWICH ACADEMY,30/07/2018,"11,287.52",66502-TOP UP FUNDING -GRANTS TO SCHOOLS,BLOXWICH ACADEMY,Third Party Payments,Revenue
Walsall Council,http://opendatacommunities.org/id/metropolitan-district-council/walsall,WC94-640,31/07/2018,Childrens,BLOXWICH ACADEMY,27/07/2018,"17,473.08",66502-TOP UP FUNDING -GRANTS TO SCHOOLS,BLOXWICH ACADEMY,Third Party Payments,Revenue
Walsall Council,http://opendatacommunities.org/id/metropolitan-district-council/walsall,WC94-641,31/07/2018,Resources and Transformation,BLOXWICH COMMUNITY PARTNERSHIP.,24/07/2018,822.92,61002-DRY FOODS-PROVISIONS,TOWN HALL RESTAURANT BISTRO,Supplies & Services,Revenue
Walsall Council,http://opendatacommunities.org/id/metropolitan-district-council/walsall,WC94-642,31/07/2018,Resources and Transformation,BLOXWICH COMMUNITY PARTNERSHIP.,24/07/2018,"1,441.17",61002-DRY FOODS-PROVISIONS,TOWN HALL RESTAURANT BISTRO,Supplies & Services,Revenue
Walsall Council,http://opendatacommunities.org/id/metropolitan-district-council/walsall,WC94-643,31/07/2018,Resources and Transformation,BLOXWICH COMMUNITY PARTNERSHIP.,19/07/2018,"3,000.00",66500-GRANTS TO OTHER ORGS,BLOXWICH COMMUNITY PARTNERSHIP,Third Party Payments,Revenue
Walsall Council,http://opendatacommunities.org/id/metropolitan-district-council/walsall,WC94-644,31/07/2018,Childrens,BLUE COAT CHURCH OF ENGLAND ACADEMY,30/07/2018,"19,596.28",66502-TOP UP FUNDING -GRANTS TO SCHOOLS,BLUE COAT CofE ACADEMY,Third Party Payments,Revenue
Walsall Council,http://opendatacommunities.org/id/metropolitan-district-council/walsall,WC94-645,31/07/2018,Resources and Transformation,BLUETOWNONLINE LTD,01/07/2018,349.00,34000-RECRUITMENT EXPENSES (ALL TYPES INCL RELOCATION),SCHOOLS HR TRANSACTIONAL TEAM,Employees,Revenue
Walsall Council,http://opendatacommunities.org/id/metropolitan-district-council/walsall,WC94-646,31/07/2018,Resources and Transformation,BLUETOWNONLINE LTD,26/07/2018,349.00,31000-ADVERTISING STAFF VACANCIES,SCHOOLS HR TRANSACTIONAL TEAM,Employees,Revenue
Walsall Council,http://opendatacommunities.org/id/metropolitan-district-council/walsall,WC94-647,31/07/2018,Resources and Transformation,BLUETOWNONLINE LTD,24/07/2018,698.00,34000-RECRUITMENT EXPENSES (ALL TYPES INCL RELOCATION),SCHOOLS HR TRANSACTIONAL TEAM,Employees,Revenue
Walsall Council,http://opendatacommunities.org/id/metropolitan-district-council/walsall,WC94-648,31/07/2018,Economy & Environment,BME UNITED LTD,19/07/2018,"2,626.00",63253-PAYMENT TO CONTRACTOR,SMOKING CESSATION,Third Party Payments,Revenue
Walsall Council,http://opendatacommunities.org/id/metropolitan-district-council/walsall,WC94-649,31/07/2018,Resources and Transformation,BORSHCH LTD,04/07/2018,237.49,60000-FURNITURE & EQUIPMENT,WALSALL CRISIS SUPPORT SCHEME,Supplies & Services,Revenue
Walsall Council,http://opendatacommunities.org/id/metropolitan-district-council/walsall,WC94-650,31/07/2018,Resources and Transformation,BORSHCH LTD,01/07/2018,287.50,60000-FURNITURE & EQUIPMENT,WALSALL CRISIS SUPPORT SCHEME,Supplies & Services,Revenue
Walsall Council,http://opendatacommunities.org/id/metropolitan-district-council/walsall,WC94-651,31/07/2018,Resources and Transformation,BORSHCH LTD,09/07/2018,287.50,60000-FURNITURE & EQUIPMENT,WALSALL CRISIS SUPPORT SCHEME,Supplies & Services,Revenue
Walsall Council,http://opendatacommunities.org/id/metropolitan-district-council/walsall,WC94-652,31/07/2018,Resources and Transformation,BORSHCH LTD,18/07/2018,287.50,60000-FURNITURE & EQUIPMENT,WALSALL CRISIS SUPPORT SCHEME,Supplies & Services,Revenue
Walsall Council,http://opendatacommunities.org/id/metropolitan-district-council/walsall,WC94-653,31/07/2018,Resources and Transformation,BORSHCH LTD,04/07/2018,291.66,60000-FURNITURE & EQUIPMENT,WALSALL CRISIS SUPPORT SCHEME,Supplies & Services,Revenue
Walsall Council,http://opendatacommunities.org/id/metropolitan-district-council/walsall,WC94-654,31/07/2018,Resources and Transformation,BORSHCH LTD,09/07/2018,291.66,60000-FURNITURE & EQUIPMENT,WALSALL CRISIS SUPPORT SCHEME,Supplies & Services,Revenue
Walsall Council,http://opendatacommunities.org/id/metropolitan-district-council/walsall,WC94-655,31/07/2018,Resources and Transformation,BORSHCH LTD,09/07/2018,291.66,60000-FURNITURE & EQUIPMENT,WALSALL CRISIS SUPPORT SCHEME,Supplies & Services,Revenue
Walsall Council,http://opendatacommunities.org/id/metropolitan-district-council/walsall,WC94-656,31/07/2018,Resources and Transformation,BORSHCH LTD,18/07/2018,291.66,60000-FURNITURE & EQUIPMENT,WALSALL CRISIS SUPPORT SCHEME,Supplies & Services,Revenue
Walsall Council,http://opendatacommunities.org/id/metropolitan-district-council/walsall,WC94-657,31/07/2018,Resources and Transformation,BORSHCH LTD,27/07/2018,291.66,60000-FURNITURE & EQUIPMENT,WALSALL CRISIS SUPPORT SCHEME,Supplies & Services,Revenue
Walsall Council,http://opendatacommunities.org/id/metropolitan-district-council/walsall,WC94-658,31/07/2018,Resources and Transformation,BORSHCH LTD,04/07/2018,295.83,60000-FURNITURE & EQUIPMENT,WALSALL CRISIS SUPPORT SCHEME,Supplies & Services,Revenue
Walsall Council,http://opendatacommunities.org/id/metropolitan-district-council/walsall,WC94-659,31/07/2018,Resources and Transformation,BORSHCH LTD,09/07/2018,295.83,60000-FURNITURE & EQUIPMENT,WALSALL CRISIS SUPPORT SCHEME,Supplies & Services,Revenue
Walsall Council,http://opendatacommunities.org/id/metropolitan-district-council/walsall,WC94-660,31/07/2018,Resources and Transformation,BORSHCH LTD,09/07/2018,320.82,60000-FURNITURE & EQUIPMENT,WALSALL CRISIS SUPPORT SCHEME,Supplies & Services,Revenue
Walsall Council,http://opendatacommunities.org/id/metropolitan-district-council/walsall,WC94-661,31/07/2018,Resources and Transformation,BORSHCH LTD,18/07/2018,379.16,60000-FURNITURE & EQUIPMENT,WALSALL CRISIS SUPPORT SCHEME,Supplies & Services,Revenue
Walsall Council,http://opendatacommunities.org/id/metropolitan-district-council/walsall,WC94-662,31/07/2018,Resources and Transformation,BORSHCH LTD,26/07/2018,379.16,60000-FURNITURE & EQUIPMENT,WALSALL CRISIS SUPPORT SCHEME,Supplies & Services,Revenue
Walsall Council,http://opendatacommunities.org/id/metropolitan-district-council/walsall,WC94-663,31/07/2018,Resources and Transformation,BORSHCH LTD,04/07/2018,433.33,60000-FURNITURE & EQUIPMENT,WALSALL CRISIS SUPPORT SCHEME,Supplies & Services,Revenue
Walsall Council,http://opendatacommunities.org/id/metropolitan-district-council/walsall,WC94-664,31/07/2018,Resources and Transformation,BORSHCH LTD,09/07/2018,433.33,60000-FURNITURE & EQUIPMENT,WALSALL CRISIS SUPPORT SCHEME,Supplies & Services,Revenue
Walsall Council,http://opendatacommunities.org/id/metropolitan-district-council/walsall,WC94-665,31/07/2018,Resources and Transformation,BORSHCH LTD,09/07/2018,433.33,60000-FURNITURE & EQUIPMENT,WALSALL CRISIS SUPPORT SCHEME,Supplies & Services,Revenue
Walsall Council,http://opendatacommunities.org/id/metropolitan-district-council/walsall,WC94-666,31/07/2018,Resources and Transformation,BORSHCH LTD,18/07/2018,433.33,60000-FURNITURE & EQUIPMENT,WALSALL CRISIS SUPPORT SCHEME,Supplies & Services,Revenue
Walsall Council,http://opendatacommunities.org/id/metropolitan-district-council/walsall,WC94-667,31/07/2018,Resources and Transformation,BORSHCH LTD,18/07/2018,433.33,60000-FURNITURE & EQUIPMENT,WALSALL CRISIS SUPPORT SCHEME,Supplies & Services,Revenue
Walsall Council,http://opendatacommunities.org/id/metropolitan-district-council/walsall,WC94-668,31/07/2018,Resources and Transformation,BORSHCH LTD,18/07/2018,433.33,60000-FURNITURE & EQUIPMENT,WALSALL CRISIS SUPPORT SCHEME,Supplies & Services,Revenue
Walsall Council,http://opendatacommunities.org/id/metropolitan-district-council/walsall,WC94-669,31/07/2018,Resources and Transformation,BORSHCH LTD,18/07/2018,433.33,60000-FURNITURE & EQUIPMENT,WALSALL CRISIS SUPPORT SCHEME,Supplies & Services,Revenue
Walsall Council,http://opendatacommunities.org/id/metropolitan-district-council/walsall,WC94-670,31/07/2018,Resources and Transformation,BORSHCH LTD,24/07/2018,433.33,60000-FURNITURE & EQUIPMENT,WALSALL CRISIS SUPPORT SCHEME,Supplies & Services,Revenue
Walsall Council,http://opendatacommunities.org/id/metropolitan-district-council/walsall,WC94-671,31/07/2018,Resources and Transformation,BORSHCH LTD,24/07/2018,433.33,60000-FURNITURE & EQUIPMENT,WALSALL CRISIS SUPPORT SCHEME,Supplies & Services,Revenue
Walsall Council,http://opendatacommunities.org/id/metropolitan-district-council/walsall,WC94-672,31/07/2018,Resources and Transformation,BORSHCH LTD,24/07/2018,433.33,60000-FURNITURE & EQUIPMENT,WALSALL CRISIS SUPPORT SCHEME,Supplies & Services,Revenue
Walsall Council,http://opendatacommunities.org/id/metropolitan-district-council/walsall,WC94-673,31/07/2018,Resources and Transformation,BORSHCH LTD,26/07/2018,433.33,60000-FURNITURE & EQUIPMENT,WALSALL CRISIS SUPPORT SCHEME,Supplies & Services,Revenue
Walsall Council,http://opendatacommunities.org/id/metropolitan-district-council/walsall,WC94-674,31/07/2018,Resources and Transformation,BORSHCH LTD,27/07/2018,433.33,60000-FURNITURE & EQUIPMENT,WALSALL CRISIS SUPPORT SCHEME,Supplies & Services,Revenue
Walsall Council,http://opendatacommunities.org/id/metropolitan-district-council/walsall,WC94-675,31/07/2018,Resources and Transformation,BORSHCH LTD,25/07/2018,479.17,60000-FURNITURE & EQUIPMENT,WALSALL CRISIS SUPPORT SCHEME,Supplies & Services,Revenue
Walsall Council,http://opendatacommunities.org/id/metropolitan-district-council/walsall,WC94-676,31/07/2018,Adult Social Care,BOWDEN DERRA PARK,03/07/2018,"11,041.12",73373-RESIDENTIAL & NURSING CARE PLACEMENTS,LD PACKAGE/PLACEMENT COSTS,Third Party Payments,Revenue
Walsall Council,http://opendatacommunities.org/id/metropolitan-district-council/walsall,WC94-677,31/07/2018,Holding Accounts,BRADIN TRUBSHAW & KIRWAN LLP,04/07/2018,360.00,67001-MISC INSURANCES - PAYMENT OF CLAIMS,PUBLIC LIABILITY,Supplies & Services,Revenue
Walsall Council,http://opendatacommunities.org/id/metropolitan-district-council/walsall,WC94-678,31/07/2018,Economy & Environment,BRADVALE LTD T/A INSPIRE HEALTHCARE SERVICES,27/07/2018,284.98,60008-MAINTENANCE-FURNITURE & EQUIPMENT,DARLASTON LEISURE CENTRE,Supplies & Services,Revenue
Walsall Council,http://opendatacommunities.org/id/metropolitan-district-council/walsall,WC94-679,31/07/2018,Economy & Environment,BRADVALE LTD T/A INSPIRE HEALTHCARE SERVICES,30/07/2018,288.88,60008-MAINTENANCE-FURNITURE & EQUIPMENT,WALSALL GALA CENTRE,Supplies & Services,Revenue
Walsall Council,http://opendatacommunities.org/id/metropolitan-district-council/walsall,WC94-680,31/07/2018,Economy & Environment,BRADVALE LTD T/A INSPIRE HEALTHCARE SERVICES,13/07/2018,600.23,60008-MAINTENANCE-FURNITURE & EQUIPMENT,OAK PARK,Supplies & Services,Revenue
Walsall Council,http://opendatacommunities.org/id/metropolitan-district-council/walsall,WC94-681,31/07/2018,Economy & Environment,BRADVALE LTD T/A INSPIRE HEALTHCARE SERVICES,10/07/2018,612.25,60500-GENERAL MATERIALS,ARBORETUM VISITOR CENTRE,Supplies & Services,Revenue
Walsall Council,http://opendatacommunities.org/id/metropolitan-district-council/walsall,WC94-682,31/07/2018,Economy & Environment,BRADVALE LTD T/A INSPIRE HEALTHCARE SERVICES,19/07/2018,622.31,73025-PROFESSIONAL SERVICES-PRIV CONTRACTOR & OTHER AGENCIES,DEPOT,Third Party Payments,Revenue
Walsall Council,http://opendatacommunities.org/id/metropolitan-district-council/walsall,WC94-683,31/07/2018,Economy & Environment,BRADVALE LTD T/A INSPIRE HEALTHCARE SERVICES,10/07/2018,926.53,60008-MAINTENANCE-FURNITURE & EQUIPMENT,BLOXWICH LEISURE CENTRE,Supplies & Services,Revenue
Walsall Council,http://opendatacommunities.org/id/metropolitan-district-council/walsall,WC94-684,31/07/2018,Economy & Environment,BRADVALE LTD T/A INSPIRE HEALTHCARE SERVICES,12/07/2018,"1,244.62",73025-PROFESSIONAL SERVICES-PRIV CONTRACTOR & OTHER AGENCIES,DEPOT,Third Party Payments,Revenue
Walsall Council,http://opendatacommunities.org/id/metropolitan-district-council/walsall,WC94-685,31/07/2018,Economy & Environment,BRAMBLE HUB LIMITED,10/07/2018,"1,961.00",01044-PURCHASE OF FURNITURE & EQUIPMENT,CFR 1155 LEISURE MANAGEMENT SYSTEM,Capital,Capital
Walsall Council,http://opendatacommunities.org/id/metropolitan-district-council/walsall,WC94-686,31/07/2018,Resources and Transformation,BRELMAYNE LTD,09/07/2018,218.62,60007-REPAIR OF EQUIPMENT-EQUIPMENT,CA BEACON PRIMARY SCHOOL,Supplies & Services,Revenue
Walsall Council,http://opendatacommunities.org/id/metropolitan-district-council/walsall,WC94-687,31/07/2018,Resources and Transformation,BRELMAYNE LTD,09/07/2018,224.08,60007-REPAIR OF EQUIPMENT-EQUIPMENT,CA LINDENS PRIMARY SCHOOL,Supplies & Services,Revenue
Walsall Council,http://opendatacommunities.org/id/metropolitan-district-council/walsall,WC94-688,31/07/2018,Resources and Transformation,BRELMAYNE LTD,24/07/2018,315.00,60008-MAINTENANCE-FURNITURE & EQUIPMENT,CA COOPER JORDAN CE PRIMARY SCHOOL,Supplies & Services,Revenue
Walsall Council,http://opendatacommunities.org/id/metropolitan-district-council/walsall,WC94-689,31/07/2018,Resources and Transformation,BRELMAYNE LTD,09/07/2018,439.22,60007-REPAIR OF EQUIPMENT-EQUIPMENT,CA WATLING STREET PRIMARY SCHOOL,Supplies & Services,Revenue
Walsall Council,http://opendatacommunities.org/id/metropolitan-district-council/walsall,WC94-690,31/07/2018,Resources and Transformation,BRELMAYNE LTD,09/07/2018,467.86,60007-REPAIR OF EQUIPMENT-EQUIPMENT,CA WATLING STREET PRIMARY SCHOOL,Supplies & Services,Revenue
Walsall Council,http://opendatacommunities.org/id/metropolitan-district-council/walsall,WC94-691,31/07/2018,Resources and Transformation,BRELMAYNE LTD,04/07/2018,650.00,01044-PURCHASE OF FURNITURE & EQUIPMENT,CFR 1190 SCHOOLS PROJECT,Capital,Capital
Walsall Council,http://opendatacommunities.org/id/metropolitan-district-council/walsall,WC94-692,31/07/2018,Childrens,BRELMAYNE LTD,24/07/2018,770.00,01006-SITE WORKS MAIN CONTRACTORS,CFR 1297 OLD HALL SPECIAL SCHOOL EXPANSION,Capital,Capital
Walsall Council,http://opendatacommunities.org/id/metropolitan-district-council/walsall,WC94-693,31/07/2018,Childrens,BRELMAYNE LTD,13/07/2018,"6,165.16",01006-SITE WORKS MAIN CONTRACTORS,CFR 1193 REPLACEMENT HEATING DISTRIBUTION & EMMITTERS TO MAIN BUILDING,Capital,Capital
Walsall Council,http://opendatacommunities.org/id/metropolitan-district-council/walsall,WC94-694,31/07/2018,Adult Social Care,REDACTED,11/07/2018,440.00,73506-DIRECT PAYMENT,LEARNING DISABILITY SUPPORT,Third Party Payments,Revenue
Walsall Council,http://opendatacommunities.org/id/metropolitan-district-council/walsall,WC94-695,31/07/2018,Childrens,REDACTED,16/07/2018,360.00,74504-HOLIDAY/CHRISTMAS ALLOWANCE-FOSTER CARERS,INTERNAL FOSTER CARE PROVISION,Transfer Payments,Revenue
Walsall Council,http://opendatacommunities.org/id/metropolitan-district-council/walsall,WC94-696,31/07/2018,Childrens,REDACTED,16/07/2018,720.00,74501-MAINTENANCE ALLOWANCE-FOSTER CARERS,INTERNAL FOSTER CARE PROVISION,Transfer Payments,Revenue
Walsall Council,http://opendatacommunities.org/id/metropolitan-district-council/walsall,WC94-697,31/07/2018,Childrens,REDACTED,16/07/2018,720.00,74501-MAINTENANCE ALLOWANCE-FOSTER CARERS,INTERNAL FOSTER CARE PROVISION,Transfer Payments,Revenue
Walsall Council,http://opendatacommunities.org/id/metropolitan-district-council/walsall,WC94-698,31/07/2018,Childrens,REDACTED,16/07/2018,"1,600.00",74508-INTERNAL FOSTER CARERS-CARER FEES,INTERNAL FOSTER CARE PROVISION,Transfer Payments,Revenue
Walsall Council,http://opendatacommunities.org/id/metropolitan-district-council/walsall,WC94-699,31/07/2018,Economy & Environment,BRENNTAG UK LIMITED,02/07/2018,399.39,60503-CHEMICALS & SCIENTIFIC MATS-MATERIALS,BLOXWICH LEISURE CENTRE,Supplies & Services,Revenue
Walsall Council,http://opendatacommunities.org/id/metropolitan-district-council/walsall,WC94-700,31/07/2018,Economy & Environment,BRENNTAG UK LIMITED,11/07/2018,399.39,60503-CHEMICALS & SCIENTIFIC MATS-MATERIALS,OAK PARK,Supplies & Services,Revenue
Walsall Council,http://opendatacommunities.org/id/metropolitan-district-council/walsall,WC94-701,31/07/2018,Economy & Environment,BRENNTAG UK LIMITED,26/07/2018,399.39,60503-CHEMICALS & SCIENTIFIC MATS-MATERIALS,OAK PARK,Supplies & Services,Revenue
Walsall Council,http://opendatacommunities.org/id/metropolitan-district-council/walsall,WC94-702,31/07/2018,Economy & Environment,BRENNTAG UK LIMITED,02/07/2018,710.28,50301-FUEL-TRANSPORT RUN COSTS,FUEL STOCK ACCOUNT,Transport,Revenue
Walsall Council,http://opendatacommunities.org/id/metropolitan-district-council/walsall,WC94-703,31/07/2018,Adult Social Care,REDACTED,01/07/2018,"1,337.64",73372-DOMICILIARY CARE,LD PACKAGE/PLACEMENT COSTS,Third Party Payments,Revenue
Walsall Council,http://opendatacommunities.org/id/metropolitan-district-council/walsall,WC94-704,31/07/2018,Adult Social Care,REDACTED,25/07/2018,"1,337.64",73372-DOMICILIARY CARE,LD PACKAGE/PLACEMENT COSTS,Third Party Payments,Revenue
Walsall Council,http://opendatacommunities.org/id/metropolitan-district-council/walsall,WC94-705,31/07/2018,Adult Social Care,REDACTED,01/07/2018,"1,597.60",73372-DOMICILIARY CARE,LD PACKAGE/PLACEMENT COSTS,Third Party Payments,Revenue
Walsall Council,http://opendatacommunities.org/id/metropolitan-district-council/walsall,WC94-706,31/07/2018,Adult Social Care,REDACTED,25/07/2018,"1,597.60",73372-DOMICILIARY CARE,LD PACKAGE/PLACEMENT COSTS,Third Party Payments,Revenue
Walsall Council,http://opendatacommunities.org/id/metropolitan-district-council/walsall,WC94-707,31/07/2018,Adult Social Care,REDACTED,11/07/2018,"1,428.00",73506-DIRECT PAYMENT,PHYSICAL SUPPORT,Third Party Payments,Revenue
Walsall Council,http://opendatacommunities.org/id/metropolitan-district-council/walsall,WC94-708,31/07/2018,Adult Social Care,REDACTED,11/07/2018,836.40,73506-DIRECT PAYMENT,PHYSICAL SUPPORT,Third Party Payments,Revenue
Walsall Council,http://opendatacommunities.org/id/metropolitan-district-council/walsall,WC94-709,31/07/2018,Resources and Transformation,BRIAR ASSOCIATES,12/07/2018,495.00,"40000-REPAIRS,ALTERATIONS & MAINTENANCE-PREM",CENTRALISED MAINTENANCE,Premises,Revenue
Walsall Council,http://opendatacommunities.org/id/metropolitan-district-council/walsall,WC94-710,31/07/2018,Adult Social Care,BRIDGEWOOD HEALTH CARE LTD,30/07/2018,24.00,73373-RESIDENTIAL & NURSING CARE PLACEMENTS,PD PACKAGE/PLACEMENT COSTS,Third Party Payments,Revenue
Walsall Council,http://opendatacommunities.org/id/metropolitan-district-council/walsall,WC94-711,31/07/2018,Adult Social Care,BRIDGEWOOD HEALTH CARE LTD,24/07/2018,"5,688.24",73373-RESIDENTIAL & NURSING CARE PLACEMENTS,PD PACKAGE/PLACEMENT COSTS,Third Party Payments,Revenue
Walsall Council,http://opendatacommunities.org/id/metropolitan-district-council/walsall,WC94-712,31/07/2018,Adult Social Care,BRIDGEWOOD HEALTH CARE LTD,24/07/2018,"5,688.24",73373-RESIDENTIAL & NURSING CARE PLACEMENTS,PD PACKAGE/PLACEMENT COSTS,Third Party Payments,Revenue
Walsall Council,http://opendatacommunities.org/id/metropolitan-district-council/walsall,WC94-713,31/07/2018,Adult Social Care,BRIDGEWOOD HEALTH CARE LTD,24/07/2018,"5,790.32",73373-RESIDENTIAL & NURSING CARE PLACEMENTS,PD PACKAGE/PLACEMENT COSTS,Third Party Payments,Revenue
Walsall Council,http://opendatacommunities.org/id/metropolitan-district-council/walsall,WC94-714,31/07/2018,Childrens,BRIGHT HORIZONS (BANSTEAD DAY NURSERY AND PRESCHOOL),30/07/2018,"1,026.95",32000-MISC FEES AND EXPENSES,SAFEGUARDING & FAMILY SUPPORT,Employees,Revenue
Walsall Council,http://opendatacommunities.org/id/metropolitan-district-council/walsall,WC94-715,31/07/2018,Childrens,BRIGHTER FUTURES PERSONAL GROWTH,19/07/2018,450.00,63000-PROFESSIONAL FEES AND SERVICES,VIRTUAL SCHOOL CENTRAL PUPIL PREMIUM,Supplies & Services,Revenue
Walsall Council,http://opendatacommunities.org/id/metropolitan-district-council/walsall,WC94-716,31/07/2018,Resources and Transformation,BRISTOW & SUTOR,04/07/2018,216.21,73014-LEGAL FEES-PRIV CONTRACTOR FEES,REVENUES,Third Party Payments,Revenue
Walsall Council,http://opendatacommunities.org/id/metropolitan-district-council/walsall,WC94-717,31/07/2018,Resources and Transformation,BRISTOW & SUTOR,03/07/2018,248.98,73014-LEGAL FEES-PRIV CONTRACTOR FEES,REVENUES,Third Party Payments,Revenue
Walsall Council,http://opendatacommunities.org/id/metropolitan-district-council/walsall,WC94-718,31/07/2018,Resources and Transformation,BRISTOW & SUTOR,02/07/2018,432.98,73014-LEGAL FEES-PRIV CONTRACTOR FEES,REVENUES,Third Party Payments,Revenue
Walsall Council,http://opendatacommunities.org/id/metropolitan-district-council/walsall,WC94-719,31/07/2018,Resources and Transformation,BRITANNIA HOTELS LTD T/A BRITANNIA HOTEL WOLVERHAMPTON,06/07/2018,214.17,75501-BED & BREAKFAST PAYMENTS,BED & BREAKFAST PAYMENTS,Third Party Payments,Revenue
Walsall Council,http://opendatacommunities.org/id/metropolitan-district-council/walsall,WC94-720,31/07/2018,Resources and Transformation,BRITANNIA HOTELS LTD T/A BRITANNIA HOTEL WOLVERHAMPTON,23/07/2018,220.82,75501-BED & BREAKFAST PAYMENTS,BED & BREAKFAST PAYMENTS,Third Party Payments,Revenue
Walsall Council,http://opendatacommunities.org/id/metropolitan-district-council/walsall,WC94-721,31/07/2018,Resources and Transformation,BRITANNIA HOTELS LTD T/A BRITANNIA HOTEL WOLVERHAMPTON,12/07/2018,220.84,75501-BED & BREAKFAST PAYMENTS,BED & BREAKFAST PAYMENTS,Third Party Payments,Revenue
Walsall Council,http://opendatacommunities.org/id/metropolitan-district-council/walsall,WC94-722,31/07/2018,Resources and Transformation,BRITANNIA HOTELS LTD T/A BRITANNIA HOTEL WOLVERHAMPTON,06/07/2018,238.33,75501-BED & BREAKFAST PAYMENTS,BED & BREAKFAST PAYMENTS,Third Party Payments,Revenue
Walsall Council,http://opendatacommunities.org/id/metropolitan-district-council/walsall,WC94-723,31/07/2018,Resources and Transformation,BRITANNIA HOTELS LTD T/A BRITANNIA HOTEL WOLVERHAMPTON,01/07/2018,243.33,75501-BED & BREAKFAST PAYMENTS,BED & BREAKFAST PAYMENTS,Third Party Payments,Revenue
Walsall Council,http://opendatacommunities.org/id/metropolitan-district-council/walsall,WC94-724,31/07/2018,Resources and Transformation,BRITANNIA HOTELS LTD T/A BRITANNIA HOTEL WOLVERHAMPTON,09/07/2018,248.73,75501-BED & BREAKFAST PAYMENTS,BED & BREAKFAST PAYMENTS,Third Party Payments,Revenue
Walsall Council,http://opendatacommunities.org/id/metropolitan-district-council/walsall,WC94-725,31/07/2018,Resources and Transformation,BRITANNIA HOTELS LTD T/A BRITANNIA HOTEL WOLVERHAMPTON,18/07/2018,262.90,75501-BED & BREAKFAST PAYMENTS,BED & BREAKFAST PAYMENTS,Third Party Payments,Revenue
Walsall Council,http://opendatacommunities.org/id/metropolitan-district-council/walsall,WC94-726,31/07/2018,Resources and Transformation,BRITANNIA HOTELS LTD T/A BRITANNIA HOTEL WOLVERHAMPTON,30/07/2018,283.10,75501-BED & BREAKFAST PAYMENTS,BED & BREAKFAST PAYMENTS,Third Party Payments,Revenue
Walsall Council,http://opendatacommunities.org/id/metropolitan-district-council/walsall,WC94-727,31/07/2018,Resources and Transformation,BRITANNIA HOTELS LTD T/A BRITANNIA HOTEL WOLVERHAMPTON,26/07/2018,317.50,75501-BED & BREAKFAST PAYMENTS,BED & BREAKFAST PAYMENTS,Third Party Payments,Revenue
Walsall Council,http://opendatacommunities.org/id/metropolitan-district-council/walsall,WC94-728,31/07/2018,Resources and Transformation,BRITANNIA HOTELS LTD T/A BRITANNIA HOTEL WOLVERHAMPTON,26/07/2018,317.50,75501-BED & BREAKFAST PAYMENTS,BED & BREAKFAST PAYMENTS,Third Party Payments,Revenue
Walsall Council,http://opendatacommunities.org/id/metropolitan-district-council/walsall,WC94-729,31/07/2018,Resources and Transformation,BRITANNIA HOTELS LTD T/A BRITANNIA HOTEL WOLVERHAMPTON,11/07/2018,416.69,75501-BED & BREAKFAST PAYMENTS,BED & BREAKFAST PAYMENTS,Third Party Payments,Revenue
Walsall Council,http://opendatacommunities.org/id/metropolitan-district-council/walsall,WC94-730,31/07/2018,Resources and Transformation,BRITANNIA HOTELS LTD T/A BRITANNIA HOTEL WOLVERHAMPTON,11/07/2018,416.69,75501-BED & BREAKFAST PAYMENTS,BED & BREAKFAST PAYMENTS,Third Party Payments,Revenue
Walsall Council,http://opendatacommunities.org/id/metropolitan-district-council/walsall,WC94-731,31/07/2018,Resources and Transformation,BRITANNIA HOTELS LTD T/A BRITANNIA HOTEL WOLVERHAMPTON,23/07/2018,549.15,75501-BED & BREAKFAST PAYMENTS,BED & BREAKFAST PAYMENTS,Third Party Payments,Revenue
Walsall Council,http://opendatacommunities.org/id/metropolitan-district-council/walsall,WC94-732,31/07/2018,Resources and Transformation,BRITANNIA HOTELS LTD T/A BRITANNIA HOTEL WOLVERHAMPTON,06/07/2018,550.00,75501-BED & BREAKFAST PAYMENTS,BED & BREAKFAST PAYMENTS,Third Party Payments,Revenue
Walsall Council,http://opendatacommunities.org/id/metropolitan-district-council/walsall,WC94-733,31/07/2018,Adult Social Care,BROADREACH HOUSE,17/07/2018,"1,362.86",73373-RESIDENTIAL & NURSING CARE PLACEMENTS,SUBSTANCE MISUSE PACKAGE/PLACEMENT COSTS,Third Party Payments,Revenue
Walsall Council,http://opendatacommunities.org/id/metropolitan-district-council/walsall,WC94-734,31/07/2018,Holding Accounts,BROWNE JACOBSON SOLICITORS,11/07/2018,500.00,67001-MISC INSURANCES - PAYMENT OF CLAIMS,PUBLIC LIABILITY,Supplies & Services,Revenue
Walsall Council,http://opendatacommunities.org/id/metropolitan-district-council/walsall,WC94-735,31/07/2018,Economy & Environment,BROWNHILLS ASPHALT & TARMAC LIMITED,19/07/2018,"1,350.00",60500-GENERAL MATERIALS,INFRASTRUCTURE MAINTENANCE,Supplies & Services,Revenue
Walsall Council,http://opendatacommunities.org/id/metropolitan-district-council/walsall,WC94-736,31/07/2018,Economy & Environment,BROWNHILLS ASPHALT & TARMAC LIMITED,09/07/2018,"1,400.00",60500-GENERAL MATERIALS,INFRASTRUCTURE MAINTENANCE,Supplies & Services,Revenue
Walsall Council,http://opendatacommunities.org/id/metropolitan-district-council/walsall,WC94-737,31/07/2018,Economy & Environment,BROWNHILLS ASPHALT & TARMAC LIMITED,01/07/2018,"5,033.00",60008-MAINTENANCE-FURNITURE & EQUIPMENT,OAK PARK,Supplies & Services,Revenue
Walsall Council,http://opendatacommunities.org/id/metropolitan-district-council/walsall,WC94-738,31/07/2018,Economy & Environment,BROWNHILLS ASPHALT & TARMAC LIMITED,19/07/2018,"6,950.00",60500-GENERAL MATERIALS,INFRASTRUCTURE MAINTENANCE,Supplies & Services,Revenue
Walsall Council,http://opendatacommunities.org/id/metropolitan-district-council/walsall,WC94-739,31/07/2018,Economy & Environment,BROWNHILLS ASPHALT & TARMAC LIMITED,19/07/2018,"9,875.00",60006-NEW-FURNITURE & EQUIPMENT,INFRASTRUCTURE MAINTENANCE,Supplies & Services,Revenue
Walsall Council,http://opendatacommunities.org/id/metropolitan-district-council/walsall,WC94-740,31/07/2018,Adult Social Care,REDACTED,11/07/2018,"1,713.60",73506-DIRECT PAYMENT,LEARNING DISABILITY SUPPORT,Third Party Payments,Revenue
Walsall Council,http://opendatacommunities.org/id/metropolitan-district-council/walsall,WC94-741,31/07/2018,Resources and Transformation,BT PLC,11/07/2018,312.82,63601-COSTS (NOT INTERNAL RECHARGES)-TELEPHONES,CENTRAL COMMUNICATIONS RECHARGES,Supplies & Services,Revenue
Walsall Council,http://opendatacommunities.org/id/metropolitan-district-council/walsall,WC94-742,31/07/2018,Resources and Transformation,BT PLC,09/07/2018,575.86,63800-COMPUTER EQUIPMENT AND SUPPLIES,RECHARGEABLE EQUIPMENT,Supplies & Services,Revenue
Walsall Council,http://opendatacommunities.org/id/metropolitan-district-council/walsall,WC94-743,31/07/2018,Resources and Transformation,BT PLC,02/07/2018,"1,268.35",63807-COMMS LINKS-COMPUTER,NETWORKS,Supplies & Services,Revenue
Walsall Council,http://opendatacommunities.org/id/metropolitan-district-council/walsall,WC94-744,31/07/2018,Resources and Transformation,BT PLC,09/07/2018,"2,200.00",63800-COMPUTER EQUIPMENT AND SUPPLIES,RECHARGEABLE EQUIPMENT,Supplies & Services,Revenue
Walsall Council,http://opendatacommunities.org/id/metropolitan-district-council/walsall,WC94-745,31/07/2018,Economy & Environment,BT PLC,13/07/2018,"9,963.15",63601-COSTS (NOT INTERNAL RECHARGES)-TELEPHONES,TRAFFIC CONTROL,Supplies & Services,Revenue
Walsall Council,http://opendatacommunities.org/id/metropolitan-district-council/walsall,WC94-746,31/07/2018,Resources and Transformation,BT PLC,11/07/2018,"15,154.15",63601-COSTS (NOT INTERNAL RECHARGES)-TELEPHONES,CENTRAL COMMUNICATIONS RECHARGES,Supplies & Services,Revenue
Walsall Council,http://opendatacommunities.org/id/metropolitan-district-council/walsall,WC94-747,31/07/2018,Resources and Transformation,BT PLC,31/07/2018,"69,731.97",63800-COMPUTER EQUIPMENT AND SUPPLIES,RECHARGEABLE EQUIPMENT,Supplies & Services,Revenue
Walsall Council,http://opendatacommunities.org/id/metropolitan-district-council/walsall,WC94-748,31/07/2018,Childrens,BUFFET EXPRESS LTD,30/07/2018,352.50,62523-EVENTS,SCHOOL READINESS,Supplies & Services,Revenue
Walsall Council,http://opendatacommunities.org/id/metropolitan-district-council/walsall,WC94-749,31/07/2018,Economy & Environment,BUFFET EXPRESS LTD,02/07/2018,792.25,60500-GENERAL MATERIALS,A STARS PROJECT,Supplies & Services,Revenue
Walsall Council,http://opendatacommunities.org/id/metropolitan-district-council/walsall,WC94-750,31/07/2018,Adult Social Care,BUPA CARE HOMES (CFHCARE) LTD,03/07/2018,"2,243.64",73373-RESIDENTIAL & NURSING CARE PLACEMENTS,OP PACKAGE/PLACEMENT COSTS,Third Party Payments,Revenue
Walsall Council,http://opendatacommunities.org/id/metropolitan-district-council/walsall,WC94-751,31/07/2018,Adult Social Care,BUPA CARE HOMES (CFHCARE) LTD,24/07/2018,"2,243.64",73373-RESIDENTIAL & NURSING CARE PLACEMENTS,OP PACKAGE/PLACEMENT COSTS,Third Party Payments,Revenue
Walsall Council,http://opendatacommunities.org/id/metropolitan-district-council/walsall,WC94-752,31/07/2018,Adult Social Care,BUPA CARE HOMES (CFHCARE) LTD,24/07/2018,"2,443.64",73373-RESIDENTIAL & NURSING CARE PLACEMENTS,OP PACKAGE/PLACEMENT COSTS,Third Party Payments,Revenue
Walsall Council,http://opendatacommunities.org/id/metropolitan-district-council/walsall,WC94-753,31/07/2018,Adult Social Care,BUPA CARE HOMES (CFHCARE) LTD,03/07/2018,"2,444.36",73373-RESIDENTIAL & NURSING CARE PLACEMENTS,OP PACKAGE/PLACEMENT COSTS,Third Party Payments,Revenue
Walsall Council,http://opendatacommunities.org/id/metropolitan-district-council/walsall,WC94-754,31/07/2018,Adult Social Care,BUPA NURSING HOMES ASTON COURT,30/07/2018,"1,194.95",73373-RESIDENTIAL & NURSING CARE PLACEMENTS,OP PACKAGE/PLACEMENT COSTS,Third Party Payments,Revenue
Walsall Council,http://opendatacommunities.org/id/metropolitan-district-council/walsall,WC94-755,31/07/2018,Adult Social Care,BUPA NURSING HOMES ASTON COURT,30/07/2018,"1,194.95",73373-RESIDENTIAL & NURSING CARE PLACEMENTS,OP PACKAGE/PLACEMENT COSTS,Third Party Payments,Revenue
Walsall Council,http://opendatacommunities.org/id/metropolitan-district-council/walsall,WC94-756,31/07/2018,Adult Social Care,BUSH HOME LTD,03/07/2018,"1,809.47",73373-RESIDENTIAL & NURSING CARE PLACEMENTS,OP PACKAGE/PLACEMENT COSTS,Third Party Payments,Revenue
Walsall Council,http://opendatacommunities.org/id/metropolitan-district-council/walsall,WC94-757,31/07/2018,Adult Social Care,BUSH HOME LTD,03/07/2018,"1,809.47",73373-RESIDENTIAL & NURSING CARE PLACEMENTS,OP PACKAGE/PLACEMENT COSTS,Third Party Payments,Revenue
Walsall Council,http://opendatacommunities.org/id/metropolitan-district-council/walsall,WC94-758,31/07/2018,Adult Social Care,BUSH HOME LTD,30/07/2018,"1,809.47",73373-RESIDENTIAL & NURSING CARE PLACEMENTS,MENTAL HEALTH PACKAGE/PLACEMENT COSTS,Third Party Payments,Revenue
Walsall Council,http://opendatacommunities.org/id/metropolitan-district-council/walsall,WC94-759,31/07/2018,Adult Social Care,BUSH HOME LTD,24/07/2018,"1,868.89",73373-RESIDENTIAL & NURSING CARE PLACEMENTS,OP PACKAGE/PLACEMENT COSTS,Third Party Payments,Revenue
